Workbook

Sheet Vstupní hodnoty
B2: Vstupní veličina | C2: Hodnota | D2: Jednotky
B3: Spotřeba zákazníka | C3: =SUM('Výpočetní model'!D4:D35043)/4/1000 -> 6292.15344 | D3: MWh
B4: Rezervovaná kapacita | C4: =MAX('Výpočetní model'!D3:D35043)*1.05 -> 1865.43 | D4: kWh
B5: Rezervovaný příkon | C5: =C4*1.05 -> 1958.7015 | D5: kWh
B6: Distribuční síť
B7: ČEZ | C7: 1 | D7: -
B8: EON | C8: 0 | D8: -
B9: PRE | C9: 0 | D9: -

Sheet Zdrojová data
B2: Veličina | C2: Hodnota | D2: Jednotky
B3: Cena rezervované kapacity | C3: =SUMPRODUCT(H5:H7,'Vstupní hodnoty'!C7:C9) -> 171705 | D3: Kč/MW/měsíc | G3: Distribuční síť | H3: Cena za RK | I3: Použití sítě | J3: Penále za překročení
B4: Cena za použití sítě | C4: =SUMPRODUCT(I5:I7,'Vstupní hodnoty'!C7:C9) -> 44.16 | D4: Kč/MWh | H4: Kč/MW/měsíc | I4: Kč/MWh | J4: Kč/MWh
B5: Cena systémových služeb | C5: 93.63 | D5: Kč/MWh | G5: ČEZ | H5: 171705 | I5: 44.16 | J5: =4*H5 -> 686820
B6: Cena POZE | C6: =MIN(495*'Vstupní hodnoty'!C3,65424*'Vstupní hodnoty'!C5/1000) -> 128146.0869 | D6: Kč/MW/měsíc | G6: EON | H6: 143903 | I6: 49.51 | J6: =4*H6 -> 575612
B7: Poplatek OTE, ERÚ | C7: 5.4 | D7: Kč/měsíc | G7: PRE | H7: 193631 | I7: 50.73 | J7: 774524
B8: CAL XY | C8: 800 | D8: Kč/MWh
B9: Daň z elektřiny | C9: 28 | D9: %
B10: DPH | C10: 21 | D10: %
B12: Spotřeba stroje | C12: 83.5 | D12: l/h
C13: =C12/60 -> 1.391666667 | D13: l/min
B14: Cena nafty | C14: =29.81*0.79 -> 23.5499 | D14: Kč/l
B15: Výkon stroje | C15: =400*0.9 -> 360 | D15: kW
B16: Minutová práce stroje | C16: =C15/60 -> 6 | D16: kWh/min
B17: Maximální regulovatelná hodnota | C17: =7*4*C16 -> 168 | D17: kW
B19: Projektovaná úspěšnost startů | C19: 98 | D19: %
B21: Penále za překročení | C21: =SUMPRODUCT(J5:J7,'Vstupní hodnoty'!C7:C9)/1000 -> 686.82 | D21: Kč/kW

Sheet Výpočet platby zákazníka
C2: Před optimalizací | G2: Po optimalizací
C4: Platba za odběrné místo (VN) | D4: Celkem | E4: Jednotky | G4: Platba za odběrné místo (VN) | H4: Celkem | I4: Jednotky
C5: Služby distributora | G5: Služby distributora
C6: Rezervovaná kapacita | D6: ='Vstupní hodnoty'!C4/1000*'Zdrojová data'!$C$3*12 -> 3843643.898 | E6: Kč | G6: Rezervovaná kapacita | H6: ='Výstupy modelu'!H9/1000*'Zdrojová data'!$C$3*12 -> 3428297.681 | I6: Kč
C7: Použití sítě | D7: ='Vstupní hodnoty'!C3*'Zdrojová data'!$C$4 -> 277861.4959 | E7: Kč | G7: Použití sítě | H7: ='Výstupy modelu'!H8*'Zdrojová data'!$C$4 -> 277823.5532 | I7: Kč
C8: Účiník | D8: 0 | E8: Kč | G8: Účiník | H8: 0 | I8: Kč
C9: Ostatní služby | G9: Ostatní služby
C10: Systémové služby | D10: ='Vstupní hodnoty'!C3*'Zdrojová data'!$C$5 -> 589134.3266 | E10: Kč | G10: Systémové služby | H10: ='Výstupy modelu'!H8*'Zdrojová data'!$C$5 -> 589053.8788 | I10: Kč
C11: POZE | D11: ='Zdrojová data'!$C$6*12 -> 1537753.043 | E11: Kč | G11: POZE | H11: =MIN(495*'Výstupy modelu'!H8,65424*'Výstupy modelu'!H10/1000)*12 -> 1480228.468 | I11: Kč
C12: OTE, ERÚ | D12: ='Zdrojová data'!$C$7*12 -> 64.8 | E12: Kč | G12: OTE, ERÚ | H12: ='Zdrojová data'!$C$7*12 -> 64.8 | I12: Kč
C13: Silová elektřina | G13: Silová elektřina
C14: Nákup CAL 19 | D14: ='Vstupní hodnoty'!C3*'Zdrojová data'!$C$8 -> 5033722.752 | E14: Kč | G14: Nákup CAL 19 | H14: ='Výstupy modelu'!H8*'Zdrojová data'!$C$8 -> 5033035.384 | I14: Kč
C15: Součet | G15: Součet
C16: Cena bez daní | D16: =SUM(D6:D14) -> 11282180.32 | E16: Kč | G16: Cena bez daní | H16: =SUM(H6:H14) -> 10808503.77 | I16: Kč
C17: Daň z elektřiny | D17: ='Zdrojová data'!$C$9*'Vstupní hodnoty'!C3 -> 176180.2963 | E17: Kč | G17: Daň z elektřiny | H17: ='Zdrojová data'!$C$9*'Výstupy modelu'!H8 -> 176156.2384 | I17: Kč
C18: Penále | D18: =(SUM('Výpočetní model'!Y4:Y35043)+SUM('Výpočetní model'!Z4:Z35043))*'Zdrojová data'!C21 -> 0 | E18: Kč | G18: Penále | H18: ='Výstupy modelu'!C19 -> 0 | I18: Kč
C19: Cena s daní z elektřiny (bez DPH | D19: =D16+D17+D18 -> 11458360.61 | E19: Kč | G19: Cena s DPH | H19: =SUM(H16:H18) -> 10984660 | I19: Kč

Sheet Výpočetní model
B3: Datum a čas | C3: Měsíc | D3: Max. 1/4h P | E3: Regulovaná hodnota | F3: Start dieselu | G3: Pomocná proměnná | H3: Úspěšný start | I3: Změna RK | J3: Regulovaný výkon teoretický | K3: Reg. výkon praktický | L3: Elektrická práce | M3: Doba provozu | N3: Spotřeba paliva | O3: Palivové náklady | P3: Chyběl výkon? | Q3: Chybějící výkon | R3: Platilo se penále? | S3: Měsíční max překročení kapacity | T3: Překročení příkonu | W3: Původní kapacita | X3: Nový příkon | Y3: Překročení původní kapacity | Z3: Překročení původního příkonu
B4: 2017-01-01T00:15:00 | C4: =MONTH(B4) -> 1 | D4: 192.24 | E4: =CEILING('Výstupy modelu'!C7,1) -> 1664 | F4: =IF(D4>E4,1,0) -> 0 | G4: =IF(F4=1,RANDBETWEEN(0,100),0) -> 0 | H4: =IF(F4=1,IF(G4>'Zdrojová data'!$C$19,0,1),"") ->  | I4: =IF(H4=0,D4,IF(J4>K4,E4+J4-K4,E4)) -> 1664 | J4: =IF(H4=1,D4-E4,0) -> 0 | K4: =MIN(J4,'Zdrojová data'!$C$17) -> 0 | L4: =K4/4 -> 0 | M4: =L4/'Zdrojová data'!$C$16 -> 0 | N4: =M4*'Zdrojová data'!$C$13 -> 0 | O4: =N4*'Zdrojová data'!$C$14 -> 0 | P4: =IF(H4=0,1,IF(J4>K4,1,0)) -> 0 | Q4: =IF(H4=0,D4-'Výstupy modelu'!$C$7,IF(P4=1,J4-K4,0)) -> 0 | R4: =IF(H4=0,1,IF(J4>K4,1,0)) -> 0 | T4: =MAX(0,IF(Q4>0,Q4-('Výstupy modelu'!$H$10-'Výstupy modelu'!$H$9),0)) -> 0 | W4: ='Vstupní hodnoty'!C4 -> 1865.43 | X4: ='Výstupy modelu'!H10 -> 1885.43 | Y4: =MAX(0,D4-W4) -> 0 | Z4: =MAX(0,D4-'Vstupní hodnoty'!$C$5) -> 0 | AC4: 1
B5: 2017-01-01T00:30:00 | C5: =MONTH(B5) -> 1 | D5: 192.24 | E5: =CEILING(IF(C5-C4=0,IF(H4=0,I4,IF(J4>K4,I4,E4)),'Výstupy modelu'!$C$7),1) -> 1664 | F5: 0 | G5: =IF(F5=1,RANDBETWEEN(0,100),0) -> 0 | H5: =IF(F5=1,IF(G5>'Zdrojová data'!$C$19,0,1),"") ->  | I5: 1664 | J5: 0 | K5: =MIN(J5,'Zdrojová data'!$C$17) -> 0 | L5: =K5/4 -> 0 | M5: =L5/'Zdrojová data'!$C$16 -> 0 | N5: =M5*'Zdrojová data'!$C$13 -> 0 | O5: =N5*'Zdrojová data'!$C$14 -> 0 | P5: =IF(H5=0,1,IF(J5>K5,1,0)) -> 0 | Q5: =IF(H5=0,D5-'Výstupy modelu'!$C$7,IF(P5=1,J5-K5,0)) -> 0 | R5: =IF(H5=0,1,IF(J5>K5,1,0)) -> 0 | T5: =MAX(0,IF(Q5>0,Q5-('Výstupy modelu'!$H$10-'Výstupy modelu'!$H$9),0)) -> 0 | W5: =W4 -> 1865.43 | X5: =X4 -> 1885.43 | Y5: 0 | Z5: =MAX(0,D5-'Vstupní hodnoty'!$C$5) -> 0
B6: 2017-01-01T00:45:00 | C6: 1 | D6: 191.16 | E6: =CEILING(IF(C6-C5=0,IF(H5=0,I5,IF(J5>K5,I5,E5)),'Výstupy modelu'!$C$7),1) -> 1664 | F6: 0 | G6: 0 | H6: =IF(F6=1,IF(G6>'Zdrojová data'!$C$19,0,1),"") ->  | I6: 1664 | J6: 0 | K6: =MIN(J6,'Zdrojová data'!$C$17) -> 0 | L6: 0 | M6: =L6/'Zdrojová data'!$C$16 -> 0 | N6: =M6*'Zdrojová data'!$C$13 -> 0 | O6: =N6*'Zdrojová data'!$C$14 -> 0 | P6: 0 | Q6: =IF(H6=0,D6-'Výstupy modelu'!$C$7,IF(P6=1,J6-K6,0)) -> 0 | R6: 0 | T6: =MAX(0,IF(Q6>0,Q6-('Výstupy modelu'!$H$10-'Výstupy modelu'!$H$9),0)) -> 0 | W6: =W5 -> 1865.43 | X6: 1885.43 | Y6: 0 | Z6: =MAX(0,D6-'Vstupní hodnoty'!$C$5) -> 0
B7: 2017-01-01T01:00:00 | C7: 1 | D7: 197.64 | E7: =CEILING(IF(C7-C6=0,IF(H6=0,I6,IF(J6>K6,I6,E6)),'Výstupy modelu'!$C$7),1) -> 1664 | F7: 0 | G7: 0 | H7: =IF(F7=1,IF(G7>'Zdrojová data'!$C$19,0,1),"") ->  | I7: 1664 | J7: 0 | K7: =MIN(J7,'Zdrojová data'!$C$17) -> 0 | L7: 0 | M7: =L7/'Zdrojová data'!$C$16 -> 0 | N7: =M7*'Zdrojová data'!$C$13 -> 0 | O7: =N7*'Zdrojová data'!$C$14 -> 0 | P7: 0 | Q7: =IF(H7=0,D7-'Výstupy modelu'!$C$7,IF(P7=1,J7-K7,0)) -> 0 | R7: 0 | T7: =MAX(0,IF(Q7>0,Q7-('Výstupy modelu'!$H$10-'Výstupy modelu'!$H$9),0)) -> 0 | W7: 1865.43 | X7: 1885.43 | Y7: 0 | Z7: =MAX(0,D7-'Vstupní hodnoty'!$C$5) -> 0
B8: 2017-01-01T01:15:00 | C8: 1 | D8: 184.68 | E8: =CEILING(IF(C8-C7=0,IF(H7=0,I7,IF(J7>K7,I7,E7)),'Výstupy modelu'!$C$7),1) -> 1664 | F8: 0 | G8: 0 | H8: =IF(F8=1,IF(G8>'Zdrojová data'!$C$19,0,1),"") ->  | I8: 1664 | J8: 0 | K8: =MIN(J8,'Zdrojová data'!$C$17) -> 0 | L8: 0 | M8: =L8/'Zdrojová data'!$C$16 -> 0 | N8: =M8*'Zdrojová data'!$C$13 -> 0 | O8: =N8*'Zdrojová data'!$C$14 -> 0 | P8: 0 | Q8: =IF(H8=0,D8-'Výstupy modelu'!$C$7,IF(P8=1,J8-K8,0)) -> 0 | R8: 0 | T8: =MAX(0,IF(Q8>0,Q8-('Výstupy modelu'!$H$10-'Výstupy modelu'!$H$9),0)) -> 0 | W8: 1865.43 | X8: 1885.43 | Y8: 0 | Z8: =MAX(0,D8-'Vstupní hodnoty'!$C$5) -> 0
B9: 2017-01-01T01:30:00 | C9: 1 | D9: 193.32 | E9: =CEILING(IF(C9-C8=0,IF(H8=0,I8,IF(J8>K8,I8,E8)),'Výstupy modelu'!$C$7),1) -> 1664 | F9: 0 | G9: 0 | H9: =IF(F9=1,IF(G9>'Zdrojová data'!$C$19,0,1),"") ->  | I9: 1664 | J9: 0 | K9: =MIN(J9,'Zdrojová data'!$C$17) -> 0 | L9: 0 | M9: =L9/'Zdrojová data'!$C$16 -> 0 | N9: =M9*'Zdrojová data'!$C$13 -> 0 | O9: =N9*'Zdrojová data'!$C$14 -> 0 | P9: 0 | Q9: =IF(H9=0,D9-'Výstupy modelu'!$C$7,IF(P9=1,J9-K9,0)) -> 0 | R9: 0 | T9: =MAX(0,IF(Q9>0,Q9-('Výstupy modelu'!$H$10-'Výstupy modelu'!$H$9),0)) -> 0 | W9: 1865.43 | X9: 1885.43 | Y9: 0 | Z9: =MAX(0,D9-'Vstupní hodnoty'!$C$5) -> 0
B10: 2017-01-01T01:45:00 | C10: 1 | D10: 190.08 | E10: =CEILING(IF(C10-C9=0,IF(H9=0,I9,IF(J9>K9,I9,E9)),'Výstupy modelu'!$C$7),1) -> 1664 | F10: 0 | G10: 0 | H10: =IF(F10=1,IF(G10>'Zdrojová data'!$C$19,0,1),"") ->  | I10: 1664 | J10: 0 | K10: =MIN(J10,'Zdrojová data'!$C$17) -> 0 | L10: 0 | M10: =L10/'Zdrojová data'!$C$16 -> 0 | N10: =M10*'Zdrojová data'!$C$13 -> 0 | O10: =N10*'Zdrojová data'!$C$14 -> 0 | P10: 0 | Q10: =IF(H10=0,D10-'Výstupy modelu'!$C$7,IF(P10=1,J10-K10,0)) -> 0 | R10: 0 | T10: =MAX(0,IF(Q10>0,Q10-('Výstupy modelu'!$H$10-'Výstupy modelu'!$H$9),0)) -> 0 | W10: 1865.43 | X10: 1885.43 | Y10: 0 | Z10: =MAX(0,D10-'Vstupní hodnoty'!$C$5) -> 0
B11: 2017-01-01T02:00:00 | C11: 1 | D11: 183.6 | E11: =CEILING(IF(C11-C10=0,IF(H10=0,I10,IF(J10>K10,I10,E10)),'Výstupy modelu'!$C$7),1) -> 1664 | F11: 0 | G11: 0 | H11: =IF(F11=1,IF(G11>'Zdrojová data'!$C$19,0,1),"") ->  | I11: 1664 | J11: 0 | K11: =MIN(J11,'Zdrojová data'!$C$17) -> 0 | L11: 0 | M11: =L11/'Zdrojová data'!$C$16 -> 0 | N11: =M11*'Zdrojová data'!$C$13 -> 0 | O11: =N11*'Zdrojová data'!$C$14 -> 0 | P11: 0 | Q11: =IF(H11=0,D11-'Výstupy modelu'!$C$7,IF(P11=1,J11-K11,0)) -> 0 | R11: 0 | T11: =MAX(0,IF(Q11>0,Q11-('Výstupy modelu'!$H$10-'Výstupy modelu'!$H$9),0)) -> 0 | W11: 1865.43 | X11: 1885.43 | Y11: 0 | Z11: =MAX(0,D11-'Vstupní hodnoty'!$C$5) -> 0
B12: 2017-01-01T02:15:00 | C12: 1 | D12: 185.76 | E12: =CEILING(IF(C12-C11=0,IF(H11=0,I11,IF(J11>K11,I11,E11)),'Výstupy modelu'!$C$7),1) -> 1664 | F12: 0 | G12: 0 | H12: =IF(F12=1,IF(G12>'Zdrojová data'!$C$19,0,1),"") ->  | I12: 1664 | J12: 0 | K12: =MIN(J12,'Zdrojová data'!$C$17) -> 0 | L12: 0 | M12: =L12/'Zdrojová data'!$C$16 -> 0 | N12: =M12*'Zdrojová data'!$C$13 -> 0 | O12: =N12*'Zdrojová data'!$C$14 -> 0 | P12: 0 | Q12: =IF(H12=0,D12-'Výstupy modelu'!$C$7,IF(P12=1,J12-K12,0)) -> 0 | R12: 0 | T12: =MAX(0,IF(Q12>0,Q12-('Výstupy modelu'!$H$10-'Výstupy modelu'!$H$9),0)) -> 0 | W12: 1865.43 | X12: 1885.43 | Y12: 0 | Z12: =MAX(0,D12-'Vstupní hodnoty'!$C$5) -> 0
B13: 2017-01-01T02:30:00 | C13: 1 | D13: 182.52 | E13: =CEILING(IF(C13-C12=0,IF(H12=0,I12,IF(J12>K12,I12,E12)),'Výstupy modelu'!$C$7),1) -> 1664 | F13: 0 | G13: 0 | H13: =IF(F13=1,IF(G13>'Zdrojová data'!$C$19,0,1),"") ->  | I13: 1664 | J13: 0 | K13: =MIN(J13,'Zdrojová data'!$C$17) -> 0 | L13: 0 | M13: =L13/'Zdrojová data'!$C$16 -> 0 | N13: =M13*'Zdrojová data'!$C$13 -> 0 | O13: =N13*'Zdrojová data'!$C$14 -> 0 | P13: 0 | Q13: =IF(H13=0,D13-'Výstupy modelu'!$C$7,IF(P13=1,J13-K13,0)) -> 0 | R13: 0 | T13: =MAX(0,IF(Q13>0,Q13-('Výstupy modelu'!$H$10-'Výstupy modelu'!$H$9),0)) -> 0 | W13: 1865.43 | X13: 1885.43 | Y13: 0 | Z13: =MAX(0,D13-'Vstupní hodnoty'!$C$5) -> 0
B14: 2017-01-01T02:45:00 | C14: 1 | D14: 191.16 | E14: =CEILING(IF(C14-C13=0,IF(H13=0,I13,IF(J13>K13,I13,E13)),'Výstupy modelu'!$C$7),1) -> 1664 | F14: 0 | G14: 0 | H14: =IF(F14=1,IF(G14>'Zdrojová data'!$C$19,0,1),"") ->  | I14: 1664 | J14: 0 | K14: =MIN(J14,'Zdrojová data'!$C$17) -> 0 | L14: 0 | M14: =L14/'Zdrojová data'!$C$16 -> 0 | N14: =M14*'Zdrojová data'!$C$13 -> 0 | O14: =N14*'Zdrojová data'!$C$14 -> 0 | P14: 0 | Q14: =IF(H14=0,D14-'Výstupy modelu'!$C$7,IF(P14=1,J14-K14,0)) -> 0 | R14: 0 | T14: =MAX(0,IF(Q14>0,Q14-('Výstupy modelu'!$H$10-'Výstupy modelu'!$H$9),0)) -> 0 | W14: 1865.43 | X14: 1885.43 | Y14: 0 | Z14: =MAX(0,D14-'Vstupní hodnoty'!$C$5) -> 0
B15: 2017-01-01T03:00:00 | C15: 1 | D15: 182.52 | E15: =CEILING(IF(C15-C14=0,IF(H14=0,I14,IF(J14>K14,I14,E14)),'Výstupy modelu'!$C$7),1) -> 1664 | F15: 0 | G15: 0 | H15: =IF(F15=1,IF(G15>'Zdrojová data'!$C$19,0,1),"") ->  | I15: 1664 | J15: 0 | K15: =MIN(J15,'Zdrojová data'!$C$17) -> 0 | L15: 0 | M15: =L15/'Zdrojová data'!$C$16 -> 0 | N15: =M15*'Zdrojová data'!$C$13 -> 0 | O15: =N15*'Zdrojová data'!$C$14 -> 0 | P15: 0 | Q15: =IF(H15=0,D15-'Výstupy modelu'!$C$7,IF(P15=1,J15-K15,0)) -> 0 | R15: 0 | T15: =MAX(0,IF(Q15>0,Q15-('Výstupy modelu'!$H$10-'Výstupy modelu'!$H$9),0)) -> 0 | W15: 1865.43 | X15: 1885.43 | Y15: 0 | Z15: =MAX(0,D15-'Vstupní hodnoty'!$C$5) -> 0
B16: 2017-01-01T03:15:00 | C16: 1 | D16: 186.84 | E16: =CEILING(IF(C16-C15=0,IF(H15=0,I15,IF(J15>K15,I15,E15)),'Výstupy modelu'!$C$7),1) -> 1664 | F16: 0 | G16: 0 | H16: =IF(F16=1,IF(G16>'Zdrojová data'!$C$19,0,1),"") ->  | I16: 1664 | J16: 0 | K16: =MIN(J16,'Zdrojová data'!$C$17) -> 0 | L16: 0 | M16: =L16/'Zdrojová data'!$C$16 -> 0 | N16: =M16*'Zdrojová data'!$C$13 -> 0 | O16: =N16*'Zdrojová data'!$C$14 -> 0 | P16: 0 | Q16: =IF(H16=0,D16-'Výstupy modelu'!$C$7,IF(P16=1,J16-K16,0)) -> 0 | R16: 0 | T16: =MAX(0,IF(Q16>0,Q16-('Výstupy modelu'!$H$10-'Výstupy modelu'!$H$9),0)) -> 0 | W16: 1865.43 | X16: 1885.43 | Y16: 0 | Z16: =MAX(0,D16-'Vstupní hodnoty'!$C$5) -> 0
B17: 2017-01-01T03:30:00 | C17: 1 | D17: 185.76 | E17: =CEILING(IF(C17-C16=0,IF(H16=0,I16,IF(J16>K16,I16,E16)),'Výstupy modelu'!$C$7),1) -> 1664 | F17: 0 | G17: 0 | H17: =IF(F17=1,IF(G17>'Zdrojová data'!$C$19,0,1),"") ->  | I17: 1664 | J17: 0 | K17: =MIN(J17,'Zdrojová data'!$C$17) -> 0 | L17: 0 | M17: =L17/'Zdrojová data'!$C$16 -> 0 | N17: =M17*'Zdrojová data'!$C$13 -> 0 | O17: =N17*'Zdrojová data'!$C$14 -> 0 | P17: 0 | Q17: =IF(H17=0,D17-'Výstupy modelu'!$C$7,IF(P17=1,J17-K17,0)) -> 0 | R17: 0 | T17: =MAX(0,IF(Q17>0,Q17-('Výstupy modelu'!$H$10-'Výstupy modelu'!$H$9),0)) -> 0 | W17: 1865.43 | X17: 1885.43 | Y17: 0 | Z17: =MAX(0,D17-'Vstupní hodnoty'!$C$5) -> 0
B18: 2017-01-01T03:45:00 | C18: 1 | D18: 187.92 | E18: =CEILING(IF(C18-C17=0,IF(H17=0,I17,IF(J17>K17,I17,E17)),'Výstupy modelu'!$C$7),1) -> 1664 | F18: 0 | G18: 0 | H18: =IF(F18=1,IF(G18>'Zdrojová data'!$C$19,0,1),"") ->  | I18: 1664 | J18: 0 | K18: =MIN(J18,'Zdrojová data'!$C$17) -> 0 | L18: 0 | M18: =L18/'Zdrojová data'!$C$16 -> 0 | N18: =M18*'Zdrojová data'!$C$13 -> 0 | O18: =N18*'Zdrojová data'!$C$14 -> 0 | P18: 0 | Q18: =IF(H18=0,D18-'Výstupy modelu'!$C$7,IF(P18=1,J18-K18,0)) -> 0 | R18: 0 | T18: =MAX(0,IF(Q18>0,Q18-('Výstupy modelu'!$H$10-'Výstupy modelu'!$H$9),0)) -> 0 | W18: 1865.43 | X18: 1885.43 | Y18: 0 | Z18: =MAX(0,D18-'Vstupní hodnoty'!$C$5) -> 0
B19: 2017-01-01T04:00:00 | C19: 1 | D19: 191.16 | E19: =CEILING(IF(C19-C18=0,IF(H18=0,I18,IF(J18>K18,I18,E18)),'Výstupy modelu'!$C$7),1) -> 1664 | F19: 0 | G19: 0 | H19: =IF(F19=1,IF(G19>'Zdrojová data'!$C$19,0,1),"") ->  | I19: 1664 | J19: 0 | K19: =MIN(J19,'Zdrojová data'!$C$17) -> 0 | L19: 0 | M19: =L19/'Zdrojová data'!$C$16 -> 0 | N19: =M19*'Zdrojová data'!$C$13 -> 0 | O19: =N19*'Zdrojová data'!$C$14 -> 0 | P19: 0 | Q19: =IF(H19=0,D19-'Výstupy modelu'!$C$7,IF(P19=1,J19-K19,0)) -> 0 | R19: 0 | T19: =MAX(0,IF(Q19>0,Q19-('Výstupy modelu'!$H$10-'Výstupy modelu'!$H$9),0)) -> 0 | W19: 1865.43 | X19: 1885.43 | Y19: 0 | Z19: =MAX(0,D19-'Vstupní hodnoty'!$C$5) -> 0
B20: 2017-01-01T04:15:00 | C20: 1 | D20: 184.68 | E20: =CEILING(IF(C20-C19=0,IF(H19=0,I19,IF(J19>K19,I19,E19)),'Výstupy modelu'!$C$7),1) -> 1664 | F20: 0 | G20: 0 | H20: =IF(F20=1,IF(G20>'Zdrojová data'!$C$19,0,1),"") ->  | I20: 1664 | J20: 0 | K20: =MIN(J20,'Zdrojová data'!$C$17) -> 0 | L20: 0 | M20: =L20/'Zdrojová data'!$C$16 -> 0 | N20: =M20*'Zdrojová data'!$C$13 -> 0 | O20: =N20*'Zdrojová data'!$C$14 -> 0 | P20: 0 | Q20: =IF(H20=0,D20-'Výstupy modelu'!$C$7,IF(P20=1,J20-K20,0)) -> 0 | R20: 0 | T20: =MAX(0,IF(Q20>0,Q20-('Výstupy modelu'!$H$10-'Výstupy modelu'!$H$9),0)) -> 0 | W20: 1865.43 | X20: 1885.43 | Y20: 0 | Z20: =MAX(0,D20-'Vstupní hodnoty'!$C$5) -> 0
B21: 2017-01-01T04:30:00 | C21: 1 | D21: 194.4 | E21: =CEILING(IF(C21-C20=0,IF(H20=0,I20,IF(J20>K20,I20,E20)),'Výstupy modelu'!$C$7),1) -> 1664 | F21: 0 | G21: 0 | H21: =IF(F21=1,IF(G21>'Zdrojová data'!$C$19,0,1),"") ->  | I21: 1664 | J21: 0 | K21: =MIN(J21,'Zdrojová data'!$C$17) -> 0 | L21: 0 | M21: =L21/'Zdrojová data'!$C$16 -> 0 | N21: =M21*'Zdrojová data'!$C$13 -> 0 | O21: =N21*'Zdrojová data'!$C$14 -> 0 | P21: 0 | Q21: =IF(H21=0,D21-'Výstupy modelu'!$C$7,IF(P21=1,J21-K21,0)) -> 0 | R21: 0 | T21: =MAX(0,IF(Q21>0,Q21-('Výstupy modelu'!$H$10-'Výstupy modelu'!$H$9),0)) -> 0 | W21: 1865.43 | X21: 1885.43 | Y21: 0 | Z21: =MAX(0,D21-'Vstupní hodnoty'!$C$5) -> 0
B22: 2017-01-01T04:45:00 | C22: 1 | D22: 191.16 | E22: =CEILING(IF(C22-C21=0,IF(H21=0,I21,IF(J21>K21,I21,E21)),'Výstupy modelu'!$C$7),1) -> 1664 | F22: 0 | G22: 0 | H22: =IF(F22=1,IF(G22>'Zdrojová data'!$C$19,0,1),"") ->  | I22: 1664 | J22: 0 | K22: =MIN(J22,'Zdrojová data'!$C$17) -> 0 | L22: 0 | M22: =L22/'Zdrojová data'!$C$16 -> 0 | N22: =M22*'Zdrojová data'!$C$13 -> 0 | O22: =N22*'Zdrojová data'!$C$14 -> 0 | P22: 0 | Q22: =IF(H22=0,D22-'Výstupy modelu'!$C$7,IF(P22=1,J22-K22,0)) -> 0 | R22: 0 | T22: =MAX(0,IF(Q22>0,Q22-('Výstupy modelu'!$H$10-'Výstupy modelu'!$H$9),0)) -> 0 | W22: 1865.43 | X22: 1885.43 | Y22: 0 | Z22: =MAX(0,D22-'Vstupní hodnoty'!$C$5) -> 0
B23: 2017-01-01T05:00:00 | C23: 1 | D23: 183.6 | E23: =CEILING(IF(C23-C22=0,IF(H22=0,I22,IF(J22>K22,I22,E22)),'Výstupy modelu'!$C$7),1) -> 1664 | F23: 0 | G23: 0 | H23: =IF(F23=1,IF(G23>'Zdrojová data'!$C$19,0,1),"") ->  | I23: 1664 | J23: 0 | K23: =MIN(J23,'Zdrojová data'!$C$17) -> 0 | L23: 0 | M23: =L23/'Zdrojová data'!$C$16 -> 0 | N23: =M23*'Zdrojová data'!$C$13 -> 0 | O23: =N23*'Zdrojová data'!$C$14 -> 0 | P23: 0 | Q23: =IF(H23=0,D23-'Výstupy modelu'!$C$7,IF(P23=1,J23-K23,0)) -> 0 | R23: 0 | T23: =MAX(0,IF(Q23>0,Q23-('Výstupy modelu'!$H$10-'Výstupy modelu'!$H$9),0)) -> 0 | W23: 1865.43 | X23: 1885.43 | Y23: 0 | Z23: =MAX(0,D23-'Vstupní hodnoty'!$C$5) -> 0
B24: 2017-01-01T05:15:00 | C24: 1 | D24: 190.08 | E24: =CEILING(IF(C24-C23=0,IF(H23=0,I23,IF(J23>K23,I23,E23)),'Výstupy modelu'!$C$7),1) -> 1664 | F24: 0 | G24: 0 | H24: =IF(F24=1,IF(G24>'Zdrojová data'!$C$19,0,1),"") ->  | I24: 1664 | J24: 0 | K24: =MIN(J24,'Zdrojová data'!$C$17) -> 0 | L24: 0 | M24: =L24/'Zdrojová data'!$C$16 -> 0 | N24: =M24*'Zdrojová data'!$C$13 -> 0 | O24: =N24*'Zdrojová data'!$C$14 -> 0 | P24: 0 | Q24: =IF(H24=0,D24-'Výstupy modelu'!$C$7,IF(P24=1,J24-K24,0)) -> 0 | R24: 0 | T24: =MAX(0,IF(Q24>0,Q24-('Výstupy modelu'!$H$10-'Výstupy modelu'!$H$9),0)) -> 0 | W24: 1865.43 | X24: 1885.43 | Y24: 0 | Z24: =MAX(0,D24-'Vstupní hodnoty'!$C$5) -> 0
B25: 2017-01-01T05:30:00 | C25: 1 | D25: 189 | E25: =CEILING(IF(C25-C24=0,IF(H24=0,I24,IF(J24>K24,I24,E24)),'Výstupy modelu'!$C$7),1) -> 1664 | F25: 0 | G25: 0 | H25: =IF(F25=1,IF(G25>'Zdrojová data'!$C$19,0,1),"") ->  | I25: 1664 | J25: 0 | K25: =MIN(J25,'Zdrojová data'!$C$17) -> 0 | L25: 0 | M25: =L25/'Zdrojová data'!$C$16 -> 0 | N25: =M25*'Zdrojová data'!$C$13 -> 0 | O25: =N25*'Zdrojová data'!$C$14 -> 0 | P25: 0 | Q25: =IF(H25=0,D25-'Výstupy modelu'!$C$7,IF(P25=1,J25-K25,0)) -> 0 | R25: 0 | T25: =MAX(0,IF(Q25>0,Q25-('Výstupy modelu'!$H$10-'Výstupy modelu'!$H$9),0)) -> 0 | W25: 1865.43 | X25: 1885.43 | Y25: 0 | Z25: =MAX(0,D25-'Vstupní hodnoty'!$C$5) -> 0
B26: 2017-01-01T05:45:00 | C26: 1 | D26: 187.92 | E26: =CEILING(IF(C26-C25=0,IF(H25=0,I25,IF(J25>K25,I25,E25)),'Výstupy modelu'!$C$7),1) -> 1664 | F26: 0 | G26: 0 | H26: =IF(F26=1,IF(G26>'Zdrojová data'!$C$19,0,1),"") ->  | I26: 1664 | J26: 0 | K26: =MIN(J26,'Zdrojová data'!$C$17) -> 0 | L26: 0 | M26: =L26/'Zdrojová data'!$C$16 -> 0 | N26: =M26*'Zdrojová data'!$C$13 -> 0 | O26: =N26*'Zdrojová data'!$C$14 -> 0 | P26: 0 | Q26: =IF(H26=0,D26-'Výstupy modelu'!$C$7,IF(P26=1,J26-K26,0)) -> 0 | R26: 0 | T26: =MAX(0,IF(Q26>0,Q26-('Výstupy modelu'!$H$10-'Výstupy modelu'!$H$9),0)) -> 0 | W26: 1865.43 | X26: 1885.43 | Y26: 0 | Z26: =MAX(0,D26-'Vstupní hodnoty'!$C$5) -> 0
B27: 2017-01-01T06:00:00 | C27: 1 | D27: 182.52 | E27: =CEILING(IF(C27-C26=0,IF(H26=0,I26,IF(J26>K26,I26,E26)),'Výstupy modelu'!$C$7),1) -> 1664 | F27: 0 | G27: 0 | H27: =IF(F27=1,IF(G27>'Zdrojová data'!$C$19,0,1),"") ->  | I27: 1664 | J27: 0 | K27: =MIN(J27,'Zdrojová data'!$C$17) -> 0 | L27: 0 | M27: =L27/'Zdrojová data'!$C$16 -> 0 | N27: =M27*'Zdrojová data'!$C$13 -> 0 | O27: =N27*'Zdrojová data'!$C$14 -> 0 | P27: 0 | Q27: =IF(H27=0,D27-'Výstupy modelu'!$C$7,IF(P27=1,J27-K27,0)) -> 0 | R27: 0 | T27: =MAX(0,IF(Q27>0,Q27-('Výstupy modelu'!$H$10-'Výstupy modelu'!$H$9),0)) -> 0 | W27: 1865.43 | X27: 1885.43 | Y27: 0 | Z27: =MAX(0,D27-'Vstupní hodnoty'!$C$5) -> 0
B28: 2017-01-01T06:15:00 | C28: 1 | D28: 190.08 | E28: =CEILING(IF(C28-C27=0,IF(H27=0,I27,IF(J27>K27,I27,E27)),'Výstupy modelu'!$C$7),1) -> 1664 | F28: 0 | G28: 0 | H28: =IF(F28=1,IF(G28>'Zdrojová data'!$C$19,0,1),"") ->  | I28: 1664 | J28: 0 | K28: =MIN(J28,'Zdrojová data'!$C$17) -> 0 | L28: 0 | M28: =L28/'Zdrojová data'!$C$16 -> 0 | N28: =M28*'Zdrojová data'!$C$13 -> 0 | O28: =N28*'Zdrojová data'!$C$14 -> 0 | P28: 0 | Q28: =IF(H28=0,D28-'Výstupy modelu'!$C$7,IF(P28=1,J28-K28,0)) -> 0 | R28: 0 | T28: =MAX(0,IF(Q28>0,Q28-('Výstupy modelu'!$H$10-'Výstupy modelu'!$H$9),0)) -> 0 | W28: 1865.43 | X28: 1885.43 | Y28: 0 | Z28: =MAX(0,D28-'Vstupní hodnoty'!$C$5) -> 0
B29: 2017-01-01T06:30:00 | C29: 1 | D29: 184.68 | E29: =CEILING(IF(C29-C28=0,IF(H28=0,I28,IF(J28>K28,I28,E28)),'Výstupy modelu'!$C$7),1) -> 1664 | F29: 0 | G29: 0 | H29: =IF(F29=1,IF(G29>'Zdrojová data'!$C$19,0,1),"") ->  | I29: 1664 | J29: 0 | K29: =MIN(J29,'Zdrojová data'!$C$17) -> 0 | L29: 0 | M29: =L29/'Zdrojová data'!$C$16 -> 0 | N29: =M29*'Zdrojová data'!$C$13 -> 0 | O29: =N29*'Zdrojová data'!$C$14 -> 0 | P29: 0 | Q29: =IF(H29=0,D29-'Výstupy modelu'!$C$7,IF(P29=1,J29-K29,0)) -> 0 | R29: 0 | T29: =MAX(0,IF(Q29>0,Q29-('Výstupy modelu'!$H$10-'Výstupy modelu'!$H$9),0)) -> 0 | W29: 1865.43 | X29: 1885.43 | Y29: 0 | Z29: =MAX(0,D29-'Vstupní hodnoty'!$C$5) -> 0
B30: 2017-01-01T06:45:00 | C30: 1 | D30: 181.44 | E30: =CEILING(IF(C30-C29=0,IF(H29=0,I29,IF(J29>K29,I29,E29)),'Výstupy modelu'!$C$7),1) -> 1664 | F30: 0 | G30: 0 | H30: =IF(F30=1,IF(G30>'Zdrojová data'!$C$19,0,1),"") ->  | I30: 1664 | J30: 0 | K30: =MIN(J30,'Zdrojová data'!$C$17) -> 0 | L30: 0 | M30: =L30/'Zdrojová data'!$C$16 -> 0 | N30: =M30*'Zdrojová data'!$C$13 -> 0 | O30: =N30*'Zdrojová data'!$C$14 -> 0 | P30: 0 | Q30: =IF(H30=0,D30-'Výstupy modelu'!$C$7,IF(P30=1,J30-K30,0)) -> 0 | R30: 0 | T30: =MAX(0,IF(Q30>0,Q30-('Výstupy modelu'!$H$10-'Výstupy modelu'!$H$9),0)) -> 0 | W30: 1865.43 | X30: 1885.43 | Y30: 0 | Z30: =MAX(0,D30-'Vstupní hodnoty'!$C$5) -> 0
B31: 2017-01-01T07:00:00 | C31: 1 | D31: 196.56 | E31: =CEILING(IF(C31-C30=0,IF(H30=0,I30,IF(J30>K30,I30,E30)),'Výstupy modelu'!$C$7),1) -> 1664 | F31: 0 | G31: 0 | H31: =IF(F31=1,IF(G31>'Zdrojová data'!$C$19,0,1),"") ->  | I31: 1664 | J31: 0 | K31: =MIN(J31,'Zdrojová data'!$C$17) -> 0 | L31: 0 | M31: =L31/'Zdrojová data'!$C$16 -> 0 | N31: =M31*'Zdrojová data'!$C$13 -> 0 | O31: =N31*'Zdrojová data'!$C$14 -> 0 | P31: 0 | Q31: =IF(H31=0,D31-'Výstupy modelu'!$C$7,IF(P31=1,J31-K31,0)) -> 0 | R31: 0 | T31: =MAX(0,IF(Q31>0,Q31-('Výstupy modelu'!$H$10-'Výstupy modelu'!$H$9),0)) -> 0 | W31: 1865.43 | X31: 1885.43 | Y31: 0 | Z31: =MAX(0,D31-'Vstupní hodnoty'!$C$5) -> 0
B32: 2017-01-01T07:15:00 | C32: 1 | D32: 184.68 | E32: =CEILING(IF(C32-C31=0,IF(H31=0,I31,IF(J31>K31,I31,E31)),'Výstupy modelu'!$C$7),1) -> 1664 | F32: 0 | G32: 0 | H32: =IF(F32=1,IF(G32>'Zdrojová data'!$C$19,0,1),"") ->  | I32: 1664 | J32: 0 | K32: =MIN(J32,'Zdrojová data'!$C$17) -> 0 | L32: 0 | M32: =L32/'Zdrojová data'!$C$16 -> 0 | N32: =M32*'Zdrojová data'!$C$13 -> 0 | O32: =N32*'Zdrojová data'!$C$14 -> 0 | P32: 0 | Q32: =IF(H32=0,D32-'Výstupy modelu'!$C$7,IF(P32=1,J32-K32,0)) -> 0 | R32: 0 | T32: =MAX(0,IF(Q32>0,Q32-('Výstupy modelu'!$H$10-'Výstupy modelu'!$H$9),0)) -> 0 | W32: 1865.43 | X32: 1885.43 | Y32: 0 | Z32: =MAX(0,D32-'Vstupní hodnoty'!$C$5) -> 0
B33: 2017-01-01T07:30:00 | C33: 1 | D33: 189 | E33: =CEILING(IF(C33-C32=0,IF(H32=0,I32,IF(J32>K32,I32,E32)),'Výstupy modelu'!$C$7),1) -> 1664 | F33: 0 | G33: 0 | H33: =IF(F33=1,IF(G33>'Zdrojová data'!$C$19,0,1),"") ->  | I33: 1664 | J33: 0 | K33: =MIN(J33,'Zdrojová data'!$C$17) -> 0 | L33: 0 | M33: =L33/'Zdrojová data'!$C$16 -> 0 | N33: =M33*'Zdrojová data'!$C$13 -> 0 | O33: =N33*'Zdrojová data'!$C$14 -> 0 | P33: 0 | Q33: =IF(H33=0,D33-'Výstupy modelu'!$C$7,IF(P33=1,J33-K33,0)) -> 0 | R33: 0 | T33: =MAX(0,IF(Q33>0,Q33-('Výstupy modelu'!$H$10-'Výstupy modelu'!$H$9),0)) -> 0 | W33: 1865.43 | X33: 1885.43 | Y33: 0 | Z33: =MAX(0,D33-'Vstupní hodnoty'!$C$5) -> 0
B34: 2017-01-01T07:45:00 | C34: 1 | D34: 191.16 | E34: =CEILING(IF(C34-C33=0,IF(H33=0,I33,IF(J33>K33,I33,E33)),'Výstupy modelu'!$C$7),1) -> 1664 | F34: 0 | G34: 0 | H34: =IF(F34=1,IF(G34>'Zdrojová data'!$C$19,0,1),"") ->  | I34: 1664 | J34: 0 | K34: =MIN(J34,'Zdrojová data'!$C$17) -> 0 | L34: 0 | M34: =L34/'Zdrojová data'!$C$16 -> 0 | N34: =M34*'Zdrojová data'!$C$13 -> 0 | O34: =N34*'Zdrojová data'!$C$14 -> 0 | P34: 0 | Q34: =IF(H34=0,D34-'Výstupy modelu'!$C$7,IF(P34=1,J34-K34,0)) -> 0 | R34: 0 | T34: =MAX(0,IF(Q34>0,Q34-('Výstupy modelu'!$H$10-'Výstupy modelu'!$H$9),0)) -> 0 | W34: 1865.43 | X34: 1885.43 | Y34: 0 | Z34: =MAX(0,D34-'Vstupní hodnoty'!$C$5) -> 0
B35: 2017-01-01T08:00:00 | C35: 1 | D35: 184.68 | E35: =CEILING(IF(C35-C34=0,IF(H34=0,I34,IF(J34>K34,I34,E34)),'Výstupy modelu'!$C$7),1) -> 1664 | F35: 0 | G35: 0 | H35: =IF(F35=1,IF(G35>'Zdrojová data'!$C$19,0,1),"") ->  | I35: 1664 | J35: 0 | K35: =MIN(J35,'Zdrojová data'!$C$17) -> 0 | L35: 0 | M35: =L35/'Zdrojová data'!$C$16 -> 0 | N35: =M35*'Zdrojová data'!$C$13 -> 0 | O35: =N35*'Zdrojová data'!$C$14 -> 0 | P35: 0 | Q35: =IF(H35=0,D35-'Výstupy modelu'!$C$7,IF(P35=1,J35-K35,0)) -> 0 | R35: 0 | T35: =MAX(0,IF(Q35>0,Q35-('Výstupy modelu'!$H$10-'Výstupy modelu'!$H$9),0)) -> 0 | W35: 1865.43 | X35: 1885.43 | Y35: 0 | Z35: =MAX(0,D35-'Vstupní hodnoty'!$C$5) -> 0
B36: 2017-01-01T08:15:00 | C36: 1 | D36: 181.44 | E36: =CEILING(IF(C36-C35=0,IF(H35=0,I35,IF(J35>K35,I35,E35)),'Výstupy modelu'!$C$7),1) -> 1664 | F36: 0 | G36: 0 | H36: =IF(F36=1,IF(G36>'Zdrojová data'!$C$19,0,1),"") ->  | I36: 1664 | J36: 0 | K36: =MIN(J36,'Zdrojová data'!$C$17) -> 0 | L36: 0 | M36: =L36/'Zdrojová data'!$C$16 -> 0 | N36: =M36*'Zdrojová data'!$C$13 -> 0 | O36: =N36*'Zdrojová data'!$C$14 -> 0 | P36: 0 | Q36: =IF(H36=0,D36-'Výstupy modelu'!$C$7,IF(P36=1,J36-K36,0)) -> 0 | R36: 0 | T36: =MAX(0,IF(Q36>0,Q36-('Výstupy modelu'!$H$10-'Výstupy modelu'!$H$9),0)) -> 0 | W36: 1865.43 | X36: 1885.43 | Y36: 0 | Z36: =MAX(0,D36-'Vstupní hodnoty'!$C$5) -> 0
B37: 2017-01-01T08:30:00 | C37: 1 | D37: 182.52 | E37: =CEILING(IF(C37-C36=0,IF(H36=0,I36,IF(J36>K36,I36,E36)),'Výstupy modelu'!$C$7),1) -> 1664 | F37: 0 | G37: 0 | H37: =IF(F37=1,IF(G37>'Zdrojová data'!$C$19,0,1),"") ->  | I37: 1664 | J37: 0 | K37: =MIN(J37,'Zdrojová data'!$C$17) -> 0 | L37: 0 | M37: =L37/'Zdrojová data'!$C$16 -> 0 | N37: =M37*'Zdrojová data'!$C$13 -> 0 | O37: =N37*'Zdrojová data'!$C$14 -> 0 | P37: 0 | Q37: =IF(H37=0,D37-'Výstupy modelu'!$C$7,IF(P37=1,J37-K37,0)) -> 0 | R37: 0 | T37: =MAX(0,IF(Q37>0,Q37-('Výstupy modelu'!$H$10-'Výstupy modelu'!$H$9),0)) -> 0 | W37: 1865.43 | X37: 1885.43 | Y37: 0 | Z37: =MAX(0,D37-'Vstupní hodnoty'!$C$5) -> 0
B38: 2017-01-01T08:45:00 | C38: 1 | D38: 184.68 | E38: =CEILING(IF(C38-C37=0,IF(H37=0,I37,IF(J37>K37,I37,E37)),'Výstupy modelu'!$C$7),1) -> 1664 | F38: 0 | G38: 0 | H38: =IF(F38=1,IF(G38>'Zdrojová data'!$C$19,0,1),"") ->  | I38: 1664 | J38: 0 | K38: =MIN(J38,'Zdrojová data'!$C$17) -> 0 | L38: 0 | M38: =L38/'Zdrojová data'!$C$16 -> 0 | N38: =M38*'Zdrojová data'!$C$13 -> 0 | O38: =N38*'Zdrojová data'!$C$14 -> 0 | P38: 0 | Q38: =IF(H38=0,D38-'Výstupy modelu'!$C$7,IF(P38=1,J38-K38,0)) -> 0 | R38: 0 | T38: =MAX(0,IF(Q38>0,Q38-('Výstupy modelu'!$H$10-'Výstupy modelu'!$H$9),0)) -> 0 | W38: 1865.43 | X38: 1885.43 | Y38: 0 | Z38: =MAX(0,D38-'Vstupní hodnoty'!$C$5) -> 0
B39: 2017-01-01T09:00:00 | C39: 1 | D39: 179.28 | E39: =CEILING(IF(C39-C38=0,IF(H38=0,I38,IF(J38>K38,I38,E38)),'Výstupy modelu'!$C$7),1) -> 1664 | F39: 0 | G39: 0 | H39: =IF(F39=1,IF(G39>'Zdrojová data'!$C$19,0,1),"") ->  | I39: 1664 | J39: 0 | K39: =MIN(J39,'Zdrojová data'!$C$17) -> 0 | L39: 0 | M39: =L39/'Zdrojová data'!$C$16 -> 0 | N39: =M39*'Zdrojová data'!$C$13 -> 0 | O39: =N39*'Zdrojová data'!$C$14 -> 0 | P39: 0 | Q39: =IF(H39=0,D39-'Výstupy modelu'!$C$7,IF(P39=1,J39-K39,0)) -> 0 | R39: 0 | T39: =MAX(0,IF(Q39>0,Q39-('Výstupy modelu'!$H$10-'Výstupy modelu'!$H$9),0)) -> 0 | W39: 1865.43 | X39: 1885.43 | Y39: 0 | Z39: =MAX(0,D39-'Vstupní hodnoty'!$C$5) -> 0
B40: 2017-01-01T09:15:00 | C40: 1 | D40: 184.68 | E40: =CEILING(IF(C40-C39=0,IF(H39=0,I39,IF(J39>K39,I39,E39)),'Výstupy modelu'!$C$7),1) -> 1664 | F40: 0 | G40: 0 | H40: =IF(F40=1,IF(G40>'Zdrojová data'!$C$19,0,1),"") ->  | I40: 1664 | J40: 0 | K40: =MIN(J40,'Zdrojová data'!$C$17) -> 0 | L40: 0 | M40: =L40/'Zdrojová data'!$C$16 -> 0 | N40: =M40*'Zdrojová data'!$C$13 -> 0 | O40: =N40*'Zdrojová data'!$C$14 -> 0 | P40: 0 | Q40: =IF(H40=0,D40-'Výstupy modelu'!$C$7,IF(P40=1,J40-K40,0)) -> 0 | R40: 0 | T40: =MAX(0,IF(Q40>0,Q40-('Výstupy modelu'!$H$10-'Výstupy modelu'!$H$9),0)) -> 0 | W40: 1865.43 | X40: 1885.43 | Y40: 0 | Z40: =MAX(0,D40-'Vstupní hodnoty'!$C$5) -> 0
B41: 2017-01-01T09:30:00 | C41: 1 | D41: 181.44 | E41: =CEILING(IF(C41-C40=0,IF(H40=0,I40,IF(J40>K40,I40,E40)),'Výstupy modelu'!$C$7),1) -> 1664 | F41: 0 | G41: 0 | H41: =IF(F41=1,IF(G41>'Zdrojová data'!$C$19,0,1),"") ->  | I41: 1664 | J41: 0 | K41: =MIN(J41,'Zdrojová data'!$C$17) -> 0 | L41: 0 | M41: =L41/'Zdrojová data'!$C$16 -> 0 | N41: =M41*'Zdrojová data'!$C$13 -> 0 | O41: =N41*'Zdrojová data'!$C$14 -> 0 | P41: 0 | Q41: =IF(H41=0,D41-'Výstupy modelu'!$C$7,IF(P41=1,J41-K41,0)) -> 0 | R41: 0 | T41: =MAX(0,IF(Q41>0,Q41-('Výstupy modelu'!$H$10-'Výstupy modelu'!$H$9),0)) -> 0 | W41: 1865.43 | X41: 1885.43 | Y41: 0 | Z41: =MAX(0,D41-'Vstupní hodnoty'!$C$5) -> 0
B42: 2017-01-01T09:45:00 | C42: 1 | D42: 177.12 | E42: =CEILING(IF(C42-C41=0,IF(H41=0,I41,IF(J41>K41,I41,E41)),'Výstupy modelu'!$C$7),1) -> 1664 | F42: 0 | G42: 0 | H42: =IF(F42=1,IF(G42>'Zdrojová data'!$C$19,0,1),"") ->  | I42: 1664 | J42: 0 | K42: =MIN(J42,'Zdrojová data'!$C$17) -> 0 | L42: 0 | M42: =L42/'Zdrojová data'!$C$16 -> 0 | N42: =M42*'Zdrojová data'!$C$13 -> 0 | O42: =N42*'Zdrojová data'!$C$14 -> 0 | P42: 0 | Q42: =IF(H42=0,D42-'Výstupy modelu'!$C$7,IF(P42=1,J42-K42,0)) -> 0 | R42: 0 | T42: =MAX(0,IF(Q42>0,Q42-('Výstupy modelu'!$H$10-'Výstupy modelu'!$H$9),0)) -> 0 | W42: 1865.43 | X42: 1885.43 | Y42: 0 | Z42: =MAX(0,D42-'Vstupní hodnoty'!$C$5) -> 0
B43: 2017-01-01T10:00:00 | C43: 1 | D43: 177.12 | E43: =CEILING(IF(C43-C42=0,IF(H42=0,I42,IF(J42>K42,I42,E42)),'Výstupy modelu'!$C$7),1) -> 1664 | F43: 0 | G43: 0 | H43: =IF(F43=1,IF(G43>'Zdrojová data'!$C$19,0,1),"") ->  | I43: 1664 | J43: 0 | K43: =MIN(J43,'Zdrojová data'!$C$17) -> 0 | L43: 0 | M43: =L43/'Zdrojová data'!$C$16 -> 0 | N43: =M43*'Zdrojová data'!$C$13 -> 0 | O43: =N43*'Zdrojová data'!$C$14 -> 0 | P43: 0 | Q43: =IF(H43=0,D43-'Výstupy modelu'!$C$7,IF(P43=1,J43-K43,0)) -> 0 | R43: 0 | T43: =MAX(0,IF(Q43>0,Q43-('Výstupy modelu'!$H$10-'Výstupy modelu'!$H$9),0)) -> 0 | W43: 1865.43 | X43: 1885.43 | Y43: 0 | Z43: =MAX(0,D43-'Vstupní hodnoty'!$C$5) -> 0
B44: 2017-01-01T10:15:00 | C44: 1 | D44: 177.12 | E44: =CEILING(IF(C44-C43=0,IF(H43=0,I43,IF(J43>K43,I43,E43)),'Výstupy modelu'!$C$7),1) -> 1664 | F44: 0 | G44: 0 | H44: =IF(F44=1,IF(G44>'Zdrojová data'!$C$19,0,1),"") ->  | I44: 1664 | J44: 0 | K44: =MIN(J44,'Zdrojová data'!$C$17) -> 0 | L44: 0 | M44: =L44/'Zdrojová data'!$C$16 -> 0 | N44: =M44*'Zdrojová data'!$C$13 -> 0 | O44: =N44*'Zdrojová data'!$C$14 -> 0 | P44: 0 | Q44: =IF(H44=0,D44-'Výstupy modelu'!$C$7,IF(P44=1,J44-K44,0)) -> 0 | R44: 0 | T44: =MAX(0,IF(Q44>0,Q44-('Výstupy modelu'!$H$10-'Výstupy modelu'!$H$9),0)) -> 0 | W44: 1865.43 | X44: 1885.43 | Y44: 0 | Z44: =MAX(0,D44-'Vstupní hodnoty'!$C$5) -> 0
B45: 2017-01-01T10:30:00 | C45: 1 | D45: 183.6 | E45: =CEILING(IF(C45-C44=0,IF(H44=0,I44,IF(J44>K44,I44,E44)),'Výstupy modelu'!$C$7),1) -> 1664 | F45: 0 | G45: 0 | H45: =IF(F45=1,IF(G45>'Zdrojová data'!$C$19,0,1),"") ->  | I45: 1664 | J45: 0 | K45: =MIN(J45,'Zdrojová data'!$C$17) -> 0 | L45: 0 | M45: =L45/'Zdrojová data'!$C$16 -> 0 | N45: =M45*'Zdrojová data'!$C$13 -> 0 | O45: =N45*'Zdrojová data'!$C$14 -> 0 | P45: 0 | Q45: =IF(H45=0,D45-'Výstupy modelu'!$C$7,IF(P45=1,J45-K45,0)) -> 0 | R45: 0 | T45: =MAX(0,IF(Q45>0,Q45-('Výstupy modelu'!$H$10-'Výstupy modelu'!$H$9),0)) -> 0 | W45: 1865.43 | X45: 1885.43 | Y45: 0 | Z45: =MAX(0,D45-'Vstupní hodnoty'!$C$5) -> 0
B46: 2017-01-01T10:45:00 | C46: 1 | D46: 178.2 | E46: =CEILING(IF(C46-C45=0,IF(H45=0,I45,IF(J45>K45,I45,E45)),'Výstupy modelu'!$C$7),1) -> 1664 | F46: 0 | G46: 0 | H46: =IF(F46=1,IF(G46>'Zdrojová data'!$C$19,0,1),"") ->  | I46: 1664 | J46: 0 | K46: =MIN(J46,'Zdrojová data'!$C$17) -> 0 | L46: 0 | M46: =L46/'Zdrojová data'!$C$16 -> 0 | N46: =M46*'Zdrojová data'!$C$13 -> 0 | O46: =N46*'Zdrojová data'!$C$14 -> 0 | P46: 0 | Q46: =IF(H46=0,D46-'Výstupy modelu'!$C$7,IF(P46=1,J46-K46,0)) -> 0 | R46: 0 | T46: =MAX(0,IF(Q46>0,Q46-('Výstupy modelu'!$H$10-'Výstupy modelu'!$H$9),0)) -> 0 | W46: 1865.43 | X46: 1885.43 | Y46: 0 | Z46: =MAX(0,D46-'Vstupní hodnoty'!$C$5) -> 0
B47: 2017-01-01T11:00:00 | C47: 1 | D47: 181.44 | E47: =CEILING(IF(C47-C46=0,IF(H46=0,I46,IF(J46>K46,I46,E46)),'Výstupy modelu'!$C$7),1) -> 1664 | F47: 0 | G47: 0 | H47: =IF(F47=1,IF(G47>'Zdrojová data'!$C$19,0,1),"") ->  | I47: 1664 | J47: 0 | K47: =MIN(J47,'Zdrojová data'!$C$17) -> 0 | L47: 0 | M47: =L47/'Zdrojová data'!$C$16 -> 0 | N47: =M47*'Zdrojová data'!$C$13 -> 0 | O47: =N47*'Zdrojová data'!$C$14 -> 0 | P47: 0 | Q47: =IF(H47=0,D47-'Výstupy modelu'!$C$7,IF(P47=1,J47-K47,0)) -> 0 | R47: 0 | T47: =MAX(0,IF(Q47>0,Q47-('Výstupy modelu'!$H$10-'Výstupy modelu'!$H$9),0)) -> 0 | W47: 1865.43 | X47: 1885.43 | Y47: 0 | Z47: =MAX(0,D47-'Vstupní hodnoty'!$C$5) -> 0
B48: 2017-01-01T11:15:00 | C48: 1 | D48: 186.84 | E48: =CEILING(IF(C48-C47=0,IF(H47=0,I47,IF(J47>K47,I47,E47)),'Výstupy modelu'!$C$7),1) -> 1664 | F48: 0 | G48: 0 | H48: =IF(F48=1,IF(G48>'Zdrojová data'!$C$19,0,1),"") ->  | I48: 1664 | J48: 0 | K48: =MIN(J48,'Zdrojová data'!$C$17) -> 0 | L48: 0 | M48: =L48/'Zdrojová data'!$C$16 -> 0 | N48: =M48*'Zdrojová data'!$C$13 -> 0 | O48: =N48*'Zdrojová data'!$C$14 -> 0 | P48: 0 | Q48: =IF(H48=0,D48-'Výstupy modelu'!$C$7,IF(P48=1,J48-K48,0)) -> 0 | R48: 0 | T48: =MAX(0,IF(Q48>0,Q48-('Výstupy modelu'!$H$10-'Výstupy modelu'!$H$9),0)) -> 0 | W48: 1865.43 | X48: 1885.43 | Y48: 0 | Z48: =MAX(0,D48-'Vstupní hodnoty'!$C$5) -> 0
B49: 2017-01-01T11:30:00 | C49: 1 | D49: 194.4 | E49: =CEILING(IF(C49-C48=0,IF(H48=0,I48,IF(J48>K48,I48,E48)),'Výstupy modelu'!$C$7),1) -> 1664 | F49: 0 | G49: 0 | H49: =IF(F49=1,IF(G49>'Zdrojová data'!$C$19,0,1),"") ->  | I49: 1664 | J49: 0 | K49: =MIN(J49,'Zdrojová data'!$C$17) -> 0 | L49: 0 | M49: =L49/'Zdrojová data'!$C$16 -> 0 | N49: =M49*'Zdrojová data'!$C$13 -> 0 | O49: =N49*'Zdrojová data'!$C$14 -> 0 | P49: 0 | Q49: =IF(H49=0,D49-'Výstupy modelu'!$C$7,IF(P49=1,J49-K49,0)) -> 0 | R49: 0 | T49: =MAX(0,IF(Q49>0,Q49-('Výstupy modelu'!$H$10-'Výstupy modelu'!$H$9),0)) -> 0 | W49: 1865.43 | X49: 1885.43 | Y49: 0 | Z49: =MAX(0,D49-'Vstupní hodnoty'!$C$5) -> 0
B50: 2017-01-01T11:45:00 | C50: 1 | D50: 190.08 | E50: =CEILING(IF(C50-C49=0,IF(H49=0,I49,IF(J49>K49,I49,E49)),'Výstupy modelu'!$C$7),1) -> 1664 | F50: 0 | G50: 0 | H50: =IF(F50=1,IF(G50>'Zdrojová data'!$C$19,0,1),"") ->  | I50: 1664 | J50: 0 | K50: =MIN(J50,'Zdrojová data'!$C$17) -> 0 | L50: 0 | M50: =L50/'Zdrojová data'!$C$16 -> 0 | N50: =M50*'Zdrojová data'!$C$13 -> 0 | O50: =N50*'Zdrojová data'!$C$14 -> 0 | P50: 0 | Q50: =IF(H50=0,D50-'Výstupy modelu'!$C$7,IF(P50=1,J50-K50,0)) -> 0 | R50: 0 | T50: =MAX(0,IF(Q50>0,Q50-('Výstupy modelu'!$H$10-'Výstupy modelu'!$H$9),0)) -> 0 | W50: 1865.43 | X50: 1885.43 | Y50: 0 | Z50: =MAX(0,D50-'Vstupní hodnoty'!$C$5) -> 0
B51: 2017-01-01T12:00:00 | C51: 1 | D51: 186.84 | E51: =CEILING(IF(C51-C50=0,IF(H50=0,I50,IF(J50>K50,I50,E50)),'Výstupy modelu'!$C$7),1) -> 1664 | F51: 0 | G51: 0 | H51: =IF(F51=1,IF(G51>'Zdrojová data'!$C$19,0,1),"") ->  | I51: 1664 | J51: 0 | K51: =MIN(J51,'Zdrojová data'!$C$17) -> 0 | L51: 0 | M51: =L51/'Zdrojová data'!$C$16 -> 0 | N51: =M51*'Zdrojová data'!$C$13 -> 0 | O51: =N51*'Zdrojová data'!$C$14 -> 0 | P51: 0 | Q51: =IF(H51=0,D51-'Výstupy modelu'!$C$7,IF(P51=1,J51-K51,0)) -> 0 | R51: 0 | T51: =MAX(0,IF(Q51>0,Q51-('Výstupy modelu'!$H$10-'Výstupy modelu'!$H$9),0)) -> 0 | W51: 1865.43 | X51: 1885.43 | Y51: 0 | Z51: =MAX(0,D51-'Vstupní hodnoty'!$C$5) -> 0
B52: 2017-01-01T12:15:00 | C52: 1 | D52: 183.6 | E52: =CEILING(IF(C52-C51=0,IF(H51=0,I51,IF(J51>K51,I51,E51)),'Výstupy modelu'!$C$7),1) -> 1664 | F52: 0 | G52: 0 | H52: =IF(F52=1,IF(G52>'Zdrojová data'!$C$19,0,1),"") ->  | I52: 1664 | J52: 0 | K52: =MIN(J52,'Zdrojová data'!$C$17) -> 0 | L52: 0 | M52: =L52/'Zdrojová data'!$C$16 -> 0 | N52: =M52*'Zdrojová data'!$C$13 -> 0 | O52: =N52*'Zdrojová data'!$C$14 -> 0 | P52: 0 | Q52: =IF(H52=0,D52-'Výstupy modelu'!$C$7,IF(P52=1,J52-K52,0)) -> 0 | R52: 0 | T52: =MAX(0,IF(Q52>0,Q52-('Výstupy modelu'!$H$10-'Výstupy modelu'!$H$9),0)) -> 0 | W52: 1865.43 | X52: 1885.43 | Y52: 0 | Z52: =MAX(0,D52-'Vstupní hodnoty'!$C$5) -> 0
B53: 2017-01-01T12:30:00 | C53: 1 | D53: 185.76 | E53: =CEILING(IF(C53-C52=0,IF(H52=0,I52,IF(J52>K52,I52,E52)),'Výstupy modelu'!$C$7),1) -> 1664 | F53: 0 | G53: 0 | H53: =IF(F53=1,IF(G53>'Zdrojová data'!$C$19,0,1),"") ->  | I53: 1664 | J53: 0 | K53: =MIN(J53,'Zdrojová data'!$C$17) -> 0 | L53: 0 | M53: =L53/'Zdrojová data'!$C$16 -> 0 | N53: =M53*'Zdrojová data'!$C$13 -> 0 | O53: =N53*'Zdrojová data'!$C$14 -> 0 | P53: 0 | Q53: =IF(H53=0,D53-'Výstupy modelu'!$C$7,IF(P53=1,J53-K53,0)) -> 0 | R53: 0 | T53: =MAX(0,IF(Q53>0,Q53-('Výstupy modelu'!$H$10-'Výstupy modelu'!$H$9),0)) -> 0 | W53: 1865.43 | X53: 1885.43 | Y53: 0 | Z53: =MAX(0,D53-'Vstupní hodnoty'!$C$5) -> 0
B54: 2017-01-01T12:45:00 | C54: 1 | D54: 183.6 | E54: =CEILING(IF(C54-C53=0,IF(H53=0,I53,IF(J53>K53,I53,E53)),'Výstupy modelu'!$C$7),1) -> 1664 | F54: 0 | G54: 0 | H54: =IF(F54=1,IF(G54>'Zdrojová data'!$C$19,0,1),"") ->  | I54: 1664 | J54: 0 | K54: =MIN(J54,'Zdrojová data'!$C$17) -> 0 | L54: 0 | M54: =L54/'Zdrojová data'!$C$16 -> 0 | N54: =M54*'Zdrojová data'!$C$13 -> 0 | O54: =N54*'Zdrojová data'!$C$14 -> 0 | P54: 0 | Q54: =IF(H54=0,D54-'Výstupy modelu'!$C$7,IF(P54=1,J54-K54,0)) -> 0 | R54: 0 | T54: =MAX(0,IF(Q54>0,Q54-('Výstupy modelu'!$H$10-'Výstupy modelu'!$H$9),0)) -> 0 | W54: 1865.43 | X54: 1885.43 | Y54: 0 | Z54: =MAX(0,D54-'Vstupní hodnoty'!$C$5) -> 0
B55: 2017-01-01T13:00:00 | C55: 1 | D55: 182.52 | E55: =CEILING(IF(C55-C54=0,IF(H54=0,I54,IF(J54>K54,I54,E54)),'Výstupy modelu'!$C$7),1) -> 1664 | F55: 0 | G55: 0 | H55: =IF(F55=1,IF(G55>'Zdrojová data'!$C$19,0,1),"") ->  | I55: 1664 | J55: 0 | K55: =MIN(J55,'Zdrojová data'!$C$17) -> 0 | L55: 0 | M55: =L55/'Zdrojová data'!$C$16 -> 0 | N55: =M55*'Zdrojová data'!$C$13 -> 0 | O55: =N55*'Zdrojová data'!$C$14 -> 0 | P55: 0 | Q55: =IF(H55=0,D55-'Výstupy modelu'!$C$7,IF(P55=1,J55-K55,0)) -> 0 | R55: 0 | T55: =MAX(0,IF(Q55>0,Q55-('Výstupy modelu'!$H$10-'Výstupy modelu'!$H$9),0)) -> 0 | W55: 1865.43 | X55: 1885.43 | Y55: 0 | Z55: =MAX(0,D55-'Vstupní hodnoty'!$C$5) -> 0
B56: 2017-01-01T13:15:00 | C56: 1 | D56: 177.12 | E56: =CEILING(IF(C56-C55=0,IF(H55=0,I55,IF(J55>K55,I55,E55)),'Výstupy modelu'!$C$7),1) -> 1664 | F56: 0 | G56: 0 | H56: =IF(F56=1,IF(G56>'Zdrojová data'!$C$19,0,1),"") ->  | I56: 1664 | J56: 0 | K56: =MIN(J56,'Zdrojová data'!$C$17) -> 0 | L56: 0 | M56: =L56/'Zdrojová data'!$C$16 -> 0 | N56: =M56*'Zdrojová data'!$C$13 -> 0 | O56: =N56*'Zdrojová data'!$C$14 -> 0 | P56: 0 | Q56: =IF(H56=0,D56-'Výstupy modelu'!$C$7,IF(P56=1,J56-K56,0)) -> 0 | R56: 0 | T56: =MAX(0,IF(Q56>0,Q56-('Výstupy modelu'!$H$10-'Výstupy modelu'!$H$9),0)) -> 0 | W56: 1865.43 | X56: 1885.43 | Y56: 0 | Z56: =MAX(0,D56-'Vstupní hodnoty'!$C$5) -> 0
B57: 2017-01-01T13:30:00 | C57: 1 | D57: 176.04 | E57: =CEILING(IF(C57-C56=0,IF(H56=0,I56,IF(J56>K56,I56,E56)),'Výstupy modelu'!$C$7),1) -> 1664 | F57: 0 | G57: 0 | H57: =IF(F57=1,IF(G57>'Zdrojová data'!$C$19,0,1),"") ->  | I57: 1664 | J57: 0 | K57: =MIN(J57,'Zdrojová data'!$C$17) -> 0 | L57: 0 | M57: =L57/'Zdrojová data'!$C$16 -> 0 | N57: =M57*'Zdrojová data'!$C$13 -> 0 | O57: =N57*'Zdrojová data'!$C$14 -> 0 | P57: 0 | Q57: =IF(H57=0,D57-'Výstupy modelu'!$C$7,IF(P57=1,J57-K57,0)) -> 0 | R57: 0 | T57: =MAX(0,IF(Q57>0,Q57-('Výstupy modelu'!$H$10-'Výstupy modelu'!$H$9),0)) -> 0 | W57: 1865.43 | X57: 1885.43 | Y57: 0 | Z57: =MAX(0,D57-'Vstupní hodnoty'!$C$5) -> 0
B58: 2017-01-01T13:45:00 | C58: 1 | D58: 173.88 | E58: =CEILING(IF(C58-C57=0,IF(H57=0,I57,IF(J57>K57,I57,E57)),'Výstupy modelu'!$C$7),1) -> 1664 | F58: 0 | G58: 0 | H58: =IF(F58=1,IF(G58>'Zdrojová data'!$C$19,0,1),"") ->  | I58: 1664 | J58: 0 | K58: =MIN(J58,'Zdrojová data'!$C$17) -> 0 | L58: 0 | M58: =L58/'Zdrojová data'!$C$16 -> 0 | N58: =M58*'Zdrojová data'!$C$13 -> 0 | O58: =N58*'Zdrojová data'!$C$14 -> 0 | P58: 0 | Q58: =IF(H58=0,D58-'Výstupy modelu'!$C$7,IF(P58=1,J58-K58,0)) -> 0 | R58: 0 | T58: =MAX(0,IF(Q58>0,Q58-('Výstupy modelu'!$H$10-'Výstupy modelu'!$H$9),0)) -> 0 | W58: 1865.43 | X58: 1885.43 | Y58: 0 | Z58: =MAX(0,D58-'Vstupní hodnoty'!$C$5) -> 0
B59: 2017-01-01T14:00:00 | C59: 1 | D59: 176.04 | E59: =CEILING(IF(C59-C58=0,IF(H58=0,I58,IF(J58>K58,I58,E58)),'Výstupy modelu'!$C$7),1) -> 1664 | F59: 0 | G59: 0 | H59: =IF(F59=1,IF(G59>'Zdrojová data'!$C$19,0,1),"") ->  | I59: 1664 | J59: 0 | K59: =MIN(J59,'Zdrojová data'!$C$17) -> 0 | L59: 0 | M59: =L59/'Zdrojová data'!$C$16 -> 0 | N59: =M59*'Zdrojová data'!$C$13 -> 0 | O59: =N59*'Zdrojová data'!$C$14 -> 0 | P59: 0 | Q59: =IF(H59=0,D59-'Výstupy modelu'!$C$7,IF(P59=1,J59-K59,0)) -> 0 | R59: 0 | T59: =MAX(0,IF(Q59>0,Q59-('Výstupy modelu'!$H$10-'Výstupy modelu'!$H$9),0)) -> 0 | W59: 1865.43 | X59: 1885.43 | Y59: 0 | Z59: =MAX(0,D59-'Vstupní hodnoty'!$C$5) -> 0
B60: 2017-01-01T14:15:00 | C60: 1 | D60: 181.44 | E60: =CEILING(IF(C60-C59=0,IF(H59=0,I59,IF(J59>K59,I59,E59)),'Výstupy modelu'!$C$7),1) -> 1664 | F60: 0 | G60: 0 | H60: =IF(F60=1,IF(G60>'Zdrojová data'!$C$19,0,1),"") ->  | I60: 1664 | J60: 0 | K60: =MIN(J60,'Zdrojová data'!$C$17) -> 0 | L60: 0 | M60: =L60/'Zdrojová data'!$C$16 -> 0 | N60: =M60*'Zdrojová data'!$C$13 -> 0 | O60: =N60*'Zdrojová data'!$C$14 -> 0 | P60: 0 | Q60: =IF(H60=0,D60-'Výstupy modelu'!$C$7,IF(P60=1,J60-K60,0)) -> 0 | R60: 0 | T60: =MAX(0,IF(Q60>0,Q60-('Výstupy modelu'!$H$10-'Výstupy modelu'!$H$9),0)) -> 0 | W60: 1865.43 | X60: 1885.43 | Y60: 0 | Z60: =MAX(0,D60-'Vstupní hodnoty'!$C$5) -> 0
B61: 2017-01-01T14:30:00 | C61: 1 | D61: 234.36 | E61: =CEILING(IF(C61-C60=0,IF(H60=0,I60,IF(J60>K60,I60,E60)),'Výstupy modelu'!$C$7),1) -> 1664 | F61: 0 | G61: 0 | H61: =IF(F61=1,IF(G61>'Zdrojová data'!$C$19,0,1),"") ->  | I61: 1664 | J61: 0 | K61: =MIN(J61,'Zdrojová data'!$C$17) -> 0 | L61: 0 | M61: =L61/'Zdrojová data'!$C$16 -> 0 | N61: =M61*'Zdrojová data'!$C$13 -> 0 | O61: =N61*'Zdrojová data'!$C$14 -> 0 | P61: 0 | Q61: =IF(H61=0,D61-'Výstupy modelu'!$C$7,IF(P61=1,J61-K61,0)) -> 0 | R61: 0 | T61: =MAX(0,IF(Q61>0,Q61-('Výstupy modelu'!$H$10-'Výstupy modelu'!$H$9),0)) -> 0 | W61: 1865.43 | X61: 1885.43 | Y61: 0 | Z61: =MAX(0,D61-'Vstupní hodnoty'!$C$5) -> 0
B62: 2017-01-01T14:45:00 | C62: 1 | D62: 231.12 | E62: =CEILING(IF(C62-C61=0,IF(H61=0,I61,IF(J61>K61,I61,E61)),'Výstupy modelu'!$C$7),1) -> 1664 | F62: 0 | G62: 0 | H62: =IF(F62=1,IF(G62>'Zdrojová data'!$C$19,0,1),"") ->  | I62: 1664 | J62: 0 | K62: =MIN(J62,'Zdrojová data'!$C$17) -> 0 | L62: 0 | M62: =L62/'Zdrojová data'!$C$16 -> 0 | N62: =M62*'Zdrojová data'!$C$13 -> 0 | O62: =N62*'Zdrojová data'!$C$14 -> 0 | P62: 0 | Q62: =IF(H62=0,D62-'Výstupy modelu'!$C$7,IF(P62=1,J62-K62,0)) -> 0 | R62: 0 | T62: =MAX(0,IF(Q62>0,Q62-('Výstupy modelu'!$H$10-'Výstupy modelu'!$H$9),0)) -> 0 | W62: 1865.43 | X62: 1885.43 | Y62: 0 | Z62: =MAX(0,D62-'Vstupní hodnoty'!$C$5) -> 0
B63: 2017-01-01T15:00:00 | C63: 1 | D63: 241.92 | E63: =CEILING(IF(C63-C62=0,IF(H62=0,I62,IF(J62>K62,I62,E62)),'Výstupy modelu'!$C$7),1) -> 1664 | F63: 0 | G63: 0 | H63: =IF(F63=1,IF(G63>'Zdrojová data'!$C$19,0,1),"") ->  | I63: 1664 | J63: 0 | K63: =MIN(J63,'Zdrojová data'!$C$17) -> 0 | L63: 0 | M63: =L63/'Zdrojová data'!$C$16 -> 0 | N63: =M63*'Zdrojová data'!$C$13 -> 0 | O63: =N63*'Zdrojová data'!$C$14 -> 0 | P63: 0 | Q63: =IF(H63=0,D63-'Výstupy modelu'!$C$7,IF(P63=1,J63-K63,0)) -> 0 | R63: 0 | T63: =MAX(0,IF(Q63>0,Q63-('Výstupy modelu'!$H$10-'Výstupy modelu'!$H$9),0)) -> 0 | W63: 1865.43 | X63: 1885.43 | Y63: 0 | Z63: =MAX(0,D63-'Vstupní hodnoty'!$C$5) -> 0
B64: 2017-01-01T15:15:00 | C64: 1 | D64: 253.8 | E64: =CEILING(IF(C64-C63=0,IF(H63=0,I63,IF(J63>K63,I63,E63)),'Výstupy modelu'!$C$7),1) -> 1664 | F64: 0 | G64: 0 | H64: =IF(F64=1,IF(G64>'Zdrojová data'!$C$19,0,1),"") ->  | I64: 1664 | J64: 0 | K64: =MIN(J64,'Zdrojová data'!$C$17) -> 0 | L64: 0 | M64: =L64/'Zdrojová data'!$C$16 -> 0 | N64: =M64*'Zdrojová data'!$C$13 -> 0 | O64: =N64*'Zdrojová data'!$C$14 -> 0 | P64: 0 | Q64: =IF(H64=0,D64-'Výstupy modelu'!$C$7,IF(P64=1,J64-K64,0)) -> 0 | R64: 0 | T64: =MAX(0,IF(Q64>0,Q64-('Výstupy modelu'!$H$10-'Výstupy modelu'!$H$9),0)) -> 0 | W64: 1865.43 | X64: 1885.43 | Y64: 0 | Z64: =MAX(0,D64-'Vstupní hodnoty'!$C$5) -> 0
B65: 2017-01-01T15:30:00 | C65: 1 | D65: 262.44 | E65: =CEILING(IF(C65-C64=0,IF(H64=0,I64,IF(J64>K64,I64,E64)),'Výstupy modelu'!$C$7),1) -> 1664 | F65: 0 | G65: 0 | H65: =IF(F65=1,IF(G65>'Zdrojová data'!$C$19,0,1),"") ->  | I65: 1664 | J65: 0 | K65: =MIN(J65,'Zdrojová data'!$C$17) -> 0 | L65: 0 | M65: =L65/'Zdrojová data'!$C$16 -> 0 | N65: =M65*'Zdrojová data'!$C$13 -> 0 | O65: =N65*'Zdrojová data'!$C$14 -> 0 | P65: 0 | Q65: =IF(H65=0,D65-'Výstupy modelu'!$C$7,IF(P65=1,J65-K65,0)) -> 0 | R65: 0 | T65: =MAX(0,IF(Q65>0,Q65-('Výstupy modelu'!$H$10-'Výstupy modelu'!$H$9),0)) -> 0 | W65: 1865.43 | X65: 1885.43 | Y65: 0 | Z65: =MAX(0,D65-'Vstupní hodnoty'!$C$5) -> 0
B66: 2017-01-01T15:45:00 | C66: 1 | D66: 263.52 | E66: =CEILING(IF(C66-C65=0,IF(H65=0,I65,IF(J65>K65,I65,E65)),'Výstupy modelu'!$C$7),1) -> 1664 | F66: 0 | G66: 0 | H66: =IF(F66=1,IF(G66>'Zdrojová data'!$C$19,0,1),"") ->  | I66: 1664 | J66: 0 | K66: =MIN(J66,'Zdrojová data'!$C$17) -> 0 | L66: 0 | M66: =L66/'Zdrojová data'!$C$16 -> 0 | N66: =M66*'Zdrojová data'!$C$13 -> 0 | O66: =N66*'Zdrojová data'!$C$14 -> 0 | P66: 0 | Q66: =IF(H66=0,D66-'Výstupy modelu'!$C$7,IF(P66=1,J66-K66,0)) -> 0 | R66: 0 | T66: =MAX(0,IF(Q66>0,Q66-('Výstupy modelu'!$H$10-'Výstupy modelu'!$H$9),0)) -> 0 | W66: 1865.43 | X66: 1885.43 | Y66: 0 | Z66: =MAX(0,D66-'Vstupní hodnoty'!$C$5) -> 0
B67: 2017-01-01T16:00:00 | C67: 1 | D67: 271.08 | E67: =CEILING(IF(C67-C66=0,IF(H66=0,I66,IF(J66>K66,I66,E66)),'Výstupy modelu'!$C$7),1) -> 1664 | F67: 0 | G67: 0 | H67: =IF(F67=1,IF(G67>'Zdrojová data'!$C$19,0,1),"") ->  | I67: 1664 | J67: 0 | K67: =MIN(J67,'Zdrojová data'!$C$17) -> 0 | L67: 0 | M67: =L67/'Zdrojová data'!$C$16 -> 0 | N67: =M67*'Zdrojová data'!$C$13 -> 0 | O67: =N67*'Zdrojová data'!$C$14 -> 0 | P67: 0 | Q67: =IF(H67=0,D67-'Výstupy modelu'!$C$7,IF(P67=1,J67-K67,0)) -> 0 | R67: 0 | T67: =MAX(0,IF(Q67>0,Q67-('Výstupy modelu'!$H$10-'Výstupy modelu'!$H$9),0)) -> 0 | W67: 1865.43 | X67: 1885.43 | Y67: 0 | Z67: =MAX(0,D67-'Vstupní hodnoty'!$C$5) -> 0
B68: 2017-01-01T16:15:00 | C68: 1 | D68: 263.52 | E68: =CEILING(IF(C68-C67=0,IF(H67=0,I67,IF(J67>K67,I67,E67)),'Výstupy modelu'!$C$7),1) -> 1664 | F68: =IF(D68>E68,1,0) -> 0 | G68: 0 | H68: =IF(F68=1,IF(G68>'Zdrojová data'!$C$19,0,1),"") ->  | I68: =IF(H68=0,D68,IF(J68>K68,E68+J68-K68,E68)) -> 1664 | J68: =IF(H68=1,D68-E68,0) -> 0 | K68: =MIN(J68,'Zdrojová data'!$C$17) -> 0 | L68: 0 | M68: =L68/'Zdrojová data'!$C$16 -> 0 | N68: =M68*'Zdrojová data'!$C$13 -> 0 | O68: =N68*'Zdrojová data'!$C$14 -> 0 | P68: 0 | Q68: =IF(H68=0,D68-'Výstupy modelu'!$C$7,IF(P68=1,J68-K68,0)) -> 0 | R68: 0 | T68: =MAX(0,IF(Q68>0,Q68-('Výstupy modelu'!$H$10-'Výstupy modelu'!$H$9),0)) -> 0 | W68: 1865.43 | X68: 1885.43 | Y68: =MAX(0,D68-W68) -> 0 | Z68: =MAX(0,D68-'Vstupní hodnoty'!$C$5) -> 0
B69: 2017-01-01T16:30:00 | C69: =MONTH(B69) -> 1 | D69: 282.96 | E69: =CEILING(IF(C69-C68=0,IF(H68=0,I68,IF(J68>K68,I68,E68)),'Výstupy modelu'!$C$7),1) -> 1664 | F69: 0 | G69: =IF(F69=1,RANDBETWEEN(0,100),0) -> 0 | H69: =IF(F69=1,IF(G69>'Zdrojová data'!$C$19,0,1),"") ->  | I69: 1664 | J69: 0 | K69: =MIN(J69,'Zdrojová data'!$C$17) -> 0 | L69: =K69/4 -> 0 | M69: =L69/'Zdrojová data'!$C$16 -> 0 | N69: =M69*'Zdrojová data'!$C$13 -> 0 | O69: =N69*'Zdrojová data'!$C$14 -> 0 | P69: =IF(H69=0,1,IF(J69>K69,1,0)) -> 0 | Q69: =IF(H69=0,D69-'Výstupy modelu'!$C$7,IF(P69=1,J69-K69,0)) -> 0 | R69: =IF(H69=0,1,IF(J69>K69,1,0)) -> 0 | T69: =MAX(0,IF(Q69>0,Q69-('Výstupy modelu'!$H$10-'Výstupy modelu'!$H$9),0)) -> 0 | W69: 1865.43 | X69: 1885.43 | Y69: 0 | Z69: =MAX(0,D69-'Vstupní hodnoty'!$C$5) -> 0
B70: 2017-01-01T16:45:00 | C70: 1 | D70: 271.08 | E70: =CEILING(IF(C70-C69=0,IF(H69=0,I69,IF(J69>K69,I69,E69)),'Výstupy modelu'!$C$7),1) -> 1664 | F70: 0 | G70: 0 | H70: =IF(F70=1,IF(G70>'Zdrojová data'!$C$19,0,1),"") ->  | I70: 1664 | J70: 0 | K70: =MIN(J70,'Zdrojová data'!$C$17) -> 0 | L70: 0 | M70: =L70/'Zdrojová data'!$C$16 -> 0 | N70: =M70*'Zdrojová data'!$C$13 -> 0 | O70: =N70*'Zdrojová data'!$C$14 -> 0 | P70: 0 | Q70: =IF(H70=0,D70-'Výstupy modelu'!$C$7,IF(P70=1,J70-K70,0)) -> 0 | R70: 0 | T70: =MAX(0,IF(Q70>0,Q70-('Výstupy modelu'!$H$10-'Výstupy modelu'!$H$9),0)) -> 0 | W70: =W69 -> 1865.43 | X70: 1885.43 | Y70: 0 | Z70: =MAX(0,D70-'Vstupní hodnoty'!$C$5) -> 0
B71: 2017-01-01T17:00:00 | C71: 1 | D71: 273.24 | E71: =CEILING(IF(C71-C70=0,IF(H70=0,I70,IF(J70>K70,I70,E70)),'Výstupy modelu'!$C$7),1) -> 1664 | F71: 0 | G71: 0 | H71: =IF(F71=1,IF(G71>'Zdrojová data'!$C$19,0,1),"") ->  | I71: 1664 | J71: 0 | K71: =MIN(J71,'Zdrojová data'!$C$17) -> 0 | L71: 0 | M71: =L71/'Zdrojová data'!$C$16 -> 0 | N71: =M71*'Zdrojová data'!$C$13 -> 0 | O71: =N71*'Zdrojová data'!$C$14 -> 0 | P71: 0 | Q71: =IF(H71=0,D71-'Výstupy modelu'!$C$7,IF(P71=1,J71-K71,0)) -> 0 | R71: 0 | T71: =MAX(0,IF(Q71>0,Q71-('Výstupy modelu'!$H$10-'Výstupy modelu'!$H$9),0)) -> 0 | W71: 1865.43 | X71: 1885.43 | Y71: 0 | Z71: =MAX(0,D71-'Vstupní hodnoty'!$C$5) -> 0
B72: 2017-01-01T17:15:00 | C72: 1 | D72: 293.76 | E72: =CEILING(IF(C72-C71=0,IF(H71=0,I71,IF(J71>K71,I71,E71)),'Výstupy modelu'!$C$7),1) -> 1664 | F72: 0 | G72: 0 | H72: =IF(F72=1,IF(G72>'Zdrojová data'!$C$19,0,1),"") ->  | I72: 1664 | J72: 0 | K72: =MIN(J72,'Zdrojová data'!$C$17) -> 0 | L72: 0 | M72: =L72/'Zdrojová data'!$C$16 -> 0 | N72: =M72*'Zdrojová data'!$C$13 -> 0 | O72: =N72*'Zdrojová data'!$C$14 -> 0 | P72: 0 | Q72: =IF(H72=0,D72-'Výstupy modelu'!$C$7,IF(P72=1,J72-K72,0)) -> 0 | R72: 0 | T72: =MAX(0,IF(Q72>0,Q72-('Výstupy modelu'!$H$10-'Výstupy modelu'!$H$9),0)) -> 0 | W72: 1865.43 | X72: 1885.43 | Y72: 0 | Z72: =MAX(0,D72-'Vstupní hodnoty'!$C$5) -> 0
B73: 2017-01-01T17:30:00 | C73: 1 | D73: 276.48 | E73: =CEILING(IF(C73-C72=0,IF(H72=0,I72,IF(J72>K72,I72,E72)),'Výstupy modelu'!$C$7),1) -> 1664 | F73: 0 | G73: 0 | H73: =IF(F73=1,IF(G73>'Zdrojová data'!$C$19,0,1),"") ->  | I73: 1664 | J73: 0 | K73: =MIN(J73,'Zdrojová data'!$C$17) -> 0 | L73: 0 | M73: =L73/'Zdrojová data'!$C$16 -> 0 | N73: =M73*'Zdrojová data'!$C$13 -> 0 | O73: =N73*'Zdrojová data'!$C$14 -> 0 | P73: 0 | Q73: =IF(H73=0,D73-'Výstupy modelu'!$C$7,IF(P73=1,J73-K73,0)) -> 0 | R73: 0 | T73: =MAX(0,IF(Q73>0,Q73-('Výstupy modelu'!$H$10-'Výstupy modelu'!$H$9),0)) -> 0 | W73: 1865.43 | X73: 1885.43 | Y73: 0 | Z73: =MAX(0,D73-'Vstupní hodnoty'!$C$5) -> 0
B74: 2017-01-01T17:45:00 | C74: 1 | D74: 277.56 | E74: =CEILING(IF(C74-C73=0,IF(H73=0,I73,IF(J73>K73,I73,E73)),'Výstupy modelu'!$C$7),1) -> 1664 | F74: 0 | G74: 0 | H74: =IF(F74=1,IF(G74>'Zdrojová data'!$C$19,0,1),"") ->  | I74: 1664 | J74: 0 | K74: =MIN(J74,'Zdrojová data'!$C$17) -> 0 | L74: 0 | M74: =L74/'Zdrojová data'!$C$16 -> 0 | N74: =M74*'Zdrojová data'!$C$13 -> 0 | O74: =N74*'Zdrojová data'!$C$14 -> 0 | P74: 0 | Q74: =IF(H74=0,D74-'Výstupy modelu'!$C$7,IF(P74=1,J74-K74,0)) -> 0 | R74: 0 | T74: =MAX(0,IF(Q74>0,Q74-('Výstupy modelu'!$H$10-'Výstupy modelu'!$H$9),0)) -> 0 | W74: 1865.43 | X74: 1885.43 | Y74: 0 | Z74: =MAX(0,D74-'Vstupní hodnoty'!$C$5) -> 0
B75: 2017-01-01T18:00:00 | C75: 1 | D75: 267.84 | E75: =CEILING(IF(C75-C74=0,IF(H74=0,I74,IF(J74>K74,I74,E74)),'Výstupy modelu'!$C$7),1) -> 1664 | F75: 0 | G75: 0 | H75: =IF(F75=1,IF(G75>'Zdrojová data'!$C$19,0,1),"") ->  | I75: 1664 | J75: 0 | K75: =MIN(J75,'Zdrojová data'!$C$17) -> 0 | L75: 0 | M75: =L75/'Zdrojová data'!$C$16 -> 0 | N75: =M75*'Zdrojová data'!$C$13 -> 0 | O75: =N75*'Zdrojová data'!$C$14 -> 0 | P75: 0 | Q75: =IF(H75=0,D75-'Výstupy modelu'!$C$7,IF(P75=1,J75-K75,0)) -> 0 | R75: 0 | T75: =MAX(0,IF(Q75>0,Q75-('Výstupy modelu'!$H$10-'Výstupy modelu'!$H$9),0)) -> 0 | W75: 1865.43 | X75: 1885.43 | Y75: 0 | Z75: =MAX(0,D75-'Vstupní hodnoty'!$C$5) -> 0
B76: 2017-01-01T18:15:00 | C76: 1 | D76: 265.68 | E76: =CEILING(IF(C76-C75=0,IF(H75=0,I75,IF(J75>K75,I75,E75)),'Výstupy modelu'!$C$7),1) -> 1664 | F76: 0 | G76: 0 | H76: =IF(F76=1,IF(G76>'Zdrojová data'!$C$19,0,1),"") ->  | I76: 1664 | J76: 0 | K76: =MIN(J76,'Zdrojová data'!$C$17) -> 0 | L76: 0 | M76: =L76/'Zdrojová data'!$C$16 -> 0 | N76: =M76*'Zdrojová data'!$C$13 -> 0 | O76: =N76*'Zdrojová data'!$C$14 -> 0 | P76: 0 | Q76: =IF(H76=0,D76-'Výstupy modelu'!$C$7,IF(P76=1,J76-K76,0)) -> 0 | R76: 0 | T76: =MAX(0,IF(Q76>0,Q76-('Výstupy modelu'!$H$10-'Výstupy modelu'!$H$9),0)) -> 0 | W76: 1865.43 | X76: 1885.43 | Y76: 0 | Z76: =MAX(0,D76-'Vstupní hodnoty'!$C$5) -> 0
B77: 2017-01-01T18:30:00 | C77: 1 | D77: 274.32 | E77: =CEILING(IF(C77-C76=0,IF(H76=0,I76,IF(J76>K76,I76,E76)),'Výstupy modelu'!$C$7),1) -> 1664 | F77: 0 | G77: 0 | H77: =IF(F77=1,IF(G77>'Zdrojová data'!$C$19,0,1),"") ->  | I77: 1664 | J77: 0 | K77: =MIN(J77,'Zdrojová data'!$C$17) -> 0 | L77: 0 | M77: =L77/'Zdrojová data'!$C$16 -> 0 | N77: =M77*'Zdrojová data'!$C$13 -> 0 | O77: =N77*'Zdrojová data'!$C$14 -> 0 | P77: 0 | Q77: =IF(H77=0,D77-'Výstupy modelu'!$C$7,IF(P77=1,J77-K77,0)) -> 0 | R77: 0 | T77: =MAX(0,IF(Q77>0,Q77-('Výstupy modelu'!$H$10-'Výstupy modelu'!$H$9),0)) -> 0 | W77: 1865.43 | X77: 1885.43 | Y77: 0 | Z77: =MAX(0,D77-'Vstupní hodnoty'!$C$5) -> 0
B78: 2017-01-01T18:45:00 | C78: 1 | D78: 264.6 | E78: =CEILING(IF(C78-C77=0,IF(H77=0,I77,IF(J77>K77,I77,E77)),'Výstupy modelu'!$C$7),1) -> 1664 | F78: 0 | G78: 0 | H78: =IF(F78=1,IF(G78>'Zdrojová data'!$C$19,0,1),"") ->  | I78: 1664 | J78: 0 | K78: =MIN(J78,'Zdrojová data'!$C$17) -> 0 | L78: 0 | M78: =L78/'Zdrojová data'!$C$16 -> 0 | N78: =M78*'Zdrojová data'!$C$13 -> 0 | O78: =N78*'Zdrojová data'!$C$14 -> 0 | P78: 0 | Q78: =IF(H78=0,D78-'Výstupy modelu'!$C$7,IF(P78=1,J78-K78,0)) -> 0 | R78: 0 | T78: =MAX(0,IF(Q78>0,Q78-('Výstupy modelu'!$H$10-'Výstupy modelu'!$H$9),0)) -> 0 | W78: 1865.43 | X78: 1885.43 | Y78: 0 | Z78: =MAX(0,D78-'Vstupní hodnoty'!$C$5) -> 0
B79: 2017-01-01T19:00:00 | C79: 1 | D79: 268.92 | E79: =CEILING(IF(C79-C78=0,IF(H78=0,I78,IF(J78>K78,I78,E78)),'Výstupy modelu'!$C$7),1) -> 1664 | F79: 0 | G79: 0 | H79: =IF(F79=1,IF(G79>'Zdrojová data'!$C$19,0,1),"") ->  | I79: 1664 | J79: 0 | K79: =MIN(J79,'Zdrojová data'!$C$17) -> 0 | L79: 0 | M79: =L79/'Zdrojová data'!$C$16 -> 0 | N79: =M79*'Zdrojová data'!$C$13 -> 0 | O79: =N79*'Zdrojová data'!$C$14 -> 0 | P79: 0 | Q79: =IF(H79=0,D79-'Výstupy modelu'!$C$7,IF(P79=1,J79-K79,0)) -> 0 | R79: 0 | T79: =MAX(0,IF(Q79>0,Q79-('Výstupy modelu'!$H$10-'Výstupy modelu'!$H$9),0)) -> 0 | W79: 1865.43 | X79: 1885.43 | Y79: 0 | Z79: =MAX(0,D79-'Vstupní hodnoty'!$C$5) -> 0
B80: 2017-01-01T19:15:00 | C80: 1 | D80: 265.68 | E80: =CEILING(IF(C80-C79=0,IF(H79=0,I79,IF(J79>K79,I79,E79)),'Výstupy modelu'!$C$7),1) -> 1664 | F80: 0 | G80: 0 | H80: =IF(F80=1,IF(G80>'Zdrojová data'!$C$19,0,1),"") ->  | I80: 1664 | J80: 0 | K80: =MIN(J80,'Zdrojová data'!$C$17) -> 0 | L80: 0 | M80: =L80/'Zdrojová data'!$C$16 -> 0 | N80: =M80*'Zdrojová data'!$C$13 -> 0 | O80: =N80*'Zdrojová data'!$C$14 -> 0 | P80: 0 | Q80: =IF(H80=0,D80-'Výstupy modelu'!$C$7,IF(P80=1,J80-K80,0)) -> 0 | R80: 0 | T80: =MAX(0,IF(Q80>0,Q80-('Výstupy modelu'!$H$10-'Výstupy modelu'!$H$9),0)) -> 0 | W80: 1865.43 | X80: 1885.43 | Y80: 0 | Z80: =MAX(0,D80-'Vstupní hodnoty'!$C$5) -> 0
B81: 2017-01-01T19:30:00 | C81: 1 | D81: 271.08 | E81: =CEILING(IF(C81-C80=0,IF(H80=0,I80,IF(J80>K80,I80,E80)),'Výstupy modelu'!$C$7),1) -> 1664 | F81: 0 | G81: 0 | H81: =IF(F81=1,IF(G81>'Zdrojová data'!$C$19,0,1),"") ->  | I81: 1664 | J81: 0 | K81: =MIN(J81,'Zdrojová data'!$C$17) -> 0 | L81: 0 | M81: =L81/'Zdrojová data'!$C$16 -> 0 | N81: =M81*'Zdrojová data'!$C$13 -> 0 | O81: =N81*'Zdrojová data'!$C$14 -> 0 | P81: 0 | Q81: =IF(H81=0,D81-'Výstupy modelu'!$C$7,IF(P81=1,J81-K81,0)) -> 0 | R81: 0 | T81: =MAX(0,IF(Q81>0,Q81-('Výstupy modelu'!$H$10-'Výstupy modelu'!$H$9),0)) -> 0 | W81: 1865.43 | X81: 1885.43 | Y81: 0 | Z81: =MAX(0,D81-'Vstupní hodnoty'!$C$5) -> 0
B82: 2017-01-01T19:45:00 | C82: 1 | D82: 264.6 | E82: =CEILING(IF(C82-C81=0,IF(H81=0,I81,IF(J81>K81,I81,E81)),'Výstupy modelu'!$C$7),1) -> 1664 | F82: 0 | G82: 0 | H82: =IF(F82=1,IF(G82>'Zdrojová data'!$C$19,0,1),"") ->  | I82: 1664 | J82: 0 | K82: =MIN(J82,'Zdrojová data'!$C$17) -> 0 | L82: 0 | M82: =L82/'Zdrojová data'!$C$16 -> 0 | N82: =M82*'Zdrojová data'!$C$13 -> 0 | O82: =N82*'Zdrojová data'!$C$14 -> 0 | P82: 0 | Q82: =IF(H82=0,D82-'Výstupy modelu'!$C$7,IF(P82=1,J82-K82,0)) -> 0 | R82: 0 | T82: =MAX(0,IF(Q82>0,Q82-('Výstupy modelu'!$H$10-'Výstupy modelu'!$H$9),0)) -> 0 | W82: 1865.43 | X82: 1885.43 | Y82: 0 | Z82: =MAX(0,D82-'Vstupní hodnoty'!$C$5) -> 0
B83: 2017-01-01T20:00:00 | C83: 1 | D83: 260.28 | E83: =CEILING(IF(C83-C82=0,IF(H82=0,I82,IF(J82>K82,I82,E82)),'Výstupy modelu'!$C$7),1) -> 1664 | F83: 0 | G83: 0 | H83: =IF(F83=1,IF(G83>'Zdrojová data'!$C$19,0,1),"") ->  | I83: 1664 | J83: 0 | K83: =MIN(J83,'Zdrojová data'!$C$17) -> 0 | L83: 0 | M83: =L83/'Zdrojová data'!$C$16 -> 0 | N83: =M83*'Zdrojová data'!$C$13 -> 0 | O83: =N83*'Zdrojová data'!$C$14 -> 0 | P83: 0 | Q83: =IF(H83=0,D83-'Výstupy modelu'!$C$7,IF(P83=1,J83-K83,0)) -> 0 | R83: 0 | T83: =MAX(0,IF(Q83>0,Q83-('Výstupy modelu'!$H$10-'Výstupy modelu'!$H$9),0)) -> 0 | W83: 1865.43 | X83: 1885.43 | Y83: 0 | Z83: =MAX(0,D83-'Vstupní hodnoty'!$C$5) -> 0
B84: 2017-01-01T20:15:00 | C84: 1 | D84: 265.68 | E84: =CEILING(IF(C84-C83=0,IF(H83=0,I83,IF(J83>K83,I83,E83)),'Výstupy modelu'!$C$7),1) -> 1664 | F84: 0 | G84: 0 | H84: =IF(F84=1,IF(G84>'Zdrojová data'!$C$19,0,1),"") ->  | I84: 1664 | J84: 0 | K84: =MIN(J84,'Zdrojová data'!$C$17) -> 0 | L84: 0 | M84: =L84/'Zdrojová data'!$C$16 -> 0 | N84: =M84*'Zdrojová data'!$C$13 -> 0 | O84: =N84*'Zdrojová data'!$C$14 -> 0 | P84: 0 | Q84: =IF(H84=0,D84-'Výstupy modelu'!$C$7,IF(P84=1,J84-K84,0)) -> 0 | R84: 0 | T84: =MAX(0,IF(Q84>0,Q84-('Výstupy modelu'!$H$10-'Výstupy modelu'!$H$9),0)) -> 0 | W84: 1865.43 | X84: 1885.43 | Y84: 0 | Z84: =MAX(0,D84-'Vstupní hodnoty'!$C$5) -> 0
B85: 2017-01-01T20:30:00 | C85: 1 | D85: 275.4 | E85: =CEILING(IF(C85-C84=0,IF(H84=0,I84,IF(J84>K84,I84,E84)),'Výstupy modelu'!$C$7),1) -> 1664 | F85: 0 | G85: 0 | H85: =IF(F85=1,IF(G85>'Zdrojová data'!$C$19,0,1),"") ->  | I85: 1664 | J85: 0 | K85: =MIN(J85,'Zdrojová data'!$C$17) -> 0 | L85: 0 | M85: =L85/'Zdrojová data'!$C$16 -> 0 | N85: =M85*'Zdrojová data'!$C$13 -> 0 | O85: =N85*'Zdrojová data'!$C$14 -> 0 | P85: 0 | Q85: =IF(H85=0,D85-'Výstupy modelu'!$C$7,IF(P85=1,J85-K85,0)) -> 0 | R85: 0 | T85: =MAX(0,IF(Q85>0,Q85-('Výstupy modelu'!$H$10-'Výstupy modelu'!$H$9),0)) -> 0 | W85: 1865.43 | X85: 1885.43 | Y85: 0 | Z85: =MAX(0,D85-'Vstupní hodnoty'!$C$5) -> 0
B86: 2017-01-01T20:45:00 | C86: 1 | D86: 266.76 | E86: =CEILING(IF(C86-C85=0,IF(H85=0,I85,IF(J85>K85,I85,E85)),'Výstupy modelu'!$C$7),1) -> 1664 | F86: 0 | G86: 0 | H86: =IF(F86=1,IF(G86>'Zdrojová data'!$C$19,0,1),"") ->  | I86: 1664 | J86: 0 | K86: =MIN(J86,'Zdrojová data'!$C$17) -> 0 | L86: 0 | M86: =L86/'Zdrojová data'!$C$16 -> 0 | N86: =M86*'Zdrojová data'!$C$13 -> 0 | O86: =N86*'Zdrojová data'!$C$14 -> 0 | P86: 0 | Q86: =IF(H86=0,D86-'Výstupy modelu'!$C$7,IF(P86=1,J86-K86,0)) -> 0 | R86: 0 | T86: =MAX(0,IF(Q86>0,Q86-('Výstupy modelu'!$H$10-'Výstupy modelu'!$H$9),0)) -> 0 | W86: 1865.43 | X86: 1885.43 | Y86: 0 | Z86: =MAX(0,D86-'Vstupní hodnoty'!$C$5) -> 0
B87: 2017-01-01T21:00:00 | C87: 1 | D87: 270 | E87: =CEILING(IF(C87-C86=0,IF(H86=0,I86,IF(J86>K86,I86,E86)),'Výstupy modelu'!$C$7),1) -> 1664 | F87: 0 | G87: 0 | H87: =IF(F87=1,IF(G87>'Zdrojová data'!$C$19,0,1),"") ->  | I87: 1664 | J87: 0 | K87: =MIN(J87,'Zdrojová data'!$C$17) -> 0 | L87: 0 | M87: =L87/'Zdrojová data'!$C$16 -> 0 | N87: =M87*'Zdrojová data'!$C$13 -> 0 | O87: =N87*'Zdrojová data'!$C$14 -> 0 | P87: 0 | Q87: =IF(H87=0,D87-'Výstupy modelu'!$C$7,IF(P87=1,J87-K87,0)) -> 0 | R87: 0 | T87: =MAX(0,IF(Q87>0,Q87-('Výstupy modelu'!$H$10-'Výstupy modelu'!$H$9),0)) -> 0 | W87: 1865.43 | X87: 1885.43 | Y87: 0 | Z87: =MAX(0,D87-'Vstupní hodnoty'!$C$5) -> 0
B88: 2017-01-01T21:15:00 | C88: 1 | D88: 279.72 | E88: =CEILING(IF(C88-C87=0,IF(H87=0,I87,IF(J87>K87,I87,E87)),'Výstupy modelu'!$C$7),1) -> 1664 | F88: 0 | G88: 0 | H88: =IF(F88=1,IF(G88>'Zdrojová data'!$C$19,0,1),"") ->  | I88: 1664 | J88: 0 | K88: =MIN(J88,'Zdrojová data'!$C$17) -> 0 | L88: 0 | M88: =L88/'Zdrojová data'!$C$16 -> 0 | N88: =M88*'Zdrojová data'!$C$13 -> 0 | O88: =N88*'Zdrojová data'!$C$14 -> 0 | P88: 0 | Q88: =IF(H88=0,D88-'Výstupy modelu'!$C$7,IF(P88=1,J88-K88,0)) -> 0 | R88: 0 | T88: =MAX(0,IF(Q88>0,Q88-('Výstupy modelu'!$H$10-'Výstupy modelu'!$H$9),0)) -> 0 | W88: 1865.43 | X88: 1885.43 | Y88: 0 | Z88: =MAX(0,D88-'Vstupní hodnoty'!$C$5) -> 0
B89: 2017-01-01T21:30:00 | C89: 1 | D89: 297 | E89: =CEILING(IF(C89-C88=0,IF(H88=0,I88,IF(J88>K88,I88,E88)),'Výstupy modelu'!$C$7),1) -> 1664 | F89: 0 | G89: 0 | H89: =IF(F89=1,IF(G89>'Zdrojová data'!$C$19,0,1),"") ->  | I89: 1664 | J89: 0 | K89: =MIN(J89,'Zdrojová data'!$C$17) -> 0 | L89: 0 | M89: =L89/'Zdrojová data'!$C$16 -> 0 | N89: =M89*'Zdrojová data'!$C$13 -> 0 | O89: =N89*'Zdrojová data'!$C$14 -> 0 | P89: 0 | Q89: =IF(H89=0,D89-'Výstupy modelu'!$C$7,IF(P89=1,J89-K89,0)) -> 0 | R89: 0 | T89: =MAX(0,IF(Q89>0,Q89-('Výstupy modelu'!$H$10-'Výstupy modelu'!$H$9),0)) -> 0 | W89: 1865.43 | X89: 1885.43 | Y89: 0 | Z89: =MAX(0,D89-'Vstupní hodnoty'!$C$5) -> 0
B90: 2017-01-01T21:45:00 | C90: 1 | D90: 325.08 | E90: =CEILING(IF(C90-C89=0,IF(H89=0,I89,IF(J89>K89,I89,E89)),'Výstupy modelu'!$C$7),1) -> 1664 | F90: 0 | G90: 0 | H90: =IF(F90=1,IF(G90>'Zdrojová data'!$C$19,0,1),"") ->  | I90: 1664 | J90: 0 | K90: =MIN(J90,'Zdrojová data'!$C$17) -> 0 | L90: 0 | M90: =L90/'Zdrojová data'!$C$16 -> 0 | N90: =M90*'Zdrojová data'!$C$13 -> 0 | O90: =N90*'Zdrojová data'!$C$14 -> 0 | P90: 0 | Q90: =IF(H90=0,D90-'Výstupy modelu'!$C$7,IF(P90=1,J90-K90,0)) -> 0 | R90: 0 | T90: =MAX(0,IF(Q90>0,Q90-('Výstupy modelu'!$H$10-'Výstupy modelu'!$H$9),0)) -> 0 | W90: 1865.43 | X90: 1885.43 | Y90: 0 | Z90: =MAX(0,D90-'Vstupní hodnoty'!$C$5) -> 0
B91: 2017-01-01T22:00:00 | C91: 1 | D91: 401.76 | E91: =CEILING(IF(C91-C90=0,IF(H90=0,I90,IF(J90>K90,I90,E90)),'Výstupy modelu'!$C$7),1) -> 1664 | F91: 0 | G91: 0 | H91: =IF(F91=1,IF(G91>'Zdrojová data'!$C$19,0,1),"") ->  | I91: 1664 | J91: 0 | K91: =MIN(J91,'Zdrojová data'!$C$17) -> 0 | L91: 0 | M91: =L91/'Zdrojová data'!$C$16 -> 0 | N91: =M91*'Zdrojová data'!$C$13 -> 0 | O91: =N91*'Zdrojová data'!$C$14 -> 0 | P91: 0 | Q91: =IF(H91=0,D91-'Výstupy modelu'!$C$7,IF(P91=1,J91-K91,0)) -> 0 | R91: 0 | T91: =MAX(0,IF(Q91>0,Q91-('Výstupy modelu'!$H$10-'Výstupy modelu'!$H$9),0)) -> 0 | W91: 1865.43 | X91: 1885.43 | Y91: 0 | Z91: =MAX(0,D91-'Vstupní hodnoty'!$C$5) -> 0
B92: 2017-01-01T22:15:00 | C92: 1 | D92: 402.84 | E92: =CEILING(IF(C92-C91=0,IF(H91=0,I91,IF(J91>K91,I91,E91)),'Výstupy modelu'!$C$7),1) -> 1664 | F92: 0 | G92: 0 | H92: =IF(F92=1,IF(G92>'Zdrojová data'!$C$19,0,1),"") ->  | I92: 1664 | J92: 0 | K92: =MIN(J92,'Zdrojová data'!$C$17) -> 0 | L92: 0 | M92: =L92/'Zdrojová data'!$C$16 -> 0 | N92: =M92*'Zdrojová data'!$C$13 -> 0 | O92: =N92*'Zdrojová data'!$C$14 -> 0 | P92: 0 | Q92: =IF(H92=0,D92-'Výstupy modelu'!$C$7,IF(P92=1,J92-K92,0)) -> 0 | R92: 0 | T92: =MAX(0,IF(Q92>0,Q92-('Výstupy modelu'!$H$10-'Výstupy modelu'!$H$9),0)) -> 0 | W92: 1865.43 | X92: 1885.43 | Y92: 0 | Z92: =MAX(0,D92-'Vstupní hodnoty'!$C$5) -> 0
B93: 2017-01-01T22:30:00 | C93: 1 | D93: 392.04 | E93: =CEILING(IF(C93-C92=0,IF(H92=0,I92,IF(J92>K92,I92,E92)),'Výstupy modelu'!$C$7),1) -> 1664 | F93: 0 | G93: 0 | H93: =IF(F93=1,IF(G93>'Zdrojová data'!$C$19,0,1),"") ->  | I93: 1664 | J93: 0 | K93: =MIN(J93,'Zdrojová data'!$C$17) -> 0 | L93: 0 | M93: =L93/'Zdrojová data'!$C$16 -> 0 | N93: =M93*'Zdrojová data'!$C$13 -> 0 | O93: =N93*'Zdrojová data'!$C$14 -> 0 | P93: 0 | Q93: =IF(H93=0,D93-'Výstupy modelu'!$C$7,IF(P93=1,J93-K93,0)) -> 0 | R93: 0 | T93: =MAX(0,IF(Q93>0,Q93-('Výstupy modelu'!$H$10-'Výstupy modelu'!$H$9),0)) -> 0 | W93: 1865.43 | X93: 1885.43 | Y93: 0 | Z93: =MAX(0,D93-'Vstupní hodnoty'!$C$5) -> 0
B94: 2017-01-01T22:45:00 | C94: 1 | D94: 373.68 | E94: =CEILING(IF(C94-C93=0,IF(H93=0,I93,IF(J93>K93,I93,E93)),'Výstupy modelu'!$C$7),1) -> 1664 | F94: 0 | G94: 0 | H94: =IF(F94=1,IF(G94>'Zdrojová data'!$C$19,0,1),"") ->  | I94: 1664 | J94: 0 | K94: =MIN(J94,'Zdrojová data'!$C$17) -> 0 | L94: 0 | M94: =L94/'Zdrojová data'!$C$16 -> 0 | N94: =M94*'Zdrojová data'!$C$13 -> 0 | O94: =N94*'Zdrojová data'!$C$14 -> 0 | P94: 0 | Q94: =IF(H94=0,D94-'Výstupy modelu'!$C$7,IF(P94=1,J94-K94,0)) -> 0 | R94: 0 | T94: =MAX(0,IF(Q94>0,Q94-('Výstupy modelu'!$H$10-'Výstupy modelu'!$H$9),0)) -> 0 | W94: 1865.43 | X94: 1885.43 | Y94: 0 | Z94: =MAX(0,D94-'Vstupní hodnoty'!$C$5) -> 0
B95: 2017-01-01T23:00:00 | C95: 1 | D95: 373.68 | E95: =CEILING(IF(C95-C94=0,IF(H94=0,I94,IF(J94>K94,I94,E94)),'Výstupy modelu'!$C$7),1) -> 1664 | F95: 0 | G95: 0 | H95: =IF(F95=1,IF(G95>'Zdrojová data'!$C$19,0,1),"") ->  | I95: 1664 | J95: 0 | K95: =MIN(J95,'Zdrojová data'!$C$17) -> 0 | L95: 0 | M95: =L95/'Zdrojová data'!$C$16 -> 0 | N95: =M95*'Zdrojová data'!$C$13 -> 0 | O95: =N95*'Zdrojová data'!$C$14 -> 0 | P95: 0 | Q95: =IF(H95=0,D95-'Výstupy modelu'!$C$7,IF(P95=1,J95-K95,0)) -> 0 | R95: 0 | T95: =MAX(0,IF(Q95>0,Q95-('Výstupy modelu'!$H$10-'Výstupy modelu'!$H$9),0)) -> 0 | W95: 1865.43 | X95: 1885.43 | Y95: 0 | Z95: =MAX(0,D95-'Vstupní hodnoty'!$C$5) -> 0
B96: 2017-01-01T23:15:00 | C96: 1 | D96: 392.04 | E96: =CEILING(IF(C96-C95=0,IF(H95=0,I95,IF(J95>K95,I95,E95)),'Výstupy modelu'!$C$7),1) -> 1664 | F96: 0 | G96: 0 | H96: =IF(F96=1,IF(G96>'Zdrojová data'!$C$19,0,1),"") ->  | I96: 1664 | J96: 0 | K96: =MIN(J96,'Zdrojová data'!$C$17) -> 0 | L96: 0 | M96: =L96/'Zdrojová data'!$C$16 -> 0 | N96: =M96*'Zdrojová data'!$C$13 -> 0 | O96: =N96*'Zdrojová data'!$C$14 -> 0 | P96: 0 | Q96: =IF(H96=0,D96-'Výstupy modelu'!$C$7,IF(P96=1,J96-K96,0)) -> 0 | R96: 0 | T96: =MAX(0,IF(Q96>0,Q96-('Výstupy modelu'!$H$10-'Výstupy modelu'!$H$9),0)) -> 0 | W96: 1865.43 | X96: 1885.43 | Y96: 0 | Z96: =MAX(0,D96-'Vstupní hodnoty'!$C$5) -> 0
B97: 2017-01-01T23:30:00 | C97: 1 | D97: 380.16 | E97: =CEILING(IF(C97-C96=0,IF(H96=0,I96,IF(J96>K96,I96,E96)),'Výstupy modelu'!$C$7),1) -> 1664 | F97: 0 | G97: 0 | H97: =IF(F97=1,IF(G97>'Zdrojová data'!$C$19,0,1),"") ->  | I97: 1664 | J97: 0 | K97: =MIN(J97,'Zdrojová data'!$C$17) -> 0 | L97: 0 | M97: =L97/'Zdrojová data'!$C$16 -> 0 | N97: =M97*'Zdrojová data'!$C$13 -> 0 | O97: =N97*'Zdrojová data'!$C$14 -> 0 | P97: 0 | Q97: =IF(H97=0,D97-'Výstupy modelu'!$C$7,IF(P97=1,J97-K97,0)) -> 0 | R97: 0 | T97: =MAX(0,IF(Q97>0,Q97-('Výstupy modelu'!$H$10-'Výstupy modelu'!$H$9),0)) -> 0 | W97: 1865.43 | X97: 1885.43 | Y97: 0 | Z97: =MAX(0,D97-'Vstupní hodnoty'!$C$5) -> 0
B98: 2017-01-01T23:45:00 | C98: 1 | D98: 381.24 | E98: =CEILING(IF(C98-C97=0,IF(H97=0,I97,IF(J97>K97,I97,E97)),'Výstupy modelu'!$C$7),1) -> 1664 | F98: 0 | G98: 0 | H98: =IF(F98=1,IF(G98>'Zdrojová data'!$C$19,0,1),"") ->  | I98: 1664 | J98: 0 | K98: =MIN(J98,'Zdrojová data'!$C$17) -> 0 | L98: 0 | M98: =L98/'Zdrojová data'!$C$16 -> 0 | N98: =M98*'Zdrojová data'!$C$13 -> 0 | O98: =N98*'Zdrojová data'!$C$14 -> 0 | P98: 0 | Q98: =IF(H98=0,D98-'Výstupy modelu'!$C$7,IF(P98=1,J98-K98,0)) -> 0 | R98: 0 | T98: =MAX(0,IF(Q98>0,Q98-('Výstupy modelu'!$H$10-'Výstupy modelu'!$H$9),0)) -> 0 | W98: 1865.43 | X98: 1885.43 | Y98: 0 | Z98: =MAX(0,D98-'Vstupní hodnoty'!$C$5) -> 0
B99: 2017-01-02 | C99: 1 | D99: 396.36 | E99: =CEILING(IF(C99-C98=0,IF(H98=0,I98,IF(J98>K98,I98,E98)),'Výstupy modelu'!$C$7),1) -> 1664 | F99: 0 | G99: 0 | H99: =IF(F99=1,IF(G99>'Zdrojová data'!$C$19,0,1),"") ->  | I99: 1664 | J99: 0 | K99: =MIN(J99,'Zdrojová data'!$C$17) -> 0 | L99: 0 | M99: =L99/'Zdrojová data'!$C$16 -> 0 | N99: =M99*'Zdrojová data'!$C$13 -> 0 | O99: =N99*'Zdrojová data'!$C$14 -> 0 | P99: 0 | Q99: =IF(H99=0,D99-'Výstupy modelu'!$C$7,IF(P99=1,J99-K99,0)) -> 0 | R99: 0 | T99: =MAX(0,IF(Q99>0,Q99-('Výstupy modelu'!$H$10-'Výstupy modelu'!$H$9),0)) -> 0 | W99: 1865.43 | X99: 1885.43 | Y99: 0 | Z99: =MAX(0,D99-'Vstupní hodnoty'!$C$5) -> 0
B100: 2017-01-02T00:15:00 | C100: 1 | D100: 389.88 | E100: =CEILING(IF(C100-C99=0,IF(H99=0,I99,IF(J99>K99,I99,E99)),'Výstupy modelu'!$C$7),1) -> 1664 | F100: 0 | G100: 0 | H100: =IF(F100=1,IF(G100>'Zdrojová data'!$C$19,0,1),"") ->  | I100: 1664 | J100: 0 | K100: =MIN(J100,'Zdrojová data'!$C$17) -> 0 | L100: 0 | M100: =L100/'Zdrojová data'!$C$16 -> 0 | N100: =M100*'Zdrojová data'!$C$13 -> 0 | O100: =N100*'Zdrojová data'!$C$14 -> 0 | P100: 0 | Q100: =IF(H100=0,D100-'Výstupy modelu'!$C$7,IF(P100=1,J100-K100,0)) -> 0 | R100: 0 | T100: =MAX(0,IF(Q100>0,Q100-('Výstupy modelu'!$H$10-'Výstupy modelu'!$H$9),0)) -> 0 | W100: 1865.43 | X100: 1885.43 | Y100: 0 | Z100: =MAX(0,D100-'Vstupní hodnoty'!$C$5) -> 0
B101: 2017-01-02T00:30:00 | C101: 1 | D101: 388.8 | E101: =CEILING(IF(C101-C100=0,IF(H100=0,I100,IF(J100>K100,I100,E100)),'Výstupy modelu'!$C$7),1) -> 1664 | F101: 0 | G101: 0 | H101: =IF(F101=1,IF(G101>'Zdrojová data'!$C$19,0,1),"") ->  | I101: 1664 | J101: 0 | K101: =MIN(J101,'Zdrojová data'!$C$17) -> 0 | L101: 0 | M101: =L101/'Zdrojová data'!$C$16 -> 0 | N101: =M101*'Zdrojová data'!$C$13 -> 0 | O101: =N101*'Zdrojová data'!$C$14 -> 0 | P101: 0 | Q101: =IF(H101=0,D101-'Výstupy modelu'!$C$7,IF(P101=1,J101-K101,0)) -> 0 | R101: 0 | T101: =MAX(0,IF(Q101>0,Q101-('Výstupy modelu'!$H$10-'Výstupy modelu'!$H$9),0)) -> 0 | W101: 1865.43 | X101: 1885.43 | Y101: 0 | Z101: =MAX(0,D101-'Vstupní hodnoty'!$C$5) -> 0
B102: 2017-01-02T00:45:00 | C102: 1 | D102: 366.12 | E102: =CEILING(IF(C102-C101=0,IF(H101=0,I101,IF(J101>K101,I101,E101)),'Výstupy modelu'!$C$7),1) -> 1664 | F102: 0 | G102: 0 | H102: =IF(F102=1,IF(G102>'Zdrojová data'!$C$19,0,1),"") ->  | I102: 1664 | J102: 0 | K102: =MIN(J102,'Zdrojová data'!$C$17) -> 0 | L102: 0 | M102: =L102/'Zdrojová data'!$C$16 -> 0 | N102: =M102*'Zdrojová data'!$C$13 -> 0 | O102: =N102*'Zdrojová data'!$C$14 -> 0 | P102: 0 | Q102: =IF(H102=0,D102-'Výstupy modelu'!$C$7,IF(P102=1,J102-K102,0)) -> 0 | R102: 0 | T102: =MAX(0,IF(Q102>0,Q102-('Výstupy modelu'!$H$10-'Výstupy modelu'!$H$9),0)) -> 0 | W102: 1865.43 | X102: 1885.43 | Y102: 0 | Z102: =MAX(0,D102-'Vstupní hodnoty'!$C$5) -> 0
B103: 2017-01-02T01:00:00 | C103: 1 | D103: 379.08 | E103: =CEILING(IF(C103-C102=0,IF(H102=0,I102,IF(J102>K102,I102,E102)),'Výstupy modelu'!$C$7),1) -> 1664 | F103: 0 | G103: 0 | H103: =IF(F103=1,IF(G103>'Zdrojová data'!$C$19,0,1),"") ->  | I103: 1664 | J103: 0 | K103: =MIN(J103,'Zdrojová data'!$C$17) -> 0 | L103: 0 | M103: =L103/'Zdrojová data'!$C$16 -> 0 | N103: =M103*'Zdrojová data'!$C$13 -> 0 | O103: =N103*'Zdrojová data'!$C$14 -> 0 | P103: 0 | Q103: =IF(H103=0,D103-'Výstupy modelu'!$C$7,IF(P103=1,J103-K103,0)) -> 0 | R103: 0 | T103: =MAX(0,IF(Q103>0,Q103-('Výstupy modelu'!$H$10-'Výstupy modelu'!$H$9),0)) -> 0 | W103: 1865.43 | X103: 1885.43 | Y103: 0 | Z103: =MAX(0,D103-'Vstupní hodnoty'!$C$5) -> 0
B104: 2017-01-02T01:15:00 | C104: 1 | D104: 381.24 | E104: =CEILING(IF(C104-C103=0,IF(H103=0,I103,IF(J103>K103,I103,E103)),'Výstupy modelu'!$C$7),1) -> 1664 | F104: 0 | G104: 0 | H104: =IF(F104=1,IF(G104>'Zdrojová data'!$C$19,0,1),"") ->  | I104: 1664 | J104: 0 | K104: =MIN(J104,'Zdrojová data'!$C$17) -> 0 | L104: 0 | M104: =L104/'Zdrojová data'!$C$16 -> 0 | N104: =M104*'Zdrojová data'!$C$13 -> 0 | O104: =N104*'Zdrojová data'!$C$14 -> 0 | P104: 0 | Q104: =IF(H104=0,D104-'Výstupy modelu'!$C$7,IF(P104=1,J104-K104,0)) -> 0 | R104: 0 | T104: =MAX(0,IF(Q104>0,Q104-('Výstupy modelu'!$H$10-'Výstupy modelu'!$H$9),0)) -> 0 | W104: 1865.43 | X104: 1885.43 | Y104: 0 | Z104: =MAX(0,D104-'Vstupní hodnoty'!$C$5) -> 0
B105: 2017-01-02T01:30:00 | C105: 1 | D105: 381.24 | E105: =CEILING(IF(C105-C104=0,IF(H104=0,I104,IF(J104>K104,I104,E104)),'Výstupy modelu'!$C$7),1) -> 1664 | F105: 0 | G105: 0 | H105: =IF(F105=1,IF(G105>'Zdrojová data'!$C$19,0,1),"") ->  | I105: 1664 | J105: 0 | K105: =MIN(J105,'Zdrojová data'!$C$17) -> 0 | L105: 0 | M105: =L105/'Zdrojová data'!$C$16 -> 0 | N105: =M105*'Zdrojová data'!$C$13 -> 0 | O105: =N105*'Zdrojová data'!$C$14 -> 0 | P105: 0 | Q105: =IF(H105=0,D105-'Výstupy modelu'!$C$7,IF(P105=1,J105-K105,0)) -> 0 | R105: 0 | T105: =MAX(0,IF(Q105>0,Q105-('Výstupy modelu'!$H$10-'Výstupy modelu'!$H$9),0)) -> 0 | W105: 1865.43 | X105: 1885.43 | Y105: 0 | Z105: =MAX(0,D105-'Vstupní hodnoty'!$C$5) -> 0
B106: 2017-01-02T01:45:00 | C106: 1 | D106: 376.92 | E106: =CEILING(IF(C106-C105=0,IF(H105=0,I105,IF(J105>K105,I105,E105)),'Výstupy modelu'!$C$7),1) -> 1664 | F106: 0 | G106: 0 | H106: =IF(F106=1,IF(G106>'Zdrojová data'!$C$19,0,1),"") ->  | I106: 1664 | J106: 0 | K106: =MIN(J106,'Zdrojová data'!$C$17) -> 0 | L106: 0 | M106: =L106/'Zdrojová data'!$C$16 -> 0 | N106: =M106*'Zdrojová data'!$C$13 -> 0 | O106: =N106*'Zdrojová data'!$C$14 -> 0 | P106: 0 | Q106: =IF(H106=0,D106-'Výstupy modelu'!$C$7,IF(P106=1,J106-K106,0)) -> 0 | R106: 0 | T106: =MAX(0,IF(Q106>0,Q106-('Výstupy modelu'!$H$10-'Výstupy modelu'!$H$9),0)) -> 0 | W106: 1865.43 | X106: 1885.43 | Y106: 0 | Z106: =MAX(0,D106-'Vstupní hodnoty'!$C$5) -> 0
B107: 2017-01-02T02:00:00 | C107: 1 | D107: 451.44 | E107: =CEILING(IF(C107-C106=0,IF(H106=0,I106,IF(J106>K106,I106,E106)),'Výstupy modelu'!$C$7),1) -> 1664 | F107: 0 | G107: 0 | H107: =IF(F107=1,IF(G107>'Zdrojová data'!$C$19,0,1),"") ->  | I107: 1664 | J107: 0 | K107: =MIN(J107,'Zdrojová data'!$C$17) -> 0 | L107: 0 | M107: =L107/'Zdrojová data'!$C$16 -> 0 | N107: =M107*'Zdrojová data'!$C$13 -> 0 | O107: =N107*'Zdrojová data'!$C$14 -> 0 | P107: 0 | Q107: =IF(H107=0,D107-'Výstupy modelu'!$C$7,IF(P107=1,J107-K107,0)) -> 0 | R107: 0 | T107: =MAX(0,IF(Q107>0,Q107-('Výstupy modelu'!$H$10-'Výstupy modelu'!$H$9),0)) -> 0 | W107: 1865.43 | X107: 1885.43 | Y107: 0 | Z107: =MAX(0,D107-'Vstupní hodnoty'!$C$5) -> 0
B108: 2017-01-02T02:15:00 | C108: 1 | D108: 496.8 | E108: =CEILING(IF(C108-C107=0,IF(H107=0,I107,IF(J107>K107,I107,E107)),'Výstupy modelu'!$C$7),1) -> 1664 | F108: 0 | G108: 0 | H108: =IF(F108=1,IF(G108>'Zdrojová data'!$C$19,0,1),"") ->  | I108: 1664 | J108: 0 | K108: =MIN(J108,'Zdrojová data'!$C$17) -> 0 | L108: 0 | M108: =L108/'Zdrojová data'!$C$16 -> 0 | N108: =M108*'Zdrojová data'!$C$13 -> 0 | O108: =N108*'Zdrojová data'!$C$14 -> 0 | P108: 0 | Q108: =IF(H108=0,D108-'Výstupy modelu'!$C$7,IF(P108=1,J108-K108,0)) -> 0 | R108: 0 | T108: =MAX(0,IF(Q108>0,Q108-('Výstupy modelu'!$H$10-'Výstupy modelu'!$H$9),0)) -> 0 | W108: 1865.43 | X108: 1885.43 | Y108: 0 | Z108: =MAX(0,D108-'Vstupní hodnoty'!$C$5) -> 0
B109: 2017-01-02T02:30:00 | C109: 1 | D109: 506.52 | E109: =CEILING(IF(C109-C108=0,IF(H108=0,I108,IF(J108>K108,I108,E108)),'Výstupy modelu'!$C$7),1) -> 1664 | F109: 0 | G109: 0 | H109: =IF(F109=1,IF(G109>'Zdrojová data'!$C$19,0,1),"") ->  | I109: 1664 | J109: 0 | K109: =MIN(J109,'Zdrojová data'!$C$17) -> 0 | L109: 0 | M109: =L109/'Zdrojová data'!$C$16 -> 0 | N109: =M109*'Zdrojová data'!$C$13 -> 0 | O109: =N109*'Zdrojová data'!$C$14 -> 0 | P109: 0 | Q109: =IF(H109=0,D109-'Výstupy modelu'!$C$7,IF(P109=1,J109-K109,0)) -> 0 | R109: 0 | T109: =MAX(0,IF(Q109>0,Q109-('Výstupy modelu'!$H$10-'Výstupy modelu'!$H$9),0)) -> 0 | W109: 1865.43 | X109: 1885.43 | Y109: 0 | Z109: =MAX(0,D109-'Vstupní hodnoty'!$C$5) -> 0
B110: 2017-01-02T02:45:00 | C110: 1 | D110: 524.88 | E110: =CEILING(IF(C110-C109=0,IF(H109=0,I109,IF(J109>K109,I109,E109)),'Výstupy modelu'!$C$7),1) -> 1664 | F110: 0 | G110: 0 | H110: =IF(F110=1,IF(G110>'Zdrojová data'!$C$19,0,1),"") ->  | I110: 1664 | J110: 0 | K110: =MIN(J110,'Zdrojová data'!$C$17) -> 0 | L110: 0 | M110: =L110/'Zdrojová data'!$C$16 -> 0 | N110: =M110*'Zdrojová data'!$C$13 -> 0 | O110: =N110*'Zdrojová data'!$C$14 -> 0 | P110: 0 | Q110: =IF(H110=0,D110-'Výstupy modelu'!$C$7,IF(P110=1,J110-K110,0)) -> 0 | R110: 0 | T110: =MAX(0,IF(Q110>0,Q110-('Výstupy modelu'!$H$10-'Výstupy modelu'!$H$9),0)) -> 0 | W110: 1865.43 | X110: 1885.43 | Y110: 0 | Z110: =MAX(0,D110-'Vstupní hodnoty'!$C$5) -> 0
B111: 2017-01-02T03:00:00 | C111: 1 | D111: 531.36 | E111: =CEILING(IF(C111-C110=0,IF(H110=0,I110,IF(J110>K110,I110,E110)),'Výstupy modelu'!$C$7),1) -> 1664 | F111: 0 | G111: 0 | H111: =IF(F111=1,IF(G111>'Zdrojová data'!$C$19,0,1),"") ->  | I111: 1664 | J111: 0 | K111: =MIN(J111,'Zdrojová data'!$C$17) -> 0 | L111: 0 | M111: =L111/'Zdrojová data'!$C$16 -> 0 | N111: =M111*'Zdrojová data'!$C$13 -> 0 | O111: =N111*'Zdrojová data'!$C$14 -> 0 | P111: 0 | Q111: =IF(H111=0,D111-'Výstupy modelu'!$C$7,IF(P111=1,J111-K111,0)) -> 0 | R111: 0 | T111: =MAX(0,IF(Q111>0,Q111-('Výstupy modelu'!$H$10-'Výstupy modelu'!$H$9),0)) -> 0 | W111: 1865.43 | X111: 1885.43 | Y111: 0 | Z111: =MAX(0,D111-'Vstupní hodnoty'!$C$5) -> 0
B112: 2017-01-02T03:15:00 | C112: 1 | D112: 536.76 | E112: =CEILING(IF(C112-C111=0,IF(H111=0,I111,IF(J111>K111,I111,E111)),'Výstupy modelu'!$C$7),1) -> 1664 | F112: 0 | G112: 0 | H112: =IF(F112=1,IF(G112>'Zdrojová data'!$C$19,0,1),"") ->  | I112: 1664 | J112: 0 | K112: =MIN(J112,'Zdrojová data'!$C$17) -> 0 | L112: 0 | M112: =L112/'Zdrojová data'!$C$16 -> 0 | N112: =M112*'Zdrojová data'!$C$13 -> 0 | O112: =N112*'Zdrojová data'!$C$14 -> 0 | P112: 0 | Q112: =IF(H112=0,D112-'Výstupy modelu'!$C$7,IF(P112=1,J112-K112,0)) -> 0 | R112: 0 | T112: =MAX(0,IF(Q112>0,Q112-('Výstupy modelu'!$H$10-'Výstupy modelu'!$H$9),0)) -> 0 | W112: 1865.43 | X112: 1885.43 | Y112: 0 | Z112: =MAX(0,D112-'Vstupní hodnoty'!$C$5) -> 0
B113: 2017-01-02T03:30:00 | C113: 1 | D113: 561.6 | E113: =CEILING(IF(C113-C112=0,IF(H112=0,I112,IF(J112>K112,I112,E112)),'Výstupy modelu'!$C$7),1) -> 1664 | F113: 0 | G113: 0 | H113: =IF(F113=1,IF(G113>'Zdrojová data'!$C$19,0,1),"") ->  | I113: 1664 | J113: 0 | K113: =MIN(J113,'Zdrojová data'!$C$17) -> 0 | L113: 0 | M113: =L113/'Zdrojová data'!$C$16 -> 0 | N113: =M113*'Zdrojová data'!$C$13 -> 0 | O113: =N113*'Zdrojová data'!$C$14 -> 0 | P113: 0 | Q113: =IF(H113=0,D113-'Výstupy modelu'!$C$7,IF(P113=1,J113-K113,0)) -> 0 | R113: 0 | T113: =MAX(0,IF(Q113>0,Q113-('Výstupy modelu'!$H$10-'Výstupy modelu'!$H$9),0)) -> 0 | W113: 1865.43 | X113: 1885.43 | Y113: 0 | Z113: =MAX(0,D113-'Vstupní hodnoty'!$C$5) -> 0
B114: 2017-01-02T03:45:00 | C114: 1 | D114: 581.04 | E114: =CEILING(IF(C114-C113=0,IF(H113=0,I113,IF(J113>K113,I113,E113)),'Výstupy modelu'!$C$7),1) -> 1664 | F114: 0 | G114: 0 | H114: =IF(F114=1,IF(G114>'Zdrojová data'!$C$19,0,1),"") ->  | I114: 1664 | J114: 0 | K114: =MIN(J114,'Zdrojová data'!$C$17) -> 0 | L114: 0 | M114: =L114/'Zdrojová data'!$C$16 -> 0 | N114: =M114*'Zdrojová data'!$C$13 -> 0 | O114: =N114*'Zdrojová data'!$C$14 -> 0 | P114: 0 | Q114: =IF(H114=0,D114-'Výstupy modelu'!$C$7,IF(P114=1,J114-K114,0)) -> 0 | R114: 0 | T114: =MAX(0,IF(Q114>0,Q114-('Výstupy modelu'!$H$10-'Výstupy modelu'!$H$9),0)) -> 0 | W114: 1865.43 | X114: 1885.43 | Y114: 0 | Z114: =MAX(0,D114-'Vstupní hodnoty'!$C$5) -> 0
B115: 2017-01-02T04:00:00 | C115: 1 | D115: 541.08 | E115: =CEILING(IF(C115-C114=0,IF(H114=0,I114,IF(J114>K114,I114,E114)),'Výstupy modelu'!$C$7),1) -> 1664 | F115: 0 | G115: 0 | H115: =IF(F115=1,IF(G115>'Zdrojová data'!$C$19,0,1),"") ->  | I115: 1664 | J115: 0 | K115: =MIN(J115,'Zdrojová data'!$C$17) -> 0 | L115: 0 | M115: =L115/'Zdrojová data'!$C$16 -> 0 | N115: =M115*'Zdrojová data'!$C$13 -> 0 | O115: =N115*'Zdrojová data'!$C$14 -> 0 | P115: 0 | Q115: =IF(H115=0,D115-'Výstupy modelu'!$C$7,IF(P115=1,J115-K115,0)) -> 0 | R115: 0 | T115: =MAX(0,IF(Q115>0,Q115-('Výstupy modelu'!$H$10-'Výstupy modelu'!$H$9),0)) -> 0 | W115: 1865.43 | X115: 1885.43 | Y115: 0 | Z115: =MAX(0,D115-'Vstupní hodnoty'!$C$5) -> 0
B116: 2017-01-02T04:15:00 | C116: 1 | D116: 531.36 | E116: =CEILING(IF(C116-C115=0,IF(H115=0,I115,IF(J115>K115,I115,E115)),'Výstupy modelu'!$C$7),1) -> 1664 | F116: 0 | G116: 0 | H116: =IF(F116=1,IF(G116>'Zdrojová data'!$C$19,0,1),"") ->  | I116: 1664 | J116: 0 | K116: =MIN(J116,'Zdrojová data'!$C$17) -> 0 | L116: 0 | M116: =L116/'Zdrojová data'!$C$16 -> 0 | N116: =M116*'Zdrojová data'!$C$13 -> 0 | O116: =N116*'Zdrojová data'!$C$14 -> 0 | P116: 0 | Q116: =IF(H116=0,D116-'Výstupy modelu'!$C$7,IF(P116=1,J116-K116,0)) -> 0 | R116: 0 | T116: =MAX(0,IF(Q116>0,Q116-('Výstupy modelu'!$H$10-'Výstupy modelu'!$H$9),0)) -> 0 | W116: 1865.43 | X116: 1885.43 | Y116: 0 | Z116: =MAX(0,D116-'Vstupní hodnoty'!$C$5) -> 0
B117: 2017-01-02T04:30:00 | C117: 1 | D117: 541.08 | E117: =CEILING(IF(C117-C116=0,IF(H116=0,I116,IF(J116>K116,I116,E116)),'Výstupy modelu'!$C$7),1) -> 1664 | F117: 0 | G117: 0 | H117: =IF(F117=1,IF(G117>'Zdrojová data'!$C$19,0,1),"") ->  | I117: 1664 | J117: 0 | K117: =MIN(J117,'Zdrojová data'!$C$17) -> 0 | L117: 0 | M117: =L117/'Zdrojová data'!$C$16 -> 0 | N117: =M117*'Zdrojová data'!$C$13 -> 0 | O117: =N117*'Zdrojová data'!$C$14 -> 0 | P117: 0 | Q117: =IF(H117=0,D117-'Výstupy modelu'!$C$7,IF(P117=1,J117-K117,0)) -> 0 | R117: 0 | T117: =MAX(0,IF(Q117>0,Q117-('Výstupy modelu'!$H$10-'Výstupy modelu'!$H$9),0)) -> 0 | W117: 1865.43 | X117: 1885.43 | Y117: 0 | Z117: =MAX(0,D117-'Vstupní hodnoty'!$C$5) -> 0
B118: 2017-01-02T04:45:00 | C118: 1 | D118: 570.24 | E118: =CEILING(IF(C118-C117=0,IF(H117=0,I117,IF(J117>K117,I117,E117)),'Výstupy modelu'!$C$7),1) -> 1664 | F118: 0 | G118: 0 | H118: =IF(F118=1,IF(G118>'Zdrojová data'!$C$19,0,1),"") ->  | I118: 1664 | J118: 0 | K118: =MIN(J118,'Zdrojová data'!$C$17) -> 0 | L118: 0 | M118: =L118/'Zdrojová data'!$C$16 -> 0 | N118: =M118*'Zdrojová data'!$C$13 -> 0 | O118: =N118*'Zdrojová data'!$C$14 -> 0 | P118: 0 | Q118: =IF(H118=0,D118-'Výstupy modelu'!$C$7,IF(P118=1,J118-K118,0)) -> 0 | R118: 0 | T118: =MAX(0,IF(Q118>0,Q118-('Výstupy modelu'!$H$10-'Výstupy modelu'!$H$9),0)) -> 0 | W118: 1865.43 | X118: 1885.43 | Y118: 0 | Z118: =MAX(0,D118-'Vstupní hodnoty'!$C$5) -> 0
B119: 2017-01-02T05:00:00 | C119: 1 | D119: 615.6 | E119: =CEILING(IF(C119-C118=0,IF(H118=0,I118,IF(J118>K118,I118,E118)),'Výstupy modelu'!$C$7),1) -> 1664 | F119: 0 | G119: 0 | H119: =IF(F119=1,IF(G119>'Zdrojová data'!$C$19,0,1),"") ->  | I119: 1664 | J119: 0 | K119: =MIN(J119,'Zdrojová data'!$C$17) -> 0 | L119: 0 | M119: =L119/'Zdrojová data'!$C$16 -> 0 | N119: =M119*'Zdrojová data'!$C$13 -> 0 | O119: =N119*'Zdrojová data'!$C$14 -> 0 | P119: 0 | Q119: =IF(H119=0,D119-'Výstupy modelu'!$C$7,IF(P119=1,J119-K119,0)) -> 0 | R119: 0 | T119: =MAX(0,IF(Q119>0,Q119-('Výstupy modelu'!$H$10-'Výstupy modelu'!$H$9),0)) -> 0 | W119: 1865.43 | X119: 1885.43 | Y119: 0 | Z119: =MAX(0,D119-'Vstupní hodnoty'!$C$5) -> 0
B120: 2017-01-02T05:15:00 | C120: 1 | D120: 656.64 | E120: =CEILING(IF(C120-C119=0,IF(H119=0,I119,IF(J119>K119,I119,E119)),'Výstupy modelu'!$C$7),1) -> 1664 | F120: 0 | G120: 0 | H120: =IF(F120=1,IF(G120>'Zdrojová data'!$C$19,0,1),"") ->  | I120: 1664 | J120: 0 | K120: =MIN(J120,'Zdrojová data'!$C$17) -> 0 | L120: 0 | M120: =L120/'Zdrojová data'!$C$16 -> 0 | N120: =M120*'Zdrojová data'!$C$13 -> 0 | O120: =N120*'Zdrojová data'!$C$14 -> 0 | P120: 0 | Q120: =IF(H120=0,D120-'Výstupy modelu'!$C$7,IF(P120=1,J120-K120,0)) -> 0 | R120: 0 | T120: =MAX(0,IF(Q120>0,Q120-('Výstupy modelu'!$H$10-'Výstupy modelu'!$H$9),0)) -> 0 | W120: 1865.43 | X120: 1885.43 | Y120: 0 | Z120: =MAX(0,D120-'Vstupní hodnoty'!$C$5) -> 0
B121: 2017-01-02T05:30:00 | C121: 1 | D121: 717.12 | E121: =CEILING(IF(C121-C120=0,IF(H120=0,I120,IF(J120>K120,I120,E120)),'Výstupy modelu'!$C$7),1) -> 1664 | F121: 0 | G121: 0 | H121: =IF(F121=1,IF(G121>'Zdrojová data'!$C$19,0,1),"") ->  | I121: 1664 | J121: 0 | K121: =MIN(J121,'Zdrojová data'!$C$17) -> 0 | L121: 0 | M121: =L121/'Zdrojová data'!$C$16 -> 0 | N121: =M121*'Zdrojová data'!$C$13 -> 0 | O121: =N121*'Zdrojová data'!$C$14 -> 0 | P121: 0 | Q121: =IF(H121=0,D121-'Výstupy modelu'!$C$7,IF(P121=1,J121-K121,0)) -> 0 | R121: 0 | T121: =MAX(0,IF(Q121>0,Q121-('Výstupy modelu'!$H$10-'Výstupy modelu'!$H$9),0)) -> 0 | W121: 1865.43 | X121: 1885.43 | Y121: 0 | Z121: =MAX(0,D121-'Vstupní hodnoty'!$C$5) -> 0
B122: 2017-01-02T05:45:00 | C122: 1 | D122: 747.36 | E122: =CEILING(IF(C122-C121=0,IF(H121=0,I121,IF(J121>K121,I121,E121)),'Výstupy modelu'!$C$7),1) -> 1664 | F122: 0 | G122: 0 | H122: =IF(F122=1,IF(G122>'Zdrojová data'!$C$19,0,1),"") ->  | I122: 1664 | J122: 0 | K122: =MIN(J122,'Zdrojová data'!$C$17) -> 0 | L122: 0 | M122: =L122/'Zdrojová data'!$C$16 -> 0 | N122: =M122*'Zdrojová data'!$C$13 -> 0 | O122: =N122*'Zdrojová data'!$C$14 -> 0 | P122: 0 | Q122: =IF(H122=0,D122-'Výstupy modelu'!$C$7,IF(P122=1,J122-K122,0)) -> 0 | R122: 0 | T122: =MAX(0,IF(Q122>0,Q122-('Výstupy modelu'!$H$10-'Výstupy modelu'!$H$9),0)) -> 0 | W122: 1865.43 | X122: 1885.43 | Y122: 0 | Z122: =MAX(0,D122-'Vstupní hodnoty'!$C$5) -> 0
B123: 2017-01-02T06:00:00 | C123: 1 | D123: 1063.8 | E123: =CEILING(IF(C123-C122=0,IF(H122=0,I122,IF(J122>K122,I122,E122)),'Výstupy modelu'!$C$7),1) -> 1664 | F123: 0 | G123: 0 | H123: =IF(F123=1,IF(G123>'Zdrojová data'!$C$19,0,1),"") ->  | I123: 1664 | J123: 0 | K123: =MIN(J123,'Zdrojová data'!$C$17) -> 0 | L123: 0 | M123: =L123/'Zdrojová data'!$C$16 -> 0 | N123: =M123*'Zdrojová data'!$C$13 -> 0 | O123: =N123*'Zdrojová data'!$C$14 -> 0 | P123: 0 | Q123: =IF(H123=0,D123-'Výstupy modelu'!$C$7,IF(P123=1,J123-K123,0)) -> 0 | R123: 0 | T123: =MAX(0,IF(Q123>0,Q123-('Výstupy modelu'!$H$10-'Výstupy modelu'!$H$9),0)) -> 0 | W123: 1865.43 | X123: 1885.43 | Y123: 0 | Z123: =MAX(0,D123-'Vstupní hodnoty'!$C$5) -> 0
B124: 2017-01-02T06:15:00 | C124: 1 | D124: 1211.76 | E124: =CEILING(IF(C124-C123=0,IF(H123=0,I123,IF(J123>K123,I123,E123)),'Výstupy modelu'!$C$7),1) -> 1664 | F124: 0 | G124: 0 | H124: =IF(F124=1,IF(G124>'Zdrojová data'!$C$19,0,1),"") ->  | I124: 1664 | J124: 0 | K124: =MIN(J124,'Zdrojová data'!$C$17) -> 0 | L124: 0 | M124: =L124/'Zdrojová data'!$C$16 -> 0 | N124: =M124*'Zdrojová data'!$C$13 -> 0 | O124: =N124*'Zdrojová data'!$C$14 -> 0 | P124: 0 | Q124: =IF(H124=0,D124-'Výstupy modelu'!$C$7,IF(P124=1,J124-K124,0)) -> 0 | R124: 0 | T124: =MAX(0,IF(Q124>0,Q124-('Výstupy modelu'!$H$10-'Výstupy modelu'!$H$9),0)) -> 0 | W124: 1865.43 | X124: 1885.43 | Y124: 0 | Z124: =MAX(0,D124-'Vstupní hodnoty'!$C$5) -> 0
B125: 2017-01-02T06:30:00 | C125: 1 | D125: 1321.92 | E125: =CEILING(IF(C125-C124=0,IF(H124=0,I124,IF(J124>K124,I124,E124)),'Výstupy modelu'!$C$7),1) -> 1664 | F125: 0 | G125: 0 | H125: =IF(F125=1,IF(G125>'Zdrojová data'!$C$19,0,1),"") ->  | I125: 1664 | J125: 0 | K125: =MIN(J125,'Zdrojová data'!$C$17) -> 0 | L125: 0 | M125: =L125/'Zdrojová data'!$C$16 -> 0 | N125: =M125*'Zdrojová data'!$C$13 -> 0 | O125: =N125*'Zdrojová data'!$C$14 -> 0 | P125: 0 | Q125: =IF(H125=0,D125-'Výstupy modelu'!$C$7,IF(P125=1,J125-K125,0)) -> 0 | R125: 0 | T125: =MAX(0,IF(Q125>0,Q125-('Výstupy modelu'!$H$10-'Výstupy modelu'!$H$9),0)) -> 0 | W125: 1865.43 | X125: 1885.43 | Y125: 0 | Z125: =MAX(0,D125-'Vstupní hodnoty'!$C$5) -> 0
B126: 2017-01-02T06:45:00 | C126: 1 | D126: 1424.52 | E126: =CEILING(IF(C126-C125=0,IF(H125=0,I125,IF(J125>K125,I125,E125)),'Výstupy modelu'!$C$7),1) -> 1664 | F126: 0 | G126: 0 | H126: =IF(F126=1,IF(G126>'Zdrojová data'!$C$19,0,1),"") ->  | I126: 1664 | J126: 0 | K126: =MIN(J126,'Zdrojová data'!$C$17) -> 0 | L126: 0 | M126: =L126/'Zdrojová data'!$C$16 -> 0 | N126: =M126*'Zdrojová data'!$C$13 -> 0 | O126: =N126*'Zdrojová data'!$C$14 -> 0 | P126: 0 | Q126: =IF(H126=0,D126-'Výstupy modelu'!$C$7,IF(P126=1,J126-K126,0)) -> 0 | R126: 0 | T126: =MAX(0,IF(Q126>0,Q126-('Výstupy modelu'!$H$10-'Výstupy modelu'!$H$9),0)) -> 0 | W126: 1865.43 | X126: 1885.43 | Y126: 0 | Z126: =MAX(0,D126-'Vstupní hodnoty'!$C$5) -> 0
B127: 2017-01-02T07:00:00 | C127: 1 | D127: 1339.2 | E127: =CEILING(IF(C127-C126=0,IF(H126=0,I126,IF(J126>K126,I126,E126)),'Výstupy modelu'!$C$7),1) -> 1664 | F127: 0 | G127: 0 | H127: =IF(F127=1,IF(G127>'Zdrojová data'!$C$19,0,1),"") ->  | I127: 1664 | J127: 0 | K127: =MIN(J127,'Zdrojová data'!$C$17) -> 0 | L127: 0 | M127: =L127/'Zdrojová data'!$C$16 -> 0 | N127: =M127*'Zdrojová data'!$C$13 -> 0 | O127: =N127*'Zdrojová data'!$C$14 -> 0 | P127: 0 | Q127: =IF(H127=0,D127-'Výstupy modelu'!$C$7,IF(P127=1,J127-K127,0)) -> 0 | R127: 0 | T127: =MAX(0,IF(Q127>0,Q127-('Výstupy modelu'!$H$10-'Výstupy modelu'!$H$9),0)) -> 0 | W127: 1865.43 | X127: 1885.43 | Y127: 0 | Z127: =MAX(0,D127-'Vstupní hodnoty'!$C$5) -> 0
B128: 2017-01-02T07:15:00 | C128: 1 | D128: 1381.32 | E128: =CEILING(IF(C128-C127=0,IF(H127=0,I127,IF(J127>K127,I127,E127)),'Výstupy modelu'!$C$7),1) -> 1664 | F128: 0 | G128: 0 | H128: =IF(F128=1,IF(G128>'Zdrojová data'!$C$19,0,1),"") ->  | I128: 1664 | J128: 0 | K128: =MIN(J128,'Zdrojová data'!$C$17) -> 0 | L128: 0 | M128: =L128/'Zdrojová data'!$C$16 -> 0 | N128: =M128*'Zdrojová data'!$C$13 -> 0 | O128: =N128*'Zdrojová data'!$C$14 -> 0 | P128: 0 | Q128: =IF(H128=0,D128-'Výstupy modelu'!$C$7,IF(P128=1,J128-K128,0)) -> 0 | R128: 0 | T128: =MAX(0,IF(Q128>0,Q128-('Výstupy modelu'!$H$10-'Výstupy modelu'!$H$9),0)) -> 0 | W128: 1865.43 | X128: 1885.43 | Y128: 0 | Z128: =MAX(0,D128-'Vstupní hodnoty'!$C$5) -> 0
B129: 2017-01-02T07:30:00 | C129: 1 | D129: 1348.92 | E129: =CEILING(IF(C129-C128=0,IF(H128=0,I128,IF(J128>K128,I128,E128)),'Výstupy modelu'!$C$7),1) -> 1664 | F129: 0 | G129: 0 | H129: =IF(F129=1,IF(G129>'Zdrojová data'!$C$19,0,1),"") ->  | I129: 1664 | J129: 0 | K129: =MIN(J129,'Zdrojová data'!$C$17) -> 0 | L129: 0 | M129: =L129/'Zdrojová data'!$C$16 -> 0 | N129: =M129*'Zdrojová data'!$C$13 -> 0 | O129: =N129*'Zdrojová data'!$C$14 -> 0 | P129: 0 | Q129: =IF(H129=0,D129-'Výstupy modelu'!$C$7,IF(P129=1,J129-K129,0)) -> 0 | R129: 0 | T129: =MAX(0,IF(Q129>0,Q129-('Výstupy modelu'!$H$10-'Výstupy modelu'!$H$9),0)) -> 0 | W129: 1865.43 | X129: 1885.43 | Y129: 0 | Z129: =MAX(0,D129-'Vstupní hodnoty'!$C$5) -> 0
B130: 2017-01-02T07:45:00 | C130: 1 | D130: 1387.8 | E130: =CEILING(IF(C130-C129=0,IF(H129=0,I129,IF(J129>K129,I129,E129)),'Výstupy modelu'!$C$7),1) -> 1664 | F130: 0 | G130: 0 | H130: =IF(F130=1,IF(G130>'Zdrojová data'!$C$19,0,1),"") ->  | I130: 1664 | J130: 0 | K130: =MIN(J130,'Zdrojová data'!$C$17) -> 0 | L130: 0 | M130: =L130/'Zdrojová data'!$C$16 -> 0 | N130: =M130*'Zdrojová data'!$C$13 -> 0 | O130: =N130*'Zdrojová data'!$C$14 -> 0 | P130: 0 | Q130: =IF(H130=0,D130-'Výstupy modelu'!$C$7,IF(P130=1,J130-K130,0)) -> 0 | R130: 0 | T130: =MAX(0,IF(Q130>0,Q130-('Výstupy modelu'!$H$10-'Výstupy modelu'!$H$9),0)) -> 0 | W130: 1865.43 | X130: 1885.43 | Y130: 0 | Z130: =MAX(0,D130-'Vstupní hodnoty'!$C$5) -> 0
B131: 2017-01-02T08:00:00 | C131: 1 | D131: 1335.96 | E131: =CEILING(IF(C131-C130=0,IF(H130=0,I130,IF(J130>K130,I130,E130)),'Výstupy modelu'!$C$7),1) -> 1664 | F131: 0 | G131: 0 | H131: =IF(F131=1,IF(G131>'Zdrojová data'!$C$19,0,1),"") ->  | I131: 1664 | J131: 0 | K131: =MIN(J131,'Zdrojová data'!$C$17) -> 0 | L131: 0 | M131: =L131/'Zdrojová data'!$C$16 -> 0 | N131: =M131*'Zdrojová data'!$C$13 -> 0 | O131: =N131*'Zdrojová data'!$C$14 -> 0 | P131: 0 | Q131: =IF(H131=0,D131-'Výstupy modelu'!$C$7,IF(P131=1,J131-K131,0)) -> 0 | R131: 0 | T131: =MAX(0,IF(Q131>0,Q131-('Výstupy modelu'!$H$10-'Výstupy modelu'!$H$9),0)) -> 0 | W131: 1865.43 | X131: 1885.43 | Y131: 0 | Z131: =MAX(0,D131-'Vstupní hodnoty'!$C$5) -> 0
B132: 2017-01-02T08:15:00 | C132: 1 | D132: 1317.6 | E132: =CEILING(IF(C132-C131=0,IF(H131=0,I131,IF(J131>K131,I131,E131)),'Výstupy modelu'!$C$7),1) -> 1664 | F132: =IF(D132>E132,1,0) -> 0 | G132: 0 | H132: =IF(F132=1,IF(G132>'Zdrojová data'!$C$19,0,1),"") ->  | I132: =IF(H132=0,D132,IF(J132>K132,E132+J132-K132,E132)) -> 1664 | J132: =IF(H132=1,D132-E132,0) -> 0 | K132: =MIN(J132,'Zdrojová data'!$C$17) -> 0 | L132: 0 | M132: =L132/'Zdrojová data'!$C$16 -> 0 | N132: =M132*'Zdrojová data'!$C$13 -> 0 | O132: =N132*'Zdrojová data'!$C$14 -> 0 | P132: 0 | Q132: =IF(H132=0,D132-'Výstupy modelu'!$C$7,IF(P132=1,J132-K132,0)) -> 0 | R132: 0 | T132: =MAX(0,IF(Q132>0,Q132-('Výstupy modelu'!$H$10-'Výstupy modelu'!$H$9),0)) -> 0 | W132: 1865.43 | X132: 1885.43 | Y132: =MAX(0,D132-W132) -> 0 | Z132: =MAX(0,D132-'Vstupní hodnoty'!$C$5) -> 0
B133: 2017-01-02T08:30:00 | C133: =MONTH(B133) -> 1 | D133: 1341.36 | E133: =CEILING(IF(C133-C132=0,IF(H132=0,I132,IF(J132>K132,I132,E132)),'Výstupy modelu'!$C$7),1) -> 1664 | F133: 0 | G133: =IF(F133=1,RANDBETWEEN(0,100),0) -> 0 | H133: =IF(F133=1,IF(G133>'Zdrojová data'!$C$19,0,1),"") ->  | I133: 1664 | J133: 0 | K133: =MIN(J133,'Zdrojová data'!$C$17) -> 0 | L133: =K133/4 -> 0 | M133: =L133/'Zdrojová data'!$C$16 -> 0 | N133: =M133*'Zdrojová data'!$C$13 -> 0 | O133: =N133*'Zdrojová data'!$C$14 -> 0 | P133: =IF(H133=0,1,IF(J133>K133,1,0)) -> 0 | Q133: =IF(H133=0,D133-'Výstupy modelu'!$C$7,IF(P133=1,J133-K133,0)) -> 0 | R133: =IF(H133=0,1,IF(J133>K133,1,0)) -> 0 | T133: =MAX(0,IF(Q133>0,Q133-('Výstupy modelu'!$H$10-'Výstupy modelu'!$H$9),0)) -> 0 | W133: 1865.43 | X133: 1885.43 | Y133: 0 | Z133: =MAX(0,D133-'Vstupní hodnoty'!$C$5) -> 0
B134: 2017-01-02T08:45:00 | C134: 1 | D134: 1354.32 | E134: =CEILING(IF(C134-C133=0,IF(H133=0,I133,IF(J133>K133,I133,E133)),'Výstupy modelu'!$C$7),1) -> 1664 | F134: 0 | G134: 0 | H134: =IF(F134=1,IF(G134>'Zdrojová data'!$C$19,0,1),"") ->  | I134: 1664 | J134: 0 | K134: =MIN(J134,'Zdrojová data'!$C$17) -> 0 | L134: 0 | M134: =L134/'Zdrojová data'!$C$16 -> 0 | N134: =M134*'Zdrojová data'!$C$13 -> 0 | O134: =N134*'Zdrojová data'!$C$14 -> 0 | P134: 0 | Q134: =IF(H134=0,D134-'Výstupy modelu'!$C$7,IF(P134=1,J134-K134,0)) -> 0 | R134: 0 | T134: =MAX(0,IF(Q134>0,Q134-('Výstupy modelu'!$H$10-'Výstupy modelu'!$H$9),0)) -> 0 | W134: =W133 -> 1865.43 | X134: 1885.43 | Y134: 0 | Z134: =MAX(0,D134-'Vstupní hodnoty'!$C$5) -> 0
B135: 2017-01-02T09:00:00 | C135: 1 | D135: 1373.76 | E135: =CEILING(IF(C135-C134=0,IF(H134=0,I134,IF(J134>K134,I134,E134)),'Výstupy modelu'!$C$7),1) -> 1664 | F135: 0 | G135: 0 | H135: =IF(F135=1,IF(G135>'Zdrojová data'!$C$19,0,1),"") ->  | I135: 1664 | J135: 0 | K135: =MIN(J135,'Zdrojová data'!$C$17) -> 0 | L135: 0 | M135: =L135/'Zdrojová data'!$C$16 -> 0 | N135: =M135*'Zdrojová data'!$C$13 -> 0 | O135: =N135*'Zdrojová data'!$C$14 -> 0 | P135: 0 | Q135: =IF(H135=0,D135-'Výstupy modelu'!$C$7,IF(P135=1,J135-K135,0)) -> 0 | R135: 0 | T135: =MAX(0,IF(Q135>0,Q135-('Výstupy modelu'!$H$10-'Výstupy modelu'!$H$9),0)) -> 0 | W135: 1865.43 | X135: 1885.43 | Y135: 0 | Z135: =MAX(0,D135-'Vstupní hodnoty'!$C$5) -> 0
B136: 2017-01-02T09:15:00 | C136: 1 | D136: 1387.8 | E136: =CEILING(IF(C136-C135=0,IF(H135=0,I135,IF(J135>K135,I135,E135)),'Výstupy modelu'!$C$7),1) -> 1664 | F136: 0 | G136: 0 | H136: =IF(F136=1,IF(G136>'Zdrojová data'!$C$19,0,1),"") ->  | I136: 1664 | J136: 0 | K136: =MIN(J136,'Zdrojová data'!$C$17) -> 0 | L136: 0 | M136: =L136/'Zdrojová data'!$C$16 -> 0 | N136: =M136*'Zdrojová data'!$C$13 -> 0 | O136: =N136*'Zdrojová data'!$C$14 -> 0 | P136: 0 | Q136: =IF(H136=0,D136-'Výstupy modelu'!$C$7,IF(P136=1,J136-K136,0)) -> 0 | R136: 0 | T136: =MAX(0,IF(Q136>0,Q136-('Výstupy modelu'!$H$10-'Výstupy modelu'!$H$9),0)) -> 0 | W136: 1865.43 | X136: 1885.43 | Y136: 0 | Z136: =MAX(0,D136-'Vstupní hodnoty'!$C$5) -> 0
B137: 2017-01-02T09:30:00 | C137: 1 | D137: 1382.4 | E137: =CEILING(IF(C137-C136=0,IF(H136=0,I136,IF(J136>K136,I136,E136)),'Výstupy modelu'!$C$7),1) -> 1664 | F137: 0 | G137: 0 | H137: =IF(F137=1,IF(G137>'Zdrojová data'!$C$19,0,1),"") ->  | I137: 1664 | J137: 0 | K137: =MIN(J137,'Zdrojová data'!$C$17) -> 0 | L137: 0 | M137: =L137/'Zdrojová data'!$C$16 -> 0 | N137: =M137*'Zdrojová data'!$C$13 -> 0 | O137: =N137*'Zdrojová data'!$C$14 -> 0 | P137: 0 | Q137: =IF(H137=0,D137-'Výstupy modelu'!$C$7,IF(P137=1,J137-K137,0)) -> 0 | R137: 0 | T137: =MAX(0,IF(Q137>0,Q137-('Výstupy modelu'!$H$10-'Výstupy modelu'!$H$9),0)) -> 0 | W137: 1865.43 | X137: 1885.43 | Y137: 0 | Z137: =MAX(0,D137-'Vstupní hodnoty'!$C$5) -> 0
B138: 2017-01-02T09:45:00 | C138: 1 | D138: 1342.44 | E138: =CEILING(IF(C138-C137=0,IF(H137=0,I137,IF(J137>K137,I137,E137)),'Výstupy modelu'!$C$7),1) -> 1664 | F138: 0 | G138: 0 | H138: =IF(F138=1,IF(G138>'Zdrojová data'!$C$19,0,1),"") ->  | I138: 1664 | J138: 0 | K138: =MIN(J138,'Zdrojová data'!$C$17) -> 0 | L138: 0 | M138: =L138/'Zdrojová data'!$C$16 -> 0 | N138: =M138*'Zdrojová data'!$C$13 -> 0 | O138: =N138*'Zdrojová data'!$C$14 -> 0 | P138: 0 | Q138: =IF(H138=0,D138-'Výstupy modelu'!$C$7,IF(P138=1,J138-K138,0)) -> 0 | R138: 0 | T138: =MAX(0,IF(Q138>0,Q138-('Výstupy modelu'!$H$10-'Výstupy modelu'!$H$9),0)) -> 0 | W138: 1865.43 | X138: 1885.43 | Y138: 0 | Z138: =MAX(0,D138-'Vstupní hodnoty'!$C$5) -> 0
B139: 2017-01-02T10:00:00 | C139: 1 | D139: 1315.44 | E139: =CEILING(IF(C139-C138=0,IF(H138=0,I138,IF(J138>K138,I138,E138)),'Výstupy modelu'!$C$7),1) -> 1664 | F139: 0 | G139: 0 | H139: =IF(F139=1,IF(G139>'Zdrojová data'!$C$19,0,1),"") ->  | I139: 1664 | J139: 0 | K139: =MIN(J139,'Zdrojová data'!$C$17) -> 0 | L139: 0 | M139: =L139/'Zdrojová data'!$C$16 -> 0 | N139: =M139*'Zdrojová data'!$C$13 -> 0 | O139: =N139*'Zdrojová data'!$C$14 -> 0 | P139: 0 | Q139: =IF(H139=0,D139-'Výstupy modelu'!$C$7,IF(P139=1,J139-K139,0)) -> 0 | R139: 0 | T139: =MAX(0,IF(Q139>0,Q139-('Výstupy modelu'!$H$10-'Výstupy modelu'!$H$9),0)) -> 0 | W139: 1865.43 | X139: 1885.43 | Y139: 0 | Z139: =MAX(0,D139-'Vstupní hodnoty'!$C$5) -> 0
B140: 2017-01-02T10:15:00 | C140: 1 | D140: 1260.36 | E140: =CEILING(IF(C140-C139=0,IF(H139=0,I139,IF(J139>K139,I139,E139)),'Výstupy modelu'!$C$7),1) -> 1664 | F140: 0 | G140: 0 | H140: =IF(F140=1,IF(G140>'Zdrojová data'!$C$19,0,1),"") ->  | I140: 1664 | J140: 0 | K140: =MIN(J140,'Zdrojová data'!$C$17) -> 0 | L140: 0 | M140: =L140/'Zdrojová data'!$C$16 -> 0 | N140: =M140*'Zdrojová data'!$C$13 -> 0 | O140: =N140*'Zdrojová data'!$C$14 -> 0 | P140: 0 | Q140: =IF(H140=0,D140-'Výstupy modelu'!$C$7,IF(P140=1,J140-K140,0)) -> 0 | R140: 0 | T140: =MAX(0,IF(Q140>0,Q140-('Výstupy modelu'!$H$10-'Výstupy modelu'!$H$9),0)) -> 0 | W140: 1865.43 | X140: 1885.43 | Y140: 0 | Z140: =MAX(0,D140-'Vstupní hodnoty'!$C$5) -> 0
B141: 2017-01-02T10:30:00 | C141: 1 | D141: 1345.68 | E141: =CEILING(IF(C141-C140=0,IF(H140=0,I140,IF(J140>K140,I140,E140)),'Výstupy modelu'!$C$7),1) -> 1664 | F141: 0 | G141: 0 | H141: =IF(F141=1,IF(G141>'Zdrojová data'!$C$19,0,1),"") ->  | I141: 1664 | J141: 0 | K141: =MIN(J141,'Zdrojová data'!$C$17) -> 0 | L141: 0 | M141: =L141/'Zdrojová data'!$C$16 -> 0 | N141: =M141*'Zdrojová data'!$C$13 -> 0 | O141: =N141*'Zdrojová data'!$C$14 -> 0 | P141: 0 | Q141: =IF(H141=0,D141-'Výstupy modelu'!$C$7,IF(P141=1,J141-K141,0)) -> 0 | R141: 0 | T141: =MAX(0,IF(Q141>0,Q141-('Výstupy modelu'!$H$10-'Výstupy modelu'!$H$9),0)) -> 0 | W141: 1865.43 | X141: 1885.43 | Y141: 0 | Z141: =MAX(0,D141-'Vstupní hodnoty'!$C$5) -> 0
B142: 2017-01-02T10:45:00 | C142: 1 | D142: 1326.24 | E142: =CEILING(IF(C142-C141=0,IF(H141=0,I141,IF(J141>K141,I141,E141)),'Výstupy modelu'!$C$7),1) -> 1664 | F142: 0 | G142: 0 | H142: =IF(F142=1,IF(G142>'Zdrojová data'!$C$19,0,1),"") ->  | I142: 1664 | J142: 0 | K142: =MIN(J142,'Zdrojová data'!$C$17) -> 0 | L142: 0 | M142: =L142/'Zdrojová data'!$C$16 -> 0 | N142: =M142*'Zdrojová data'!$C$13 -> 0 | O142: =N142*'Zdrojová data'!$C$14 -> 0 | P142: 0 | Q142: =IF(H142=0,D142-'Výstupy modelu'!$C$7,IF(P142=1,J142-K142,0)) -> 0 | R142: 0 | T142: =MAX(0,IF(Q142>0,Q142-('Výstupy modelu'!$H$10-'Výstupy modelu'!$H$9),0)) -> 0 | W142: 1865.43 | X142: 1885.43 | Y142: 0 | Z142: =MAX(0,D142-'Vstupní hodnoty'!$C$5) -> 0
B143: 2017-01-02T11:00:00 | C143: 1 | D143: 1348.92 | E143: =CEILING(IF(C143-C142=0,IF(H142=0,I142,IF(J142>K142,I142,E142)),'Výstupy modelu'!$C$7),1) -> 1664 | F143: 0 | G143: 0 | H143: =IF(F143=1,IF(G143>'Zdrojová data'!$C$19,0,1),"") ->  | I143: 1664 | J143: 0 | K143: =MIN(J143,'Zdrojová data'!$C$17) -> 0 | L143: 0 | M143: =L143/'Zdrojová data'!$C$16 -> 0 | N143: =M143*'Zdrojová data'!$C$13 -> 0 | O143: =N143*'Zdrojová data'!$C$14 -> 0 | P143: 0 | Q143: =IF(H143=0,D143-'Výstupy modelu'!$C$7,IF(P143=1,J143-K143,0)) -> 0 | R143: 0 | T143: =MAX(0,IF(Q143>0,Q143-('Výstupy modelu'!$H$10-'Výstupy modelu'!$H$9),0)) -> 0 | W143: 1865.43 | X143: 1885.43 | Y143: 0 | Z143: =MAX(0,D143-'Vstupní hodnoty'!$C$5) -> 0
B144: 2017-01-02T11:15:00 | C144: 1 | D144: 1344.6 | E144: =CEILING(IF(C144-C143=0,IF(H143=0,I143,IF(J143>K143,I143,E143)),'Výstupy modelu'!$C$7),1) -> 1664 | F144: 0 | G144: 0 | H144: =IF(F144=1,IF(G144>'Zdrojová data'!$C$19,0,1),"") ->  | I144: 1664 | J144: 0 | K144: =MIN(J144,'Zdrojová data'!$C$17) -> 0 | L144: 0 | M144: =L144/'Zdrojová data'!$C$16 -> 0 | N144: =M144*'Zdrojová data'!$C$13 -> 0 | O144: =N144*'Zdrojová data'!$C$14 -> 0 | P144: 0 | Q144: =IF(H144=0,D144-'Výstupy modelu'!$C$7,IF(P144=1,J144-K144,0)) -> 0 | R144: 0 | T144: =MAX(0,IF(Q144>0,Q144-('Výstupy modelu'!$H$10-'Výstupy modelu'!$H$9),0)) -> 0 | W144: 1865.43 | X144: 1885.43 | Y144: 0 | Z144: =MAX(0,D144-'Vstupní hodnoty'!$C$5) -> 0
B145: 2017-01-02T11:30:00 | C145: 1 | D145: 1269 | E145: =CEILING(IF(C145-C144=0,IF(H144=0,I144,IF(J144>K144,I144,E144)),'Výstupy modelu'!$C$7),1) -> 1664 | F145: 0 | G145: 0 | H145: =IF(F145=1,IF(G145>'Zdrojová data'!$C$19,0,1),"") ->  | I145: 1664 | J145: 0 | K145: =MIN(J145,'Zdrojová data'!$C$17) -> 0 | L145: 0 | M145: =L145/'Zdrojová data'!$C$16 -> 0 | N145: =M145*'Zdrojová data'!$C$13 -> 0 | O145: =N145*'Zdrojová data'!$C$14 -> 0 | P145: 0 | Q145: =IF(H145=0,D145-'Výstupy modelu'!$C$7,IF(P145=1,J145-K145,0)) -> 0 | R145: 0 | T145: =MAX(0,IF(Q145>0,Q145-('Výstupy modelu'!$H$10-'Výstupy modelu'!$H$9),0)) -> 0 | W145: 1865.43 | X145: 1885.43 | Y145: 0 | Z145: =MAX(0,D145-'Vstupní hodnoty'!$C$5) -> 0
B146: 2017-01-02T11:45:00 | C146: 1 | D146: 1181.52 | E146: =CEILING(IF(C146-C145=0,IF(H145=0,I145,IF(J145>K145,I145,E145)),'Výstupy modelu'!$C$7),1) -> 1664 | F146: 0 | G146: 0 | H146: =IF(F146=1,IF(G146>'Zdrojová data'!$C$19,0,1),"") ->  | I146: 1664 | J146: 0 | K146: =MIN(J146,'Zdrojová data'!$C$17) -> 0 | L146: 0 | M146: =L146/'Zdrojová data'!$C$16 -> 0 | N146: =M146*'Zdrojová data'!$C$13 -> 0 | O146: =N146*'Zdrojová data'!$C$14 -> 0 | P146: 0 | Q146: =IF(H146=0,D146-'Výstupy modelu'!$C$7,IF(P146=1,J146-K146,0)) -> 0 | R146: 0 | T146: =MAX(0,IF(Q146>0,Q146-('Výstupy modelu'!$H$10-'Výstupy modelu'!$H$9),0)) -> 0 | W146: 1865.43 | X146: 1885.43 | Y146: 0 | Z146: =MAX(0,D146-'Vstupní hodnoty'!$C$5) -> 0
B147: 2017-01-02T12:00:00 | C147: 1 | D147: 1129.68 | E147: =CEILING(IF(C147-C146=0,IF(H146=0,I146,IF(J146>K146,I146,E146)),'Výstupy modelu'!$C$7),1) -> 1664 | F147: 0 | G147: 0 | H147: =IF(F147=1,IF(G147>'Zdrojová data'!$C$19,0,1),"") ->  | I147: 1664 | J147: 0 | K147: =MIN(J147,'Zdrojová data'!$C$17) -> 0 | L147: 0 | M147: =L147/'Zdrojová data'!$C$16 -> 0 | N147: =M147*'Zdrojová data'!$C$13 -> 0 | O147: =N147*'Zdrojová data'!$C$14 -> 0 | P147: 0 | Q147: =IF(H147=0,D147-'Výstupy modelu'!$C$7,IF(P147=1,J147-K147,0)) -> 0 | R147: 0 | T147: =MAX(0,IF(Q147>0,Q147-('Výstupy modelu'!$H$10-'Výstupy modelu'!$H$9),0)) -> 0 | W147: 1865.43 | X147: 1885.43 | Y147: 0 | Z147: =MAX(0,D147-'Vstupní hodnoty'!$C$5) -> 0
B148: 2017-01-02T12:15:00 | C148: 1 | D148: 1141.56 | E148: =CEILING(IF(C148-C147=0,IF(H147=0,I147,IF(J147>K147,I147,E147)),'Výstupy modelu'!$C$7),1) -> 1664 | F148: 0 | G148: 0 | H148: =IF(F148=1,IF(G148>'Zdrojová data'!$C$19,0,1),"") ->  | I148: 1664 | J148: 0 | K148: =MIN(J148,'Zdrojová data'!$C$17) -> 0 | L148: 0 | M148: =L148/'Zdrojová data'!$C$16 -> 0 | N148: =M148*'Zdrojová data'!$C$13 -> 0 | O148: =N148*'Zdrojová data'!$C$14 -> 0 | P148: 0 | Q148: =IF(H148=0,D148-'Výstupy modelu'!$C$7,IF(P148=1,J148-K148,0)) -> 0 | R148: 0 | T148: =MAX(0,IF(Q148>0,Q148-('Výstupy modelu'!$H$10-'Výstupy modelu'!$H$9),0)) -> 0 | W148: 1865.43 | X148: 1885.43 | Y148: 0 | Z148: =MAX(0,D148-'Vstupní hodnoty'!$C$5) -> 0
B149: 2017-01-02T12:30:00 | C149: 1 | D149: 1256.04 | E149: =CEILING(IF(C149-C148=0,IF(H148=0,I148,IF(J148>K148,I148,E148)),'Výstupy modelu'!$C$7),1) -> 1664 | F149: 0 | G149: 0 | H149: =IF(F149=1,IF(G149>'Zdrojová data'!$C$19,0,1),"") ->  | I149: 1664 | J149: 0 | K149: =MIN(J149,'Zdrojová data'!$C$17) -> 0 | L149: 0 | M149: =L149/'Zdrojová data'!$C$16 -> 0 | N149: =M149*'Zdrojová data'!$C$13 -> 0 | O149: =N149*'Zdrojová data'!$C$14 -> 0 | P149: 0 | Q149: =IF(H149=0,D149-'Výstupy modelu'!$C$7,IF(P149=1,J149-K149,0)) -> 0 | R149: 0 | T149: =MAX(0,IF(Q149>0,Q149-('Výstupy modelu'!$H$10-'Výstupy modelu'!$H$9),0)) -> 0 | W149: 1865.43 | X149: 1885.43 | Y149: 0 | Z149: =MAX(0,D149-'Vstupní hodnoty'!$C$5) -> 0
B150: 2017-01-02T12:45:00 | C150: 1 | D150: 1368.36 | E150: =CEILING(IF(C150-C149=0,IF(H149=0,I149,IF(J149>K149,I149,E149)),'Výstupy modelu'!$C$7),1) -> 1664 | F150: 0 | G150: 0 | H150: =IF(F150=1,IF(G150>'Zdrojová data'!$C$19,0,1),"") ->  | I150: 1664 | J150: 0 | K150: =MIN(J150,'Zdrojová data'!$C$17) -> 0 | L150: 0 | M150: =L150/'Zdrojová data'!$C$16 -> 0 | N150: =M150*'Zdrojová data'!$C$13 -> 0 | O150: =N150*'Zdrojová data'!$C$14 -> 0 | P150: 0 | Q150: =IF(H150=0,D150-'Výstupy modelu'!$C$7,IF(P150=1,J150-K150,0)) -> 0 | R150: 0 | T150: =MAX(0,IF(Q150>0,Q150-('Výstupy modelu'!$H$10-'Výstupy modelu'!$H$9),0)) -> 0 | W150: 1865.43 | X150: 1885.43 | Y150: 0 | Z150: =MAX(0,D150-'Vstupní hodnoty'!$C$5) -> 0
B151: 2017-01-02T13:00:00 | C151: 1 | D151: 1379.16 | E151: =CEILING(IF(C151-C150=0,IF(H150=0,I150,IF(J150>K150,I150,E150)),'Výstupy modelu'!$C$7),1) -> 1664 | F151: 0 | G151: 0 | H151: =IF(F151=1,IF(G151>'Zdrojová data'!$C$19,0,1),"") ->  | I151: 1664 | J151: 0 | K151: =MIN(J151,'Zdrojová data'!$C$17) -> 0 | L151: 0 | M151: =L151/'Zdrojová data'!$C$16 -> 0 | N151: =M151*'Zdrojová data'!$C$13 -> 0 | O151: =N151*'Zdrojová data'!$C$14 -> 0 | P151: 0 | Q151: =IF(H151=0,D151-'Výstupy modelu'!$C$7,IF(P151=1,J151-K151,0)) -> 0 | R151: 0 | T151: =MAX(0,IF(Q151>0,Q151-('Výstupy modelu'!$H$10-'Výstupy modelu'!$H$9),0)) -> 0 | W151: 1865.43 | X151: 1885.43 | Y151: 0 | Z151: =MAX(0,D151-'Vstupní hodnoty'!$C$5) -> 0
B152: 2017-01-02T13:15:00 | C152: 1 | D152: 1369.44 | E152: =CEILING(IF(C152-C151=0,IF(H151=0,I151,IF(J151>K151,I151,E151)),'Výstupy modelu'!$C$7),1) -> 1664 | F152: 0 | G152: 0 | H152: =IF(F152=1,IF(G152>'Zdrojová data'!$C$19,0,1),"") ->  | I152: 1664 | J152: 0 | K152: =MIN(J152,'Zdrojová data'!$C$17) -> 0 | L152: 0 | M152: =L152/'Zdrojová data'!$C$16 -> 0 | N152: =M152*'Zdrojová data'!$C$13 -> 0 | O152: =N152*'Zdrojová data'!$C$14 -> 0 | P152: 0 | Q152: =IF(H152=0,D152-'Výstupy modelu'!$C$7,IF(P152=1,J152-K152,0)) -> 0 | R152: 0 | T152: =MAX(0,IF(Q152>0,Q152-('Výstupy modelu'!$H$10-'Výstupy modelu'!$H$9),0)) -> 0 | W152: 1865.43 | X152: 1885.43 | Y152: 0 | Z152: =MAX(0,D152-'Vstupní hodnoty'!$C$5) -> 0
B153: 2017-01-02T13:30:00 | C153: 1 | D153: 1345.68 | E153: =CEILING(IF(C153-C152=0,IF(H152=0,I152,IF(J152>K152,I152,E152)),'Výstupy modelu'!$C$7),1) -> 1664 | F153: 0 | G153: 0 | H153: =IF(F153=1,IF(G153>'Zdrojová data'!$C$19,0,1),"") ->  | I153: 1664 | J153: 0 | K153: =MIN(J153,'Zdrojová data'!$C$17) -> 0 | L153: 0 | M153: =L153/'Zdrojová data'!$C$16 -> 0 | N153: =M153*'Zdrojová data'!$C$13 -> 0 | O153: =N153*'Zdrojová data'!$C$14 -> 0 | P153: 0 | Q153: =IF(H153=0,D153-'Výstupy modelu'!$C$7,IF(P153=1,J153-K153,0)) -> 0 | R153: 0 | T153: =MAX(0,IF(Q153>0,Q153-('Výstupy modelu'!$H$10-'Výstupy modelu'!$H$9),0)) -> 0 | W153: 1865.43 | X153: 1885.43 | Y153: 0 | Z153: =MAX(0,D153-'Vstupní hodnoty'!$C$5) -> 0
B154: 2017-01-02T13:45:00 | C154: 1 | D154: 1332.72 | E154: =CEILING(IF(C154-C153=0,IF(H153=0,I153,IF(J153>K153,I153,E153)),'Výstupy modelu'!$C$7),1) -> 1664 | F154: 0 | G154: 0 | H154: =IF(F154=1,IF(G154>'Zdrojová data'!$C$19,0,1),"") ->  | I154: 1664 | J154: 0 | K154: =MIN(J154,'Zdrojová data'!$C$17) -> 0 | L154: 0 | M154: =L154/'Zdrojová data'!$C$16 -> 0 | N154: =M154*'Zdrojová data'!$C$13 -> 0 | O154: =N154*'Zdrojová data'!$C$14 -> 0 | P154: 0 | Q154: =IF(H154=0,D154-'Výstupy modelu'!$C$7,IF(P154=1,J154-K154,0)) -> 0 | R154: 0 | T154: =MAX(0,IF(Q154>0,Q154-('Výstupy modelu'!$H$10-'Výstupy modelu'!$H$9),0)) -> 0 | W154: 1865.43 | X154: 1885.43 | Y154: 0 | Z154: =MAX(0,D154-'Vstupní hodnoty'!$C$5) -> 0
B155: 2017-01-02T14:00:00 | C155: 1 | D155: 1210.68 | E155: =CEILING(IF(C155-C154=0,IF(H154=0,I154,IF(J154>K154,I154,E154)),'Výstupy modelu'!$C$7),1) -> 1664 | F155: 0 | G155: 0 | H155: =IF(F155=1,IF(G155>'Zdrojová data'!$C$19,0,1),"") ->  | I155: 1664 | J155: 0 | K155: =MIN(J155,'Zdrojová data'!$C$17) -> 0 | L155: 0 | M155: =L155/'Zdrojová data'!$C$16 -> 0 | N155: =M155*'Zdrojová data'!$C$13 -> 0 | O155: =N155*'Zdrojová data'!$C$14 -> 0 | P155: 0 | Q155: =IF(H155=0,D155-'Výstupy modelu'!$C$7,IF(P155=1,J155-K155,0)) -> 0 | R155: 0 | T155: =MAX(0,IF(Q155>0,Q155-('Výstupy modelu'!$H$10-'Výstupy modelu'!$H$9),0)) -> 0 | W155: 1865.43 | X155: 1885.43 | Y155: 0 | Z155: =MAX(0,D155-'Vstupní hodnoty'!$C$5) -> 0
B156: 2017-01-02T14:15:00 | C156: 1 | D156: 1210.68 | E156: =CEILING(IF(C156-C155=0,IF(H155=0,I155,IF(J155>K155,I155,E155)),'Výstupy modelu'!$C$7),1) -> 1664 | F156: 0 | G156: 0 | H156: =IF(F156=1,IF(G156>'Zdrojová data'!$C$19,0,1),"") ->  | I156: 1664 | J156: 0 | K156: =MIN(J156,'Zdrojová data'!$C$17) -> 0 | L156: 0 | M156: =L156/'Zdrojová data'!$C$16 -> 0 | N156: =M156*'Zdrojová data'!$C$13 -> 0 | O156: =N156*'Zdrojová data'!$C$14 -> 0 | P156: 0 | Q156: =IF(H156=0,D156-'Výstupy modelu'!$C$7,IF(P156=1,J156-K156,0)) -> 0 | R156: 0 | T156: =MAX(0,IF(Q156>0,Q156-('Výstupy modelu'!$H$10-'Výstupy modelu'!$H$9),0)) -> 0 | W156: 1865.43 | X156: 1885.43 | Y156: 0 | Z156: =MAX(0,D156-'Vstupní hodnoty'!$C$5) -> 0
B157: 2017-01-02T14:30:00 | C157: 1 | D157: 1114.56 | E157: =CEILING(IF(C157-C156=0,IF(H156=0,I156,IF(J156>K156,I156,E156)),'Výstupy modelu'!$C$7),1) -> 1664 | F157: 0 | G157: 0 | H157: =IF(F157=1,IF(G157>'Zdrojová data'!$C$19,0,1),"") ->  | I157: 1664 | J157: 0 | K157: =MIN(J157,'Zdrojová data'!$C$17) -> 0 | L157: 0 | M157: =L157/'Zdrojová data'!$C$16 -> 0 | N157: =M157*'Zdrojová data'!$C$13 -> 0 | O157: =N157*'Zdrojová data'!$C$14 -> 0 | P157: 0 | Q157: =IF(H157=0,D157-'Výstupy modelu'!$C$7,IF(P157=1,J157-K157,0)) -> 0 | R157: 0 | T157: =MAX(0,IF(Q157>0,Q157-('Výstupy modelu'!$H$10-'Výstupy modelu'!$H$9),0)) -> 0 | W157: 1865.43 | X157: 1885.43 | Y157: 0 | Z157: =MAX(0,D157-'Vstupní hodnoty'!$C$5) -> 0
B158: 2017-01-02T14:45:00 | C158: 1 | D158: 1145.88 | E158: =CEILING(IF(C158-C157=0,IF(H157=0,I157,IF(J157>K157,I157,E157)),'Výstupy modelu'!$C$7),1) -> 1664 | F158: 0 | G158: 0 | H158: =IF(F158=1,IF(G158>'Zdrojová data'!$C$19,0,1),"") ->  | I158: 1664 | J158: 0 | K158: =MIN(J158,'Zdrojová data'!$C$17) -> 0 | L158: 0 | M158: =L158/'Zdrojová data'!$C$16 -> 0 | N158: =M158*'Zdrojová data'!$C$13 -> 0 | O158: =N158*'Zdrojová data'!$C$14 -> 0 | P158: 0 | Q158: =IF(H158=0,D158-'Výstupy modelu'!$C$7,IF(P158=1,J158-K158,0)) -> 0 | R158: 0 | T158: =MAX(0,IF(Q158>0,Q158-('Výstupy modelu'!$H$10-'Výstupy modelu'!$H$9),0)) -> 0 | W158: 1865.43 | X158: 1885.43 | Y158: 0 | Z158: =MAX(0,D158-'Vstupní hodnoty'!$C$5) -> 0
B159: 2017-01-02T15:00:00 | C159: 1 | D159: 1082.16 | E159: =CEILING(IF(C159-C158=0,IF(H158=0,I158,IF(J158>K158,I158,E158)),'Výstupy modelu'!$C$7),1) -> 1664 | F159: 0 | G159: 0 | H159: =IF(F159=1,IF(G159>'Zdrojová data'!$C$19,0,1),"") ->  | I159: 1664 | J159: 0 | K159: =MIN(J159,'Zdrojová data'!$C$17) -> 0 | L159: 0 | M159: =L159/'Zdrojová data'!$C$16 -> 0 | N159: =M159*'Zdrojová data'!$C$13 -> 0 | O159: =N159*'Zdrojová data'!$C$14 -> 0 | P159: 0 | Q159: =IF(H159=0,D159-'Výstupy modelu'!$C$7,IF(P159=1,J159-K159,0)) -> 0 | R159: 0 | T159: =MAX(0,IF(Q159>0,Q159-('Výstupy modelu'!$H$10-'Výstupy modelu'!$H$9),0)) -> 0 | W159: 1865.43 | X159: 1885.43 | Y159: 0 | Z159: =MAX(0,D159-'Vstupní hodnoty'!$C$5) -> 0
B160: 2017-01-02T15:15:00 | C160: 1 | D160: 1102.68 | E160: =CEILING(IF(C160-C159=0,IF(H159=0,I159,IF(J159>K159,I159,E159)),'Výstupy modelu'!$C$7),1) -> 1664 | F160: 0 | G160: 0 | H160: =IF(F160=1,IF(G160>'Zdrojová data'!$C$19,0,1),"") ->  | I160: 1664 | J160: 0 | K160: =MIN(J160,'Zdrojová data'!$C$17) -> 0 | L160: 0 | M160: =L160/'Zdrojová data'!$C$16 -> 0 | N160: =M160*'Zdrojová data'!$C$13 -> 0 | O160: =N160*'Zdrojová data'!$C$14 -> 0 | P160: 0 | Q160: =IF(H160=0,D160-'Výstupy modelu'!$C$7,IF(P160=1,J160-K160,0)) -> 0 | R160: 0 | T160: =MAX(0,IF(Q160>0,Q160-('Výstupy modelu'!$H$10-'Výstupy modelu'!$H$9),0)) -> 0 | W160: 1865.43 | X160: 1885.43 | Y160: 0 | Z160: =MAX(0,D160-'Vstupní hodnoty'!$C$5) -> 0
B161: 2017-01-02T15:30:00 | C161: 1 | D161: 1043.28 | E161: =CEILING(IF(C161-C160=0,IF(H160=0,I160,IF(J160>K160,I160,E160)),'Výstupy modelu'!$C$7),1) -> 1664 | F161: 0 | G161: 0 | H161: =IF(F161=1,IF(G161>'Zdrojová data'!$C$19,0,1),"") ->  | I161: 1664 | J161: 0 | K161: =MIN(J161,'Zdrojová data'!$C$17) -> 0 | L161: 0 | M161: =L161/'Zdrojová data'!$C$16 -> 0 | N161: =M161*'Zdrojová data'!$C$13 -> 0 | O161: =N161*'Zdrojová data'!$C$14 -> 0 | P161: 0 | Q161: =IF(H161=0,D161-'Výstupy modelu'!$C$7,IF(P161=1,J161-K161,0)) -> 0 | R161: 0 | T161: =MAX(0,IF(Q161>0,Q161-('Výstupy modelu'!$H$10-'Výstupy modelu'!$H$9),0)) -> 0 | W161: 1865.43 | X161: 1885.43 | Y161: 0 | Z161: =MAX(0,D161-'Vstupní hodnoty'!$C$5) -> 0
B162: 2017-01-02T15:45:00 | C162: 1 | D162: 1004.4 | E162: =CEILING(IF(C162-C161=0,IF(H161=0,I161,IF(J161>K161,I161,E161)),'Výstupy modelu'!$C$7),1) -> 1664 | F162: 0 | G162: 0 | H162: =IF(F162=1,IF(G162>'Zdrojová data'!$C$19,0,1),"") ->  | I162: 1664 | J162: 0 | K162: =MIN(J162,'Zdrojová data'!$C$17) -> 0 | L162: 0 | M162: =L162/'Zdrojová data'!$C$16 -> 0 | N162: =M162*'Zdrojová data'!$C$13 -> 0 | O162: =N162*'Zdrojová data'!$C$14 -> 0 | P162: 0 | Q162: =IF(H162=0,D162-'Výstupy modelu'!$C$7,IF(P162=1,J162-K162,0)) -> 0 | R162: 0 | T162: =MAX(0,IF(Q162>0,Q162-('Výstupy modelu'!$H$10-'Výstupy modelu'!$H$9),0)) -> 0 | W162: 1865.43 | X162: 1885.43 | Y162: 0 | Z162: =MAX(0,D162-'Vstupní hodnoty'!$C$5) -> 0
B163: 2017-01-02T16:00:00 | C163: 1 | D163: 913.68 | E163: =CEILING(IF(C163-C162=0,IF(H162=0,I162,IF(J162>K162,I162,E162)),'Výstupy modelu'!$C$7),1) -> 1664 | F163: 0 | G163: 0 | H163: =IF(F163=1,IF(G163>'Zdrojová data'!$C$19,0,1),"") ->  | I163: 1664 | J163: 0 | K163: =MIN(J163,'Zdrojová data'!$C$17) -> 0 | L163: 0 | M163: =L163/'Zdrojová data'!$C$16 -> 0 | N163: =M163*'Zdrojová data'!$C$13 -> 0 | O163: =N163*'Zdrojová data'!$C$14 -> 0 | P163: 0 | Q163: =IF(H163=0,D163-'Výstupy modelu'!$C$7,IF(P163=1,J163-K163,0)) -> 0 | R163: 0 | T163: =MAX(0,IF(Q163>0,Q163-('Výstupy modelu'!$H$10-'Výstupy modelu'!$H$9),0)) -> 0 | W163: 1865.43 | X163: 1885.43 | Y163: 0 | Z163: =MAX(0,D163-'Vstupní hodnoty'!$C$5) -> 0
B164: 2017-01-02T16:15:00 | C164: 1 | D164: 994.68 | E164: =CEILING(IF(C164-C163=0,IF(H163=0,I163,IF(J163>K163,I163,E163)),'Výstupy modelu'!$C$7),1) -> 1664 | F164: 0 | G164: 0 | H164: =IF(F164=1,IF(G164>'Zdrojová data'!$C$19,0,1),"") ->  | I164: 1664 | J164: 0 | K164: =MIN(J164,'Zdrojová data'!$C$17) -> 0 | L164: 0 | M164: =L164/'Zdrojová data'!$C$16 -> 0 | N164: =M164*'Zdrojová data'!$C$13 -> 0 | O164: =N164*'Zdrojová data'!$C$14 -> 0 | P164: 0 | Q164: =IF(H164=0,D164-'Výstupy modelu'!$C$7,IF(P164=1,J164-K164,0)) -> 0 | R164: 0 | T164: =MAX(0,IF(Q164>0,Q164-('Výstupy modelu'!$H$10-'Výstupy modelu'!$H$9),0)) -> 0 | W164: 1865.43 | X164: 1885.43 | Y164: 0 | Z164: =MAX(0,D164-'Vstupní hodnoty'!$C$5) -> 0
B165: 2017-01-02T16:30:00 | C165: 1 | D165: 1026 | E165: =CEILING(IF(C165-C164=0,IF(H164=0,I164,IF(J164>K164,I164,E164)),'Výstupy modelu'!$C$7),1) -> 1664 | F165: 0 | G165: 0 | H165: =IF(F165=1,IF(G165>'Zdrojová data'!$C$19,0,1),"") ->  | I165: 1664 | J165: 0 | K165: =MIN(J165,'Zdrojová data'!$C$17) -> 0 | L165: 0 | M165: =L165/'Zdrojová data'!$C$16 -> 0 | N165: =M165*'Zdrojová data'!$C$13 -> 0 | O165: =N165*'Zdrojová data'!$C$14 -> 0 | P165: 0 | Q165: =IF(H165=0,D165-'Výstupy modelu'!$C$7,IF(P165=1,J165-K165,0)) -> 0 | R165: 0 | T165: =MAX(0,IF(Q165>0,Q165-('Výstupy modelu'!$H$10-'Výstupy modelu'!$H$9),0)) -> 0 | W165: 1865.43 | X165: 1885.43 | Y165: 0 | Z165: =MAX(0,D165-'Vstupní hodnoty'!$C$5) -> 0
B166: 2017-01-02T16:45:00 | C166: 1 | D166: 1019.52 | E166: =CEILING(IF(C166-C165=0,IF(H165=0,I165,IF(J165>K165,I165,E165)),'Výstupy modelu'!$C$7),1) -> 1664 | F166: 0 | G166: 0 | H166: =IF(F166=1,IF(G166>'Zdrojová data'!$C$19,0,1),"") ->  | I166: 1664 | J166: 0 | K166: =MIN(J166,'Zdrojová data'!$C$17) -> 0 | L166: 0 | M166: =L166/'Zdrojová data'!$C$16 -> 0 | N166: =M166*'Zdrojová data'!$C$13 -> 0 | O166: =N166*'Zdrojová data'!$C$14 -> 0 | P166: 0 | Q166: =IF(H166=0,D166-'Výstupy modelu'!$C$7,IF(P166=1,J166-K166,0)) -> 0 | R166: 0 | T166: =MAX(0,IF(Q166>0,Q166-('Výstupy modelu'!$H$10-'Výstupy modelu'!$H$9),0)) -> 0 | W166: 1865.43 | X166: 1885.43 | Y166: 0 | Z166: =MAX(0,D166-'Vstupní hodnoty'!$C$5) -> 0
B167: 2017-01-02T17:00:00 | C167: 1 | D167: 987.12 | E167: =CEILING(IF(C167-C166=0,IF(H166=0,I166,IF(J166>K166,I166,E166)),'Výstupy modelu'!$C$7),1) -> 1664 | F167: 0 | G167: 0 | H167: =IF(F167=1,IF(G167>'Zdrojová data'!$C$19,0,1),"") ->  | I167: 1664 | J167: 0 | K167: =MIN(J167,'Zdrojová data'!$C$17) -> 0 | L167: 0 | M167: =L167/'Zdrojová data'!$C$16 -> 0 | N167: =M167*'Zdrojová data'!$C$13 -> 0 | O167: =N167*'Zdrojová data'!$C$14 -> 0 | P167: 0 | Q167: =IF(H167=0,D167-'Výstupy modelu'!$C$7,IF(P167=1,J167-K167,0)) -> 0 | R167: 0 | T167: =MAX(0,IF(Q167>0,Q167-('Výstupy modelu'!$H$10-'Výstupy modelu'!$H$9),0)) -> 0 | W167: 1865.43 | X167: 1885.43 | Y167: 0 | Z167: =MAX(0,D167-'Vstupní hodnoty'!$C$5) -> 0
B168: 2017-01-02T17:15:00 | C168: 1 | D168: 976.32 | E168: =CEILING(IF(C168-C167=0,IF(H167=0,I167,IF(J167>K167,I167,E167)),'Výstupy modelu'!$C$7),1) -> 1664 | F168: 0 | G168: 0 | H168: =IF(F168=1,IF(G168>'Zdrojová data'!$C$19,0,1),"") ->  | I168: 1664 | J168: 0 | K168: =MIN(J168,'Zdrojová data'!$C$17) -> 0 | L168: 0 | M168: =L168/'Zdrojová data'!$C$16 -> 0 | N168: =M168*'Zdrojová data'!$C$13 -> 0 | O168: =N168*'Zdrojová data'!$C$14 -> 0 | P168: 0 | Q168: =IF(H168=0,D168-'Výstupy modelu'!$C$7,IF(P168=1,J168-K168,0)) -> 0 | R168: 0 | T168: =MAX(0,IF(Q168>0,Q168-('Výstupy modelu'!$H$10-'Výstupy modelu'!$H$9),0)) -> 0 | W168: 1865.43 | X168: 1885.43 | Y168: 0 | Z168: =MAX(0,D168-'Vstupní hodnoty'!$C$5) -> 0
B169: 2017-01-02T17:30:00 | C169: 1 | D169: 942.84 | E169: =CEILING(IF(C169-C168=0,IF(H168=0,I168,IF(J168>K168,I168,E168)),'Výstupy modelu'!$C$7),1) -> 1664 | F169: 0 | G169: 0 | H169: =IF(F169=1,IF(G169>'Zdrojová data'!$C$19,0,1),"") ->  | I169: 1664 | J169: 0 | K169: =MIN(J169,'Zdrojová data'!$C$17) -> 0 | L169: 0 | M169: =L169/'Zdrojová data'!$C$16 -> 0 | N169: =M169*'Zdrojová data'!$C$13 -> 0 | O169: =N169*'Zdrojová data'!$C$14 -> 0 | P169: 0 | Q169: =IF(H169=0,D169-'Výstupy modelu'!$C$7,IF(P169=1,J169-K169,0)) -> 0 | R169: 0 | T169: =MAX(0,IF(Q169>0,Q169-('Výstupy modelu'!$H$10-'Výstupy modelu'!$H$9),0)) -> 0 | W169: 1865.43 | X169: 1885.43 | Y169: 0 | Z169: =MAX(0,D169-'Vstupní hodnoty'!$C$5) -> 0
B170: 2017-01-02T17:45:00 | C170: 1 | D170: 801.36 | E170: =CEILING(IF(C170-C169=0,IF(H169=0,I169,IF(J169>K169,I169,E169)),'Výstupy modelu'!$C$7),1) -> 1664 | F170: 0 | G170: 0 | H170: =IF(F170=1,IF(G170>'Zdrojová data'!$C$19,0,1),"") ->  | I170: 1664 | J170: 0 | K170: =MIN(J170,'Zdrojová data'!$C$17) -> 0 | L170: 0 | M170: =L170/'Zdrojová data'!$C$16 -> 0 | N170: =M170*'Zdrojová data'!$C$13 -> 0 | O170: =N170*'Zdrojová data'!$C$14 -> 0 | P170: 0 | Q170: =IF(H170=0,D170-'Výstupy modelu'!$C$7,IF(P170=1,J170-K170,0)) -> 0 | R170: 0 | T170: =MAX(0,IF(Q170>0,Q170-('Výstupy modelu'!$H$10-'Výstupy modelu'!$H$9),0)) -> 0 | W170: 1865.43 | X170: 1885.43 | Y170: 0 | Z170: =MAX(0,D170-'Vstupní hodnoty'!$C$5) -> 0
B171: 2017-01-02T18:00:00 | C171: 1 | D171: 800.28 | E171: =CEILING(IF(C171-C170=0,IF(H170=0,I170,IF(J170>K170,I170,E170)),'Výstupy modelu'!$C$7),1) -> 1664 | F171: 0 | G171: 0 | H171: =IF(F171=1,IF(G171>'Zdrojová data'!$C$19,0,1),"") ->  | I171: 1664 | J171: 0 | K171: =MIN(J171,'Zdrojová data'!$C$17) -> 0 | L171: 0 | M171: =L171/'Zdrojová data'!$C$16 -> 0 | N171: =M171*'Zdrojová data'!$C$13 -> 0 | O171: =N171*'Zdrojová data'!$C$14 -> 0 | P171: 0 | Q171: =IF(H171=0,D171-'Výstupy modelu'!$C$7,IF(P171=1,J171-K171,0)) -> 0 | R171: 0 | T171: =MAX(0,IF(Q171>0,Q171-('Výstupy modelu'!$H$10-'Výstupy modelu'!$H$9),0)) -> 0 | W171: 1865.43 | X171: 1885.43 | Y171: 0 | Z171: =MAX(0,D171-'Vstupní hodnoty'!$C$5) -> 0
B172: 2017-01-02T18:15:00 | C172: 1 | D172: 838.08 | E172: =CEILING(IF(C172-C171=0,IF(H171=0,I171,IF(J171>K171,I171,E171)),'Výstupy modelu'!$C$7),1) -> 1664 | F172: 0 | G172: 0 | H172: =IF(F172=1,IF(G172>'Zdrojová data'!$C$19,0,1),"") ->  | I172: 1664 | J172: 0 | K172: =MIN(J172,'Zdrojová data'!$C$17) -> 0 | L172: 0 | M172: =L172/'Zdrojová data'!$C$16 -> 0 | N172: =M172*'Zdrojová data'!$C$13 -> 0 | O172: =N172*'Zdrojová data'!$C$14 -> 0 | P172: 0 | Q172: =IF(H172=0,D172-'Výstupy modelu'!$C$7,IF(P172=1,J172-K172,0)) -> 0 | R172: 0 | T172: =MAX(0,IF(Q172>0,Q172-('Výstupy modelu'!$H$10-'Výstupy modelu'!$H$9),0)) -> 0 | W172: 1865.43 | X172: 1885.43 | Y172: 0 | Z172: =MAX(0,D172-'Vstupní hodnoty'!$C$5) -> 0
B173: 2017-01-02T18:30:00 | C173: 1 | D173: 901.8 | E173: =CEILING(IF(C173-C172=0,IF(H172=0,I172,IF(J172>K172,I172,E172)),'Výstupy modelu'!$C$7),1) -> 1664 | F173: 0 | G173: 0 | H173: =IF(F173=1,IF(G173>'Zdrojová data'!$C$19,0,1),"") ->  | I173: 1664 | J173: 0 | K173: =MIN(J173,'Zdrojová data'!$C$17) -> 0 | L173: 0 | M173: =L173/'Zdrojová data'!$C$16 -> 0 | N173: =M173*'Zdrojová data'!$C$13 -> 0 | O173: =N173*'Zdrojová data'!$C$14 -> 0 | P173: 0 | Q173: =IF(H173=0,D173-'Výstupy modelu'!$C$7,IF(P173=1,J173-K173,0)) -> 0 | R173: 0 | T173: =MAX(0,IF(Q173>0,Q173-('Výstupy modelu'!$H$10-'Výstupy modelu'!$H$9),0)) -> 0 | W173: 1865.43 | X173: 1885.43 | Y173: 0 | Z173: =MAX(0,D173-'Vstupní hodnoty'!$C$5) -> 0
B174: 2017-01-02T18:45:00 | C174: 1 | D174: 893.16 | E174: =CEILING(IF(C174-C173=0,IF(H173=0,I173,IF(J173>K173,I173,E173)),'Výstupy modelu'!$C$7),1) -> 1664 | F174: 0 | G174: 0 | H174: =IF(F174=1,IF(G174>'Zdrojová data'!$C$19,0,1),"") ->  | I174: 1664 | J174: 0 | K174: =MIN(J174,'Zdrojová data'!$C$17) -> 0 | L174: 0 | M174: =L174/'Zdrojová data'!$C$16 -> 0 | N174: =M174*'Zdrojová data'!$C$13 -> 0 | O174: =N174*'Zdrojová data'!$C$14 -> 0 | P174: 0 | Q174: =IF(H174=0,D174-'Výstupy modelu'!$C$7,IF(P174=1,J174-K174,0)) -> 0 | R174: 0 | T174: =MAX(0,IF(Q174>0,Q174-('Výstupy modelu'!$H$10-'Výstupy modelu'!$H$9),0)) -> 0 | W174: 1865.43 | X174: 1885.43 | Y174: 0 | Z174: =MAX(0,D174-'Vstupní hodnoty'!$C$5) -> 0
B175: 2017-01-02T19:00:00 | C175: 1 | D175: 899.64 | E175: =CEILING(IF(C175-C174=0,IF(H174=0,I174,IF(J174>K174,I174,E174)),'Výstupy modelu'!$C$7),1) -> 1664 | F175: 0 | G175: 0 | H175: =IF(F175=1,IF(G175>'Zdrojová data'!$C$19,0,1),"") ->  | I175: 1664 | J175: 0 | K175: =MIN(J175,'Zdrojová data'!$C$17) -> 0 | L175: 0 | M175: =L175/'Zdrojová data'!$C$16 -> 0 | N175: =M175*'Zdrojová data'!$C$13 -> 0 | O175: =N175*'Zdrojová data'!$C$14 -> 0 | P175: 0 | Q175: =IF(H175=0,D175-'Výstupy modelu'!$C$7,IF(P175=1,J175-K175,0)) -> 0 | R175: 0 | T175: =MAX(0,IF(Q175>0,Q175-('Výstupy modelu'!$H$10-'Výstupy modelu'!$H$9),0)) -> 0 | W175: 1865.43 | X175: 1885.43 | Y175: 0 | Z175: =MAX(0,D175-'Vstupní hodnoty'!$C$5) -> 0
B176: 2017-01-02T19:15:00 | C176: 1 | D176: 902.88 | E176: =CEILING(IF(C176-C175=0,IF(H175=0,I175,IF(J175>K175,I175,E175)),'Výstupy modelu'!$C$7),1) -> 1664 | F176: 0 | G176: 0 | H176: =IF(F176=1,IF(G176>'Zdrojová data'!$C$19,0,1),"") ->  | I176: 1664 | J176: 0 | K176: =MIN(J176,'Zdrojová data'!$C$17) -> 0 | L176: 0 | M176: =L176/'Zdrojová data'!$C$16 -> 0 | N176: =M176*'Zdrojová data'!$C$13 -> 0 | O176: =N176*'Zdrojová data'!$C$14 -> 0 | P176: 0 | Q176: =IF(H176=0,D176-'Výstupy modelu'!$C$7,IF(P176=1,J176-K176,0)) -> 0 | R176: 0 | T176: =MAX(0,IF(Q176>0,Q176-('Výstupy modelu'!$H$10-'Výstupy modelu'!$H$9),0)) -> 0 | W176: 1865.43 | X176: 1885.43 | Y176: 0 | Z176: =MAX(0,D176-'Vstupní hodnoty'!$C$5) -> 0
B177: 2017-01-02T19:30:00 | C177: 1 | D177: 894.24 | E177: =CEILING(IF(C177-C176=0,IF(H176=0,I176,IF(J176>K176,I176,E176)),'Výstupy modelu'!$C$7),1) -> 1664 | F177: 0 | G177: 0 | H177: =IF(F177=1,IF(G177>'Zdrojová data'!$C$19,0,1),"") ->  | I177: 1664 | J177: 0 | K177: =MIN(J177,'Zdrojová data'!$C$17) -> 0 | L177: 0 | M177: =L177/'Zdrojová data'!$C$16 -> 0 | N177: =M177*'Zdrojová data'!$C$13 -> 0 | O177: =N177*'Zdrojová data'!$C$14 -> 0 | P177: 0 | Q177: =IF(H177=0,D177-'Výstupy modelu'!$C$7,IF(P177=1,J177-K177,0)) -> 0 | R177: 0 | T177: =MAX(0,IF(Q177>0,Q177-('Výstupy modelu'!$H$10-'Výstupy modelu'!$H$9),0)) -> 0 | W177: 1865.43 | X177: 1885.43 | Y177: 0 | Z177: =MAX(0,D177-'Vstupní hodnoty'!$C$5) -> 0
B178: 2017-01-02T19:45:00 | C178: 1 | D178: 889.92 | E178: =CEILING(IF(C178-C177=0,IF(H177=0,I177,IF(J177>K177,I177,E177)),'Výstupy modelu'!$C$7),1) -> 1664 | F178: 0 | G178: 0 | H178: =IF(F178=1,IF(G178>'Zdrojová data'!$C$19,0,1),"") ->  | I178: 1664 | J178: 0 | K178: =MIN(J178,'Zdrojová data'!$C$17) -> 0 | L178: 0 | M178: =L178/'Zdrojová data'!$C$16 -> 0 | N178: =M178*'Zdrojová data'!$C$13 -> 0 | O178: =N178*'Zdrojová data'!$C$14 -> 0 | P178: 0 | Q178: =IF(H178=0,D178-'Výstupy modelu'!$C$7,IF(P178=1,J178-K178,0)) -> 0 | R178: 0 | T178: =MAX(0,IF(Q178>0,Q178-('Výstupy modelu'!$H$10-'Výstupy modelu'!$H$9),0)) -> 0 | W178: 1865.43 | X178: 1885.43 | Y178: 0 | Z178: =MAX(0,D178-'Vstupní hodnoty'!$C$5) -> 0
B179: 2017-01-02T20:00:00 | C179: 1 | D179: 855.36 | E179: =CEILING(IF(C179-C178=0,IF(H178=0,I178,IF(J178>K178,I178,E178)),'Výstupy modelu'!$C$7),1) -> 1664 | F179: 0 | G179: 0 | H179: =IF(F179=1,IF(G179>'Zdrojová data'!$C$19,0,1),"") ->  | I179: 1664 | J179: 0 | K179: =MIN(J179,'Zdrojová data'!$C$17) -> 0 | L179: 0 | M179: =L179/'Zdrojová data'!$C$16 -> 0 | N179: =M179*'Zdrojová data'!$C$13 -> 0 | O179: =N179*'Zdrojová data'!$C$14 -> 0 | P179: 0 | Q179: =IF(H179=0,D179-'Výstupy modelu'!$C$7,IF(P179=1,J179-K179,0)) -> 0 | R179: 0 | T179: =MAX(0,IF(Q179>0,Q179-('Výstupy modelu'!$H$10-'Výstupy modelu'!$H$9),0)) -> 0 | W179: 1865.43 | X179: 1885.43 | Y179: 0 | Z179: =MAX(0,D179-'Vstupní hodnoty'!$C$5) -> 0
B180: 2017-01-02T20:15:00 | C180: 1 | D180: 778.68 | E180: =CEILING(IF(C180-C179=0,IF(H179=0,I179,IF(J179>K179,I179,E179)),'Výstupy modelu'!$C$7),1) -> 1664 | F180: 0 | G180: 0 | H180: =IF(F180=1,IF(G180>'Zdrojová data'!$C$19,0,1),"") ->  | I180: 1664 | J180: 0 | K180: =MIN(J180,'Zdrojová data'!$C$17) -> 0 | L180: 0 | M180: =L180/'Zdrojová data'!$C$16 -> 0 | N180: =M180*'Zdrojová data'!$C$13 -> 0 | O180: =N180*'Zdrojová data'!$C$14 -> 0 | P180: 0 | Q180: =IF(H180=0,D180-'Výstupy modelu'!$C$7,IF(P180=1,J180-K180,0)) -> 0 | R180: 0 | T180: =MAX(0,IF(Q180>0,Q180-('Výstupy modelu'!$H$10-'Výstupy modelu'!$H$9),0)) -> 0 | W180: 1865.43 | X180: 1885.43 | Y180: 0 | Z180: =MAX(0,D180-'Vstupní hodnoty'!$C$5) -> 0
B181: 2017-01-02T20:30:00 | C181: 1 | D181: 859.68 | E181: =CEILING(IF(C181-C180=0,IF(H180=0,I180,IF(J180>K180,I180,E180)),'Výstupy modelu'!$C$7),1) -> 1664 | F181: 0 | G181: 0 | H181: =IF(F181=1,IF(G181>'Zdrojová data'!$C$19,0,1),"") ->  | I181: 1664 | J181: 0 | K181: =MIN(J181,'Zdrojová data'!$C$17) -> 0 | L181: 0 | M181: =L181/'Zdrojová data'!$C$16 -> 0 | N181: =M181*'Zdrojová data'!$C$13 -> 0 | O181: =N181*'Zdrojová data'!$C$14 -> 0 | P181: 0 | Q181: =IF(H181=0,D181-'Výstupy modelu'!$C$7,IF(P181=1,J181-K181,0)) -> 0 | R181: 0 | T181: =MAX(0,IF(Q181>0,Q181-('Výstupy modelu'!$H$10-'Výstupy modelu'!$H$9),0)) -> 0 | W181: 1865.43 | X181: 1885.43 | Y181: 0 | Z181: =MAX(0,D181-'Vstupní hodnoty'!$C$5) -> 0
B182: 2017-01-02T20:45:00 | C182: 1 | D182: 851.04 | E182: =CEILING(IF(C182-C181=0,IF(H181=0,I181,IF(J181>K181,I181,E181)),'Výstupy modelu'!$C$7),1) -> 1664 | F182: 0 | G182: 0 | H182: =IF(F182=1,IF(G182>'Zdrojová data'!$C$19,0,1),"") ->  | I182: 1664 | J182: 0 | K182: =MIN(J182,'Zdrojová data'!$C$17) -> 0 | L182: 0 | M182: =L182/'Zdrojová data'!$C$16 -> 0 | N182: =M182*'Zdrojová data'!$C$13 -> 0 | O182: =N182*'Zdrojová data'!$C$14 -> 0 | P182: 0 | Q182: =IF(H182=0,D182-'Výstupy modelu'!$C$7,IF(P182=1,J182-K182,0)) -> 0 | R182: 0 | T182: =MAX(0,IF(Q182>0,Q182-('Výstupy modelu'!$H$10-'Výstupy modelu'!$H$9),0)) -> 0 | W182: 1865.43 | X182: 1885.43 | Y182: 0 | Z182: =MAX(0,D182-'Vstupní hodnoty'!$C$5) -> 0
B183: 2017-01-02T21:00:00 | C183: 1 | D183: 830.52 | E183: =CEILING(IF(C183-C182=0,IF(H182=0,I182,IF(J182>K182,I182,E182)),'Výstupy modelu'!$C$7),1) -> 1664 | F183: 0 | G183: 0 | H183: =IF(F183=1,IF(G183>'Zdrojová data'!$C$19,0,1),"") ->  | I183: 1664 | J183: 0 | K183: =MIN(J183,'Zdrojová data'!$C$17) -> 0 | L183: 0 | M183: =L183/'Zdrojová data'!$C$16 -> 0 | N183: =M183*'Zdrojová data'!$C$13 -> 0 | O183: =N183*'Zdrojová data'!$C$14 -> 0 | P183: 0 | Q183: =IF(H183=0,D183-'Výstupy modelu'!$C$7,IF(P183=1,J183-K183,0)) -> 0 | R183: 0 | T183: =MAX(0,IF(Q183>0,Q183-('Výstupy modelu'!$H$10-'Výstupy modelu'!$H$9),0)) -> 0 | W183: 1865.43 | X183: 1885.43 | Y183: 0 | Z183: =MAX(0,D183-'Vstupní hodnoty'!$C$5) -> 0
B184: 2017-01-02T21:15:00 | C184: 1 | D184: 746.28 | E184: =CEILING(IF(C184-C183=0,IF(H183=0,I183,IF(J183>K183,I183,E183)),'Výstupy modelu'!$C$7),1) -> 1664 | F184: 0 | G184: 0 | H184: =IF(F184=1,IF(G184>'Zdrojová data'!$C$19,0,1),"") ->  | I184: 1664 | J184: 0 | K184: =MIN(J184,'Zdrojová data'!$C$17) -> 0 | L184: 0 | M184: =L184/'Zdrojová data'!$C$16 -> 0 | N184: =M184*'Zdrojová data'!$C$13 -> 0 | O184: =N184*'Zdrojová data'!$C$14 -> 0 | P184: 0 | Q184: =IF(H184=0,D184-'Výstupy modelu'!$C$7,IF(P184=1,J184-K184,0)) -> 0 | R184: 0 | T184: =MAX(0,IF(Q184>0,Q184-('Výstupy modelu'!$H$10-'Výstupy modelu'!$H$9),0)) -> 0 | W184: 1865.43 | X184: 1885.43 | Y184: 0 | Z184: =MAX(0,D184-'Vstupní hodnoty'!$C$5) -> 0
B185: 2017-01-02T21:30:00 | C185: 1 | D185: 714.96 | E185: =CEILING(IF(C185-C184=0,IF(H184=0,I184,IF(J184>K184,I184,E184)),'Výstupy modelu'!$C$7),1) -> 1664 | F185: 0 | G185: 0 | H185: =IF(F185=1,IF(G185>'Zdrojová data'!$C$19,0,1),"") ->  | I185: 1664 | J185: 0 | K185: =MIN(J185,'Zdrojová data'!$C$17) -> 0 | L185: 0 | M185: =L185/'Zdrojová data'!$C$16 -> 0 | N185: =M185*'Zdrojová data'!$C$13 -> 0 | O185: =N185*'Zdrojová data'!$C$14 -> 0 | P185: 0 | Q185: =IF(H185=0,D185-'Výstupy modelu'!$C$7,IF(P185=1,J185-K185,0)) -> 0 | R185: 0 | T185: =MAX(0,IF(Q185>0,Q185-('Výstupy modelu'!$H$10-'Výstupy modelu'!$H$9),0)) -> 0 | W185: 1865.43 | X185: 1885.43 | Y185: 0 | Z185: =MAX(0,D185-'Vstupní hodnoty'!$C$5) -> 0
B186: 2017-01-02T21:45:00 | C186: 1 | D186: 637.2 | E186: =CEILING(IF(C186-C185=0,IF(H185=0,I185,IF(J185>K185,I185,E185)),'Výstupy modelu'!$C$7),1) -> 1664 | F186: 0 | G186: 0 | H186: =IF(F186=1,IF(G186>'Zdrojová data'!$C$19,0,1),"") ->  | I186: 1664 | J186: 0 | K186: =MIN(J186,'Zdrojová data'!$C$17) -> 0 | L186: 0 | M186: =L186/'Zdrojová data'!$C$16 -> 0 | N186: =M186*'Zdrojová data'!$C$13 -> 0 | O186: =N186*'Zdrojová data'!$C$14 -> 0 | P186: 0 | Q186: =IF(H186=0,D186-'Výstupy modelu'!$C$7,IF(P186=1,J186-K186,0)) -> 0 | R186: 0 | T186: =MAX(0,IF(Q186>0,Q186-('Výstupy modelu'!$H$10-'Výstupy modelu'!$H$9),0)) -> 0 | W186: 1865.43 | X186: 1885.43 | Y186: 0 | Z186: =MAX(0,D186-'Vstupní hodnoty'!$C$5) -> 0
B187: 2017-01-02T22:00:00 | C187: 1 | D187: 573.48 | E187: =CEILING(IF(C187-C186=0,IF(H186=0,I186,IF(J186>K186,I186,E186)),'Výstupy modelu'!$C$7),1) -> 1664 | F187: 0 | G187: 0 | H187: =IF(F187=1,IF(G187>'Zdrojová data'!$C$19,0,1),"") ->  | I187: 1664 | J187: 0 | K187: =MIN(J187,'Zdrojová data'!$C$17) -> 0 | L187: 0 | M187: =L187/'Zdrojová data'!$C$16 -> 0 | N187: =M187*'Zdrojová data'!$C$13 -> 0 | O187: =N187*'Zdrojová data'!$C$14 -> 0 | P187: 0 | Q187: =IF(H187=0,D187-'Výstupy modelu'!$C$7,IF(P187=1,J187-K187,0)) -> 0 | R187: 0 | T187: =MAX(0,IF(Q187>0,Q187-('Výstupy modelu'!$H$10-'Výstupy modelu'!$H$9),0)) -> 0 | W187: 1865.43 | X187: 1885.43 | Y187: 0 | Z187: =MAX(0,D187-'Vstupní hodnoty'!$C$5) -> 0
B188: 2017-01-02T22:15:00 | C188: 1 | D188: 501.12 | E188: =CEILING(IF(C188-C187=0,IF(H187=0,I187,IF(J187>K187,I187,E187)),'Výstupy modelu'!$C$7),1) -> 1664 | F188: 0 | G188: 0 | H188: =IF(F188=1,IF(G188>'Zdrojová data'!$C$19,0,1),"") ->  | I188: 1664 | J188: 0 | K188: =MIN(J188,'Zdrojová data'!$C$17) -> 0 | L188: 0 | M188: =L188/'Zdrojová data'!$C$16 -> 0 | N188: =M188*'Zdrojová data'!$C$13 -> 0 | O188: =N188*'Zdrojová data'!$C$14 -> 0 | P188: 0 | Q188: =IF(H188=0,D188-'Výstupy modelu'!$C$7,IF(P188=1,J188-K188,0)) -> 0 | R188: 0 | T188: =MAX(0,IF(Q188>0,Q188-('Výstupy modelu'!$H$10-'Výstupy modelu'!$H$9),0)) -> 0 | W188: 1865.43 | X188: 1885.43 | Y188: 0 | Z188: =MAX(0,D188-'Vstupní hodnoty'!$C$5) -> 0
B189: 2017-01-02T22:30:00 | C189: 1 | D189: 484.92 | E189: =CEILING(IF(C189-C188=0,IF(H188=0,I188,IF(J188>K188,I188,E188)),'Výstupy modelu'!$C$7),1) -> 1664 | F189: 0 | G189: 0 | H189: =IF(F189=1,IF(G189>'Zdrojová data'!$C$19,0,1),"") ->  | I189: 1664 | J189: 0 | K189: =MIN(J189,'Zdrojová data'!$C$17) -> 0 | L189: 0 | M189: =L189/'Zdrojová data'!$C$16 -> 0 | N189: =M189*'Zdrojová data'!$C$13 -> 0 | O189: =N189*'Zdrojová data'!$C$14 -> 0 | P189: 0 | Q189: =IF(H189=0,D189-'Výstupy modelu'!$C$7,IF(P189=1,J189-K189,0)) -> 0 | R189: 0 | T189: =MAX(0,IF(Q189>0,Q189-('Výstupy modelu'!$H$10-'Výstupy modelu'!$H$9),0)) -> 0 | W189: 1865.43 | X189: 1885.43 | Y189: 0 | Z189: =MAX(0,D189-'Vstupní hodnoty'!$C$5) -> 0
B190: 2017-01-02T22:45:00 | C190: 1 | D190: 494.64 | E190: =CEILING(IF(C190-C189=0,IF(H189=0,I189,IF(J189>K189,I189,E189)),'Výstupy modelu'!$C$7),1) -> 1664 | F190: 0 | G190: 0 | H190: =IF(F190=1,IF(G190>'Zdrojová data'!$C$19,0,1),"") ->  | I190: 1664 | J190: 0 | K190: =MIN(J190,'Zdrojová data'!$C$17) -> 0 | L190: 0 | M190: =L190/'Zdrojová data'!$C$16 -> 0 | N190: =M190*'Zdrojová data'!$C$13 -> 0 | O190: =N190*'Zdrojová data'!$C$14 -> 0 | P190: 0 | Q190: =IF(H190=0,D190-'Výstupy modelu'!$C$7,IF(P190=1,J190-K190,0)) -> 0 | R190: 0 | T190: =MAX(0,IF(Q190>0,Q190-('Výstupy modelu'!$H$10-'Výstupy modelu'!$H$9),0)) -> 0 | W190: 1865.43 | X190: 1885.43 | Y190: 0 | Z190: =MAX(0,D190-'Vstupní hodnoty'!$C$5) -> 0
B191: 2017-01-02T23:00:00 | C191: 1 | D191: 501.12 | E191: =CEILING(IF(C191-C190=0,IF(H190=0,I190,IF(J190>K190,I190,E190)),'Výstupy modelu'!$C$7),1) -> 1664 | F191: 0 | G191: 0 | H191: =IF(F191=1,IF(G191>'Zdrojová data'!$C$19,0,1),"") ->  | I191: 1664 | J191: 0 | K191: =MIN(J191,'Zdrojová data'!$C$17) -> 0 | L191: 0 | M191: =L191/'Zdrojová data'!$C$16 -> 0 | N191: =M191*'Zdrojová data'!$C$13 -> 0 | O191: =N191*'Zdrojová data'!$C$14 -> 0 | P191: 0 | Q191: =IF(H191=0,D191-'Výstupy modelu'!$C$7,IF(P191=1,J191-K191,0)) -> 0 | R191: 0 | T191: =MAX(0,IF(Q191>0,Q191-('Výstupy modelu'!$H$10-'Výstupy modelu'!$H$9),0)) -> 0 | W191: 1865.43 | X191: 1885.43 | Y191: 0 | Z191: =MAX(0,D191-'Vstupní hodnoty'!$C$5) -> 0
B192: 2017-01-02T23:15:00 | C192: 1 | D192: 513 | E192: =CEILING(IF(C192-C191=0,IF(H191=0,I191,IF(J191>K191,I191,E191)),'Výstupy modelu'!$C$7),1) -> 1664 | F192: 0 | G192: 0 | H192: =IF(F192=1,IF(G192>'Zdrojová data'!$C$19,0,1),"") ->  | I192: 1664 | J192: 0 | K192: =MIN(J192,'Zdrojová data'!$C$17) -> 0 | L192: 0 | M192: =L192/'Zdrojová data'!$C$16 -> 0 | N192: =M192*'Zdrojová data'!$C$13 -> 0 | O192: =N192*'Zdrojová data'!$C$14 -> 0 | P192: 0 | Q192: =IF(H192=0,D192-'Výstupy modelu'!$C$7,IF(P192=1,J192-K192,0)) -> 0 | R192: 0 | T192: =MAX(0,IF(Q192>0,Q192-('Výstupy modelu'!$H$10-'Výstupy modelu'!$H$9),0)) -> 0 | W192: 1865.43 | X192: 1885.43 | Y192: 0 | Z192: =MAX(0,D192-'Vstupní hodnoty'!$C$5) -> 0
B193: 2017-01-02T23:30:00 | C193: 1 | D193: 498.96 | E193: =CEILING(IF(C193-C192=0,IF(H192=0,I192,IF(J192>K192,I192,E192)),'Výstupy modelu'!$C$7),1) -> 1664 | F193: 0 | G193: 0 | H193: =IF(F193=1,IF(G193>'Zdrojová data'!$C$19,0,1),"") ->  | I193: 1664 | J193: 0 | K193: =MIN(J193,'Zdrojová data'!$C$17) -> 0 | L193: 0 | M193: =L193/'Zdrojová data'!$C$16 -> 0 | N193: =M193*'Zdrojová data'!$C$13 -> 0 | O193: =N193*'Zdrojová data'!$C$14 -> 0 | P193: 0 | Q193: =IF(H193=0,D193-'Výstupy modelu'!$C$7,IF(P193=1,J193-K193,0)) -> 0 | R193: 0 | T193: =MAX(0,IF(Q193>0,Q193-('Výstupy modelu'!$H$10-'Výstupy modelu'!$H$9),0)) -> 0 | W193: 1865.43 | X193: 1885.43 | Y193: 0 | Z193: =MAX(0,D193-'Vstupní hodnoty'!$C$5) -> 0
B194: 2017-01-02T23:45:00 | C194: 1 | D194: 498.96 | E194: =CEILING(IF(C194-C193=0,IF(H193=0,I193,IF(J193>K193,I193,E193)),'Výstupy modelu'!$C$7),1) -> 1664 | F194: 0 | G194: 0 | H194: =IF(F194=1,IF(G194>'Zdrojová data'!$C$19,0,1),"") ->  | I194: 1664 | J194: 0 | K194: =MIN(J194,'Zdrojová data'!$C$17) -> 0 | L194: 0 | M194: =L194/'Zdrojová data'!$C$16 -> 0 | N194: =M194*'Zdrojová data'!$C$13 -> 0 | O194: =N194*'Zdrojová data'!$C$14 -> 0 | P194: 0 | Q194: =IF(H194=0,D194-'Výstupy modelu'!$C$7,IF(P194=1,J194-K194,0)) -> 0 | R194: 0 | T194: =MAX(0,IF(Q194>0,Q194-('Výstupy modelu'!$H$10-'Výstupy modelu'!$H$9),0)) -> 0 | W194: 1865.43 | X194: 1885.43 | Y194: 0 | Z194: =MAX(0,D194-'Vstupní hodnoty'!$C$5) -> 0
B195: 2017-01-03 | C195: 1 | D195: 460.08 | E195: =CEILING(IF(C195-C194=0,IF(H194=0,I194,IF(J194>K194,I194,E194)),'Výstupy modelu'!$C$7),1) -> 1664 | F195: 0 | G195: 0 | H195: =IF(F195=1,IF(G195>'Zdrojová data'!$C$19,0,1),"") ->  | I195: 1664 | J195: 0 | K195: =MIN(J195,'Zdrojová data'!$C$17) -> 0 | L195: 0 | M195: =L195/'Zdrojová data'!$C$16 -> 0 | N195: =M195*'Zdrojová data'!$C$13 -> 0 | O195: =N195*'Zdrojová data'!$C$14 -> 0 | P195: 0 | Q195: =IF(H195=0,D195-'Výstupy modelu'!$C$7,IF(P195=1,J195-K195,0)) -> 0 | R195: 0 | T195: =MAX(0,IF(Q195>0,Q195-('Výstupy modelu'!$H$10-'Výstupy modelu'!$H$9),0)) -> 0 | W195: 1865.43 | X195: 1885.43 | Y195: 0 | Z195: =MAX(0,D195-'Vstupní hodnoty'!$C$5) -> 0
B196: 2017-01-03T00:15:00 | C196: 1 | D196: 446.04 | E196: =CEILING(IF(C196-C195=0,IF(H195=0,I195,IF(J195>K195,I195,E195)),'Výstupy modelu'!$C$7),1) -> 1664 | F196: =IF(D196>E196,1,0) -> 0 | G196: 0 | H196: =IF(F196=1,IF(G196>'Zdrojová data'!$C$19,0,1),"") ->  | I196: =IF(H196=0,D196,IF(J196>K196,E196+J196-K196,E196)) -> 1664 | J196: =IF(H196=1,D196-E196,0) -> 0 | K196: =MIN(J196,'Zdrojová data'!$C$17) -> 0 | L196: 0 | M196: =L196/'Zdrojová data'!$C$16 -> 0 | N196: =M196*'Zdrojová data'!$C$13 -> 0 | O196: =N196*'Zdrojová data'!$C$14 -> 0 | P196: 0 | Q196: =IF(H196=0,D196-'Výstupy modelu'!$C$7,IF(P196=1,J196-K196,0)) -> 0 | R196: 0 | T196: =MAX(0,IF(Q196>0,Q196-('Výstupy modelu'!$H$10-'Výstupy modelu'!$H$9),0)) -> 0 | W196: 1865.43 | X196: 1885.43 | Y196: =MAX(0,D196-W196) -> 0 | Z196: =MAX(0,D196-'Vstupní hodnoty'!$C$5) -> 0
B197: 2017-01-03T00:30:00 | C197: =MONTH(B197) -> 1 | D197: 492.48 | E197: =CEILING(IF(C197-C196=0,IF(H196=0,I196,IF(J196>K196,I196,E196)),'Výstupy modelu'!$C$7),1) -> 1664 | F197: 0 | G197: =IF(F197=1,RANDBETWEEN(0,100),0) -> 0 | H197: =IF(F197=1,IF(G197>'Zdrojová data'!$C$19,0,1),"") ->  | I197: 1664 | J197: 0 | K197: =MIN(J197,'Zdrojová data'!$C$17) -> 0 | L197: =K197/4 -> 0 | M197: =L197/'Zdrojová data'!$C$16 -> 0 | N197: =M197*'Zdrojová data'!$C$13 -> 0 | O197: =N197*'Zdrojová data'!$C$14 -> 0 | P197: =IF(H197=0,1,IF(J197>K197,1,0)) -> 0 | Q197: =IF(H197=0,D197-'Výstupy modelu'!$C$7,IF(P197=1,J197-K197,0)) -> 0 | R197: =IF(H197=0,1,IF(J197>K197,1,0)) -> 0 | T197: =MAX(0,IF(Q197>0,Q197-('Výstupy modelu'!$H$10-'Výstupy modelu'!$H$9),0)) -> 0 | W197: 1865.43 | X197: 1885.43 | Y197: 0 | Z197: =MAX(0,D197-'Vstupní hodnoty'!$C$5) -> 0
B198: 2017-01-03T00:45:00 | C198: 1 | D198: 529.2 | E198: =CEILING(IF(C198-C197=0,IF(H197=0,I197,IF(J197>K197,I197,E197)),'Výstupy modelu'!$C$7),1) -> 1664 | F198: 0 | G198: 0 | H198: =IF(F198=1,IF(G198>'Zdrojová data'!$C$19,0,1),"") ->  | I198: 1664 | J198: 0 | K198: =MIN(J198,'Zdrojová data'!$C$17) -> 0 | L198: 0 | M198: =L198/'Zdrojová data'!$C$16 -> 0 | N198: =M198*'Zdrojová data'!$C$13 -> 0 | O198: =N198*'Zdrojová data'!$C$14 -> 0 | P198: 0 | Q198: =IF(H198=0,D198-'Výstupy modelu'!$C$7,IF(P198=1,J198-K198,0)) -> 0 | R198: 0 | T198: =MAX(0,IF(Q198>0,Q198-('Výstupy modelu'!$H$10-'Výstupy modelu'!$H$9),0)) -> 0 | W198: =W197 -> 1865.43 | X198: 1885.43 | Y198: 0 | Z198: =MAX(0,D198-'Vstupní hodnoty'!$C$5) -> 0
B199: 2017-01-03T01:00:00 | C199: 1 | D199: 528.12 | E199: =CEILING(IF(C199-C198=0,IF(H198=0,I198,IF(J198>K198,I198,E198)),'Výstupy modelu'!$C$7),1) -> 1664 | F199: 0 | G199: 0 | H199: =IF(F199=1,IF(G199>'Zdrojová data'!$C$19,0,1),"") ->  | I199: 1664 | J199: 0 | K199: =MIN(J199,'Zdrojová data'!$C$17) -> 0 | L199: 0 | M199: =L199/'Zdrojová data'!$C$16 -> 0 | N199: =M199*'Zdrojová data'!$C$13 -> 0 | O199: =N199*'Zdrojová data'!$C$14 -> 0 | P199: 0 | Q199: =IF(H199=0,D199-'Výstupy modelu'!$C$7,IF(P199=1,J199-K199,0)) -> 0 | R199: 0 | T199: =MAX(0,IF(Q199>0,Q199-('Výstupy modelu'!$H$10-'Výstupy modelu'!$H$9),0)) -> 0 | W199: 1865.43 | X199: 1885.43 | Y199: 0 | Z199: =MAX(0,D199-'Vstupní hodnoty'!$C$5) -> 0
B200: 2017-01-03T01:15:00 | C200: 1 | D200: 538.92 | E200: =CEILING(IF(C200-C199=0,IF(H199=0,I199,IF(J199>K199,I199,E199)),'Výstupy modelu'!$C$7),1) -> 1664 | F200: 0 | G200: 0 | H200: =IF(F200=1,IF(G200>'Zdrojová data'!$C$19,0,1),"") ->  | I200: 1664 | J200: 0 | K200: =MIN(J200,'Zdrojová data'!$C$17) -> 0 | L200: 0 | M200: =L200/'Zdrojová data'!$C$16 -> 0 | N200: =M200*'Zdrojová data'!$C$13 -> 0 | O200: =N200*'Zdrojová data'!$C$14 -> 0 | P200: 0 | Q200: =IF(H200=0,D200-'Výstupy modelu'!$C$7,IF(P200=1,J200-K200,0)) -> 0 | R200: 0 | T200: =MAX(0,IF(Q200>0,Q200-('Výstupy modelu'!$H$10-'Výstupy modelu'!$H$9),0)) -> 0 | W200: 1865.43 | X200: 1885.43 | Y200: 0 | Z200: =MAX(0,D200-'Vstupní hodnoty'!$C$5) -> 0
B201: 2017-01-03T01:30:00 | C201: 1 | D201: 567 | E201: =CEILING(IF(C201-C200=0,IF(H200=0,I200,IF(J200>K200,I200,E200)),'Výstupy modelu'!$C$7),1) -> 1664 | F201: 0 | G201: 0 | H201: =IF(F201=1,IF(G201>'Zdrojová data'!$C$19,0,1),"") ->  | I201: 1664 | J201: 0 | K201: =MIN(J201,'Zdrojová data'!$C$17) -> 0 | L201: 0 | M201: =L201/'Zdrojová data'!$C$16 -> 0 | N201: =M201*'Zdrojová data'!$C$13 -> 0 | O201: =N201*'Zdrojová data'!$C$14 -> 0 | P201: 0 | Q201: =IF(H201=0,D201-'Výstupy modelu'!$C$7,IF(P201=1,J201-K201,0)) -> 0 | R201: 0 | T201: =MAX(0,IF(Q201>0,Q201-('Výstupy modelu'!$H$10-'Výstupy modelu'!$H$9),0)) -> 0 | W201: 1865.43 | X201: 1885.43 | Y201: 0 | Z201: =MAX(0,D201-'Vstupní hodnoty'!$C$5) -> 0
B202: 2017-01-03T01:45:00 | C202: 1 | D202: 496.8 | E202: =CEILING(IF(C202-C201=0,IF(H201=0,I201,IF(J201>K201,I201,E201)),'Výstupy modelu'!$C$7),1) -> 1664 | F202: 0 | G202: 0 | H202: =IF(F202=1,IF(G202>'Zdrojová data'!$C$19,0,1),"") ->  | I202: 1664 | J202: 0 | K202: =MIN(J202,'Zdrojová data'!$C$17) -> 0 | L202: 0 | M202: =L202/'Zdrojová data'!$C$16 -> 0 | N202: =M202*'Zdrojová data'!$C$13 -> 0 | O202: =N202*'Zdrojová data'!$C$14 -> 0 | P202: 0 | Q202: =IF(H202=0,D202-'Výstupy modelu'!$C$7,IF(P202=1,J202-K202,0)) -> 0 | R202: 0 | T202: =MAX(0,IF(Q202>0,Q202-('Výstupy modelu'!$H$10-'Výstupy modelu'!$H$9),0)) -> 0 | W202: 1865.43 | X202: 1885.43 | Y202: 0 | Z202: =MAX(0,D202-'Vstupní hodnoty'!$C$5) -> 0
... 2047 more rows

Sheet Výstupy modelu
B2: Výsledky po optimalizaci | G2: Před optimalizací
B3: Platba zákazníka před optimalizací | C3: ='Výpočet platby zákazníka'!D19 -> 11458360.61 | D3: Kč | G3: Spotřeba zákazníka | H3: ='Vstupní hodnoty'!C3 -> 6292.15344 | I3: MWh
B4: Platba zákazníka po optimalizaci | C4: ='Výpočet platby zákazníka'!H19+C16 -> 10989353.24 | D4: Kč | G4: Rezervovaná kapacita | H4: ='Vstupní hodnoty'!C4 -> 1865.43 | I4: kW
B5: Ušetřeno | C5: =C3-C4 -> 469007.3725 | D5: Kč | G5: Rezervovaný příkon | H5: ='Vstupní hodnoty'!C5 -> 1958.7015 | I5: kW
B7: Nová rezervovaná kapacita | C7: 1663.850636 | D7: kW | G7: Po optimalizaci
G8: Spotřeba zákazníka | H8: =H3-SUM('Výpočetní model'!L4:L35043)/1000 -> 6291.29423 | I8: MWh
B9: Počet startů | C9: =SUM('Výpočetní model'!F4:F35043) -> 109 | D9: - | G9: Rezervovaná kapacita | H9: =C7 -> 1663.850636 | I9: kW
B10: Počet úspěšných startů | C10: =SUM('Výpočetní model'!H4:H35043) -> 109 | D10: - | G10: Rezervovaný příkon | H10: =MAX(H4+20,H5-(H4-H9)) -> 1885.43 | I10: kW
B11: Úspěšnost startů | C11: =IF(C9=0,0,C10/C9*100) -> 100 | D11: %
G12: Rozdíl
B13: Počet nedostatečných výkonů | C13: =SUM('Výpočetní model'!P4:P35043) -> 0 | D13: - | G13: Spotřeba zákazníka | H13: =((H3-H8)*-1)*1000 -> -859.21 | I13: kWh
B14: Max chybějící výkon | C14: =MAX('Výpočetní model'!Q4:Q35043) -> 0 | D14: kW | G14: Rezervovaná kapacita | H14: =(H4-H9)*-1 -> -201.579364 | I14: kW
G15: Rezervovaný příkon | H15: -73.2715 | I15: kW
B16: Palivové náklady | C16: =SUM('Výpočetní model'!O4:O35043) -> 4693.235694 | D16: Kč | G16: Ušetřeno | H16: =C5 -> 469007.3725 | I16: Kč
B17: Překročená RK | C17: =SUM('Výpočetní model'!S4:S35043) -> 0 | D17: kW
B18: Překročený RP | C18: =SUM('Výpočetní model'!T4:T35043) -> 0 | D18: kW
B19: Placené penále | C19: =(C17+C18)*'Zdrojová data'!C21 -> 0 | D19: Kč
E66: =19346-18273 -> 1073

Sheet Investice
B4: rok | C4: Investice [Kč] | D4: ušetřeno [Kč] | E4: náklady [Kč] | F4: inflace | G4: r. výnos | H4: nom. výnos | I4: odpisy [Kč] | J4: daňový základ [Kč] | K4: daňová sazba | L4: daň [Kč] | M4: CF [Kč] | N4: DCF [Kč] | P4: Nominální výnos | Q4: Investice [Kč]
B5: 0 | C5: 2861109.632 | M5: =-C5+D5-L5-E5 -> -2861109.632 | N5: =M5/(1+H5)^B5 -> -2861109.632 | P5: 0.03 | Q5: 3180804
B6: 1 | D6: ='Statistické šetření'!G19 -> 428510.8673 | E6: =SUM('Statistické šetření'!D2:D1001)/1000 -> 3857.619775 | F6: 0.02 | G6: 0.05 | H6: =F6+G6+F6*G6 -> 0.071 | I6: =$C$5/B21 -> 572221.9264 | J6: =D6-I6-E6 -> -147568.6789 | K6: 0.19 | L6: =J6*K6 -> -28038.049 | M6: =-C6+D6-L6-E6 -> 452691.2965 | N6: =M6/(1+H6)^B6 -> 422680.9491 | P6: 0.035 | Q6: 3096019
B7: 2 | D7: =D6 -> 428510.8673 | E7: =E6 -> 3857.619775 | F7: 0.02 | G7: =G6 -> 0.05 | H7: =F7+G7+F7*G7 -> 0.071 | I7: =$C$5*2*($B$21-B7+1)/$B$21^2 -> 915555.0823 | J7: =D7-I7-E7 -> -490901.8348 | K7: 0.19 | L7: =J7*K7 -> -93271.34861 | M7: 517924.5961 | N7: 451531.023 | P7: 0.04 | Q7: 3014582
B8: 3 | D8: =D7 -> 428510.8673 | E8: 3857.619775 | F8: 0.02 | G8: =G7 -> 0.05 | H8: 0.071 | I8: =$C$5*2*($B$21-B8+1)/$B$21^2 -> 686666.3117 | J8: -262013.0642 | K8: 0.19 | L8: -49782.4822 | M8: 474435.7297 | N8: 386197.0711 | P8: 0.045 | Q8: 2936330
B9: 4 | D9: 428510.8673 | E9: 3857.619775 | F9: 0.02 | G9: 0.05 | H9: 0.071 | I9: =$C$5*2*($B$21-B9+1)/$B$21^2 -> 457777.5412 | J9: -33124.29364 | K9: 0.19 | L9: -6293.615792 | M9: 430946.8633 | N9: 327541.1283 | P9: 0.05 | Q9: 2861109
B10: 5 | D10: 428510.8673 | E10: 3857.619775 | F10: 0.02 | G10: 0.05 | H10: 0.071 | I10: =$C$5*2*($B$21-B10+1)/$B$21^2 -> 228888.7706 | J10: 195764.4769 | K10: 0.19 | L10: 37195.25062 | M10: 387457.9969 | N10: 274964.9103 | P10: 0.055 | Q10: 2788772
B11: 6 | D11: 428510.8673 | E11: 3857.619775 | F11: 0.02 | G11: 0.05 | H11: 0.071 | I11: 0 | J11: 424653.2475 | K11: 0.19 | L11: 80684.11703 | M11: 343969.1305 | N11: 227920.1088 | P11: 0.06 | Q11: 2719183
B12: 7 | D12: 428510.8673 | E12: 3857.619775 | F12: 0.02 | G12: 0.05 | H12: 0.071 | I12: 0 | J12: 424653.2475 | K12: 0.19 | L12: 80684.11703 | M12: 343969.1305 | N12: 212810.5591 | P12: 0.065 | Q12: 2652212
B13: 8 | D13: 428510.8673 | E13: 3857.619775 | F13: 0.02 | G13: 0.05 | H13: 0.071 | I13: 0 | J13: 424653.2475 | K13: 0.19 | L13: 80684.11703 | M13: 343969.1305 | N13: 198702.6696 | P13: 0.07 | Q13: 2587735
B14: 9 | D14: 428510.8673 | E14: 3857.619775 | F14: 0.02 | G14: 0.05 | H14: 0.071 | I14: 0 | J14: 424653.2475 | K14: 0.19 | L14: 80684.11703 | M14: 343969.1305 | N14: 185530.037 | P14: 0.075 | Q14: 2525638
B15: 10 | D15: 428510.8673 | E15: 3857.619775 | F15: 0.02 | G15: 0.05 | H15: 0.071 | I15: 0 | J15: 424653.2475 | K15: 0.19 | L15: 80684.11703 | M15: 343969.1305 | N15: 173230.6601 | P15: 0.08 | Q15: 2465810
P16: 0.085 | Q16: 2408148
I17: =SUM(I6:I15)-C5 -> 0 | P17: 0.09 | Q17: 2352553
P18: 0.095 | Q18: 2298933
P19: 0.1 | Q19: 2247199
A21: Doba životnosti | B21: 5
A22: IRR | B22: =IRR(N5:N15) -> -3.963616058e-08
A23: NPV | B23: =SUM(N5:N15) -> -0.5159921785

Sheet Statistické šetření
A1: Číslo výpočtu | B1: Ušetřeno [Kč] | C1: % úspěšnost startů | D1: Náklady [Kč] | E1: Penále [Kč]
A2: 1 | B2: 417408.8531 | C2: 98.95833333 | D2: 3985.216455 | E2: 51476.72218
A3: 2 | B3: 438036.2405 | C3: 96.90721649 | D3: 3537.474308 | E3: 31297.07694
A4: 3 | B4: 434057.5081 | C4: 96.93877551 | D4: 3655.404684 | E4: 35157.87898
A5: 4 | B5: 388005.3566 | C5: 94.20289855 | D5: 2681.427593 | E5: 82184.00756 | L5: Horní hranice intervalu | M5: Absolutní četnost | N5: Relativní četnost | P5: Středy intervalů
A6: 5 | B6: 417408.8531 | C6: 98.95833333 | D6: 3985.216455 | E6: 51476.72218 | K6: 1 | L6: =MIN(B2:B1001) -> 322470.4289 | M6: =FREQUENCY($B$2:$B$1001,$L$6:$L$21) -> 1 | N6: =M6/$M$22 -> 0.001 | P6: 98611
A7: 6 | B7: 455754.8011 | C7: 98.16513761 | D7: 4657.94944 | E7: 12458.04116 | K7: 2 | L7: =L6+$H$14 -> 332184.2374 | M7: 3 | N7: 0.003 | P7: =(L7+L6)/2 -> 327327.3331
A8: 7 | B8: 468177.556 | C8: 100 | D8: 4693.235694 | E8: 0 | K8: 3 | L8: 341898.0458 | M8: 5 | N8: 0.005 | P8: 337041.1416
A9: 8 | B9: 441848.0627 | C9: 98.01980198 | D9: 4024.271674 | E9: 26998.45738 | K9: 4 | L9: 351611.8543 | M9: 6 | N9: 0.006 | P9: 346754.9501
A10: 9 | B10: 397539.938 | C10: 97.2972973 | D10: 2789.799 | E10: 72541.05476 | K10: 5 | L10: 361325.6628 | M10: 10 | N10: 0.01 | P10: 356468.7585
A11: 10 | B11: 383240.7476 | C11: 95.45454545 | D11: 2253.677349 | E11: 87376.36676 | K11: 6 | L11: 371039.4713 | M11: 25 | N11: 0.025 | P11: 366182.567
A12: 11 | B12: 438157.8306 | C12: 96.875 | D12: 3415.884212 | E12: 31297.07694 | G12: variační rozpětí | H12: =MAX(B2:B1001)-MIN(B2:B1001) -> 145707.1272 | K12: 7 | L12: 380753.2797 | M12: 28 | N12: 0.028 | P12: 375896.3755
A13: 12 | B13: 431545.1691 | C13: 98.96907216 | D13: 3942.446893 | E13: 37383.17578 | G13: počet intervalů | H13: =5*LOG10(1000) -> 15 | K13: 8 | L13: 390467.0882 | M13: 37 | N13: 0.037 | P13: 385610.184
A14: 13 | B14: 453859.8502 | C14: 99.07407407 | D14: 4622.499317 | E14: 14388.44218 | G14: šířka intervalu | H14: =H12/H13 -> 9713.808478 | K14: 9 | L14: 400180.8967 | M14: 62 | N14: 0.062 | P14: 395323.9925
A15: 14 | B15: 464942.363 | C15: 99.08256881 | D15: 4666.470579 | E15: 3261.958182 | K15: 10 | L15: 409894.7052 | M15: 63 | N15: 0.063 | P15: =(L15+L14)/2 -> 405037.8009
A16: 15 | B16: 461220.4255 | C16: 99.08256881 | D16: 4679.580023 | E16: 6970.786182 | K16: 11 | L16: 419608.5137 | M16: 89 | N16: 0.089 | P16: =(L16+L15)/2 -> 414751.6094
A17: 16 | B17: 375916.8153 | C17: 96.73913043 | D17: 3348.589064 | E17: 93605.38734 | G17: =_xlfn.MODE.MULT(B2:B1001) -> 468177.556 | H17: modus | K17: 12 | L17: 429322.3221 | M17: 104 | N17: 0.104 | P17: 424465.4179
A18: 17 | B18: 449760.9175 | C18: 98.01980198 | D18: 4270.838473 | E18: 18839.03578 | G18: =MEDIAN(B2:B1001) -> 433820.6641 | H18: median | K18: 13 | L18: 439036.1306 | M18: 143 | N18: 0.143 | P18: 434179.2264
A19: 18 | B19: 468177.556 | C19: 100 | D19: 4693.235694 | E19: 0 | G19: =SUMPRODUCT(N6:N21,P6:P21)/SUM(N6:N21) -> 428510.8673 | H19: vážený průměr středů intervalů | K19: 14 | L19: 448749.9391 | M19: 113 | N19: 0.113 | P19: 443893.0348
A20: 19 | B20: 468177.556 | C20: 100 | D20: 4693.235694 | E20: 0 | K20: 15 | L20: 458463.7476 | M20: 131 | N20: 0.131 | P20: 453606.8433
A21: 20 | B21: 420983.8114 | C21: 97.72727273 | D21: 3377.320596 | E21: 48509.65978 | K21: 16 | L21: =L20+$H$14+1 -> 468178.556 | M21: 180 | N21: 0.18 | P21: 463321.1518
A22: 21 | B22: 441275.4756 | C22: 97.8021978 | D22: 3560.197345 | E22: 28035.11876 | M22: =SUM(M6:M21) -> 1000 | N22: =SUM(N6:N21) -> 1
A23: 22 | B23: 455285.2204 | C23: 98.03921569 | D23: 4385.764602 | E23: 13199.80676
A24: 23 | B24: 390101.0675 | C24: 98.01980198 | D24: 4294.544718 | E24: 78475.17956
A25: 24 | B25: 454870.0317 | C25: 99.06542056 | D25: 4354.083445 | E25: 13646.67658
A26: 25 | B26: 440529.8743 | C26: 99 | D26: 3858.928808 | E26: 28481.98858
A27: 26 | B27: 426145.7353 | C27: 98.98989899 | D27: 4149.52149 | E27: 42575.53498
A28: 27 | B28: 431330.5565 | C28: 98.95833333 | D28: 4157.059421 | E28: 37383.17578
A29: 28 | B29: 429625.3874 | C29: 98.7654321 | D29: 2895.166158 | E29: 40350.23818
A30: 29 | B30: 404544.8754 | C30: 95.83333333 | D30: 2460.751947 | E30: 65865.16436
A31: 30 | B31: 357487.4922 | C31: 94.38202247 | D31: 3233.772181 | E31: 112149.5273
A32: 31 | B32: 382738.876 | C32: 96.2962963 | D32: 3202.41876 | E32: 86929.49694
A33: 32 | B33: 468177.556 | C33: 100 | D33: 4693.235694 | E33: 0
A34: 33 | B34: 462711.9316 | C34: 99.08256881 | D34: 4671.605111 | E34: 5487.254982
A35: 34 | B35: 436546.3063 | C35: 96.875 | D35: 3838.773037 | E35: 32485.71236
A36: 35 | B36: 388400.7702 | C36: 97.18309859 | D36: 2286.013978 | E36: 82184.00756
A37: 36 | B37: 370063.1586 | C37: 96.61016949 | D37: 2079.485607 | E37: 100728.1476
A38: 37 | B38: 431330.5565 | C38: 98.95833333 | D38: 4157.059421 | E38: 37383.17578
A39: 38 | B39: 424035.049 | C39: 96 | D39: 3740.015223 | E39: 45095.72756
A40: 39 | B40: 468177.556 | C40: 100 | D40: 4693.235694 | E40: 0
A41: 40 | B41: 457985.2325 | C41: 98.16513761 | D41: 4652.814907 | E41: 10232.74436
A42: 41 | B42: 437011.0482 | C42: 96.59090909 | D42: 3079.13536 | E42: 32780.60814
A43: 42 | B43: 462803.6978 | C43: 99.05660377 | D43: 4579.839001 | E43: 5487.254982
A44: 43 | B44: 423059.0717 | C44: 97.6744186 | D44: 3232.461236 | E44: 46579.25876
A45: 44 | B45: 414913.8962 | C45: 98.01980198 | D45: 3959.980774 | E45: 53996.91476
A46: 45 | B46: 455324.045 | C46: 99.08256881 | D46: 4641.835748 | E46: 12904.91098
A47: 46 | B47: 451911.8182 | C47: 99.01960784 | D47: 4345.23457 | E47: 16613.73898
A48: 47 | B48: 400734.3279 | C48: 98.68421053 | D48: 2857.367261 | E48: 69279.09658
A49: 48 | B49: 392974.1677 | C49: 93.10344828 | D49: 1868.314308 | E49: 78028.30974
A50: 49 | B50: 453588.8229 | C50: 99.00990099 | D50: 4151.76102 | E50: 15130.20778
A51: 50 | B51: 468177.556 | C51: 100 | D51: 4693.235694 | E51: 0
A52: 51 | B52: 349960.0005 | C52: 93.5483871 | D52: 2601.842341 | E52: 120308.9489
A53: 52 | B53: 410709.2685 | C53: 97.97979798 | D53: 3714.014825 | E53: 58447.50836
A54: 53 | B54: 325565.4722 | C54: 94.59459459 | D54: 2518.105766 | E54: 144787.2137
A55: 54 | B55: 409601.094 | C55: 96.7032967 | D55: 4080.423794 | E55: 59189.27396
A56: 55 | B56: 468177.556 | C56: 100 | D56: 4693.235694 | E56: 0
A57: 56 | B57: 417408.8531 | C57: 98.95833333 | D57: 3985.216455 | E57: 51476.72218
A58: 57 | B58: 446191.3773 | C58: 98.95833333 | D58: 4131.550627 | E58: 22547.86378
A59: 58 | B59: 468177.556 | C59: 100 | D59: 4693.235694 | E59: 0
A60: 59 | B60: 413340.1934 | C60: 97.6744186 | D60: 3308.386768 | E60: 56222.21156
A61: 60 | B61: 411860.8135 | C61: 97.77777778 | D61: 3304.235444 | E61: 57705.74276
A62: 61 | B62: 467888.5049 | C62: 99.08256881 | D62: 4687.391067 | E62: 294.8957816
A63: 62 | B63: 451911.8182 | C63: 99.01960784 | D63: 4345.23457 | E63: 16613.73898
A64: 63 | B64: 425507.0548 | C64: 97.11538462 | D64: 3751.540609 | E64: 43612.19636
A65: 64 | B65: 421612.1152 | C65: 98.96907216 | D65: 4232.547971 | E65: 47026.12858
A66: 65 | B66: 446600.0096 | C66: 99 | D66: 3722.918323 | E66: 22547.86378
A67: 66 | B67: 446798.4009 | C67: 97.05882353 | D67: 3971.396915 | E67: 22100.99396
A68: 67 | B68: 452540.8426 | C68: 99.05660377 | D68: 4457.975791 | E68: 15871.97338
A69: 68 | B69: 468177.556 | C69: 100 | D69: 4693.235694 | E69: 0
A70: 69 | B70: 380988.9726 | C70: 94.02985075 | D70: 2432.12966 | E70: 89449.68953
A71: 70 | B71: 436690.4981 | C71: 99 | D71: 3989.477024 | E71: 32190.81658
A72: 71 | B72: 440961.1767 | C72: 97.8021978 | D72: 3874.496273 | E72: 28035.11876
A73: 72 | B73: 438356.9502 | C73: 99.07407407 | D73: 4548.321711 | E73: 29965.51978
A74: 73 | B74: 417520.024 | C74: 96.96969697 | D74: 4026.0196 | E74: 51324.74814
A75: 74 | B75: 414321.3614 | C75: 95.95959596 | D75: 4257.619783 | E75: 54291.81054
A76: 75 | B76: 426045.5694 | C76: 95.65217391 | D76: 3954.791619 | E76: 42870.43076
A77: 76 | B77: 431589.4681 | C77: 97.87234043 | D77: 3898.147895 | E77: 37383.17578
A78: 77 | B78: 458828.1047 | C78: 98.07692308 | D78: 4551.708318 | E78: 9490.978763
A79: 78 | B79: 445938.8687 | C79: 97.91666667 | D79: 4089.163424 | E79: 22842.75956
A80: 79 | B80: 401077.3175 | C80: 94.80519481 | D80: 2666.351732 | E80: 69127.12254
A81: 80 | B81: 468177.556 | C81: 100 | D81: 4693.235694 | E81: 0
A82: 81 | B82: 448790.8291 | C82: 99.05660377 | D82: 4499.161295 | E82: 19580.80138
A83: 82 | B83: 355125.4411 | C83: 93.87755102 | D83: 1886.995266 | E83: 115858.3553
A84: 83 | B84: 430819.9237 | C84: 96.80851064 | D84: 3336.135092 | E84: 38714.73294
A85: 84 | B85: 421612.1152 | C85: 98.96907216 | D85: 4232.547971 | E85: 47026.12858
A86: 85 | B86: 364124.2832 | C86: 94.66666667 | D86: 2531.105965 | E86: 106215.4025
A87: 86 | B87: 424906.337 | C87: 96.73913043 | D87: 3315.596963 | E87: 44648.85774
A88: 87 | B88: 377596.8348 | C88: 92.75362319 | D88: 2410.335209 | E88: 92863.62174
A89: 88 | B89: 468177.556 | C89: 100 | D89: 4693.235694 | E89: 0
A90: 89 | B90: 402945.1072 | C90: 97.14285714 | D90: 2576.98902 | E90: 67348.69556
A91: 90 | B91: 437506.3867 | C91: 98.91304348 | D91: 3915.354041 | E91: 31449.05098
A92: 91 | B92: 426603.8574 | C92: 97.91666667 | D92: 4138.269217 | E92: 42128.66516
A93: 92 | B93: 447647.5 | C93: 98.03921569 | D93: 3864.06334 | E93: 21359.22836
A94: 93 | B94: 468177.556 | C94: 100 | D94: 4693.235694 | E94: 0
A95: 94 | B95: 381720.2159 | C95: 96.66666667 | D95: 3774.209024 | E95: 87376.36676
A96: 95 | B96: 438295.5118 | C96: 98.0952381 | D96: 4314.864357 | E96: 30260.41556
A97: 96 | B97: 387932.8209 | C97: 95.55555556 | D97: 3647.702886 | E97: 81290.26793
A98: 97 | B98: 427676.3633 | C98: 98 | D98: 3807.528861 | E98: 41386.89956
A99: 98 | B99: 427402.3638 | C99: 98.07692308 | D99: 4376.424123 | E99: 41092.00378
A100: 99 | B100: 383904.0767 | C100: 94.25287356 | D100: 2778.983708 | E100: 86187.73134
A101: 100 | B101: 400589.4139 | C101: 97.46835443 | D101: 3002.281243 | E101: 69279.09658
A102: 101 | B102: 432883.853 | C102: 97.87234043 | D102: 3792.398378 | E102: 36194.54036
A103: 102 | B103: 440116.1196 | C103: 98.01980198 | D103: 3977.78777 | E103: 28776.88436
A104: 103 | B104: 376577.2357 | C104: 97.8021978 | D104: 3724.830117 | E104: 92568.72596
A105: 104 | B105: 450011.4717 | C105: 98.97959184 | D105: 4020.284218 | E105: 18839.03578
A106: 105 | B106: 457332.5018 | C106: 98.13084112 | D106: 4563.779931 | E106: 10974.50996
A107: 106 | B107: 468177.556 | C107: 100 | D107: 4693.235694 | E107: 0
A108: 107 | B108: 399187.6987 | C108: 97.95918367 | D108: 4109.100704 | E108: 69573.99236
A109: 108 | B109: 440529.8743 | C109: 99 | D109: 3858.928808 | E109: 28481.98858
A110: 109 | B110: 468177.556 | C110: 100 | D110: 4693.235694 | E110: 0
A111: 110 | B111: 433820.6641 | C111: 98.96907216 | D111: 3892.248645 | E111: 35157.87898
A112: 111 | B112: 439964.0926 | C112: 99.04761905 | D112: 4424.710576 | E112: 28481.98858
A113: 112 | B113: 447619.3573 | C113: 98.96907216 | D113: 4187.101897 | E113: 21064.33258
A114: 113 | B114: 452248.1317 | C114: 98.11320755 | D114: 4455.790884 | E114: 16166.86916
A115: 114 | B115: 468177.556 | C115: 100 | D115: 4693.235694 | E115: 0
A116: 115 | B116: 440287.295 | C116: 98.01980198 | D116: 4101.50815 | E116: 28481.98858
A117: 116 | B117: 437506.3867 | C117: 98.91304348 | D117: 3915.354041 | E117: 31449.05098
A118: 117 | B118: 430432.591 | C118: 98.7654321 | D118: 2829.728182 | E118: 39608.47258
A119: 118 | B119: 456662.2373 | C119: 98.05825243 | D119: 4492.278837 | E119: 11716.27556
A120: 119 | B120: 326043.5525 | C120: 81.39534884 | D120: 1003.364096 | E120: 145823.8751
A121: 120 | B121: 468177.556 | C121: 100 | D121: 4693.235694 | E121: 0
A122: 121 | B122: 398891.786 | C122: 96.20253165 | D122: 2626.586418 | E122: 71352.41934
A123: 122 | B123: 428450.5748 | C123: 97.97979798 | D123: 3775.082987 | E123: 40645.13396
A124: 123 | B124: 386908.9275 | C124: 95.69892473 | D124: 3482.960869 | E124: 82478.90334
A125: 124 | B125: 381240.8361 | C125: 92.45283019 | D125: 1733.396277 | E125: 89896.55934
A126: 125 | B126: 467921.2785 | C126: 99.08256881 | D126: 4654.617456 | E126: 294.8957816
A127: 126 | B127: 458567.8397 | C127: 97.16981132 | D127: 4517.077536 | E127: 9785.874545
A128: 127 | B128: 371699.3072 | C128: 92.75362319 | D128: 2373.73801 | E128: 98797.74654
A129: 128 | B129: 410261.4397 | C129: 96.66666667 | D129: 3125.182284 | E129: 59484.16974
A130: 129 | B130: 460962.7824 | C130: 98.16513761 | D130: 4642.327352 | E130: 7265.681963
A131: 130 | B131: 464942.363 | C131: 99.08256881 | D131: 4666.470579 | E131: 3261.958182
A132: 131 | B132: 468177.556 | C132: 100 | D132: 4693.235694 | E132: 0
A133: 132 | B133: 410070.576 | C133: 98 | D133: 3610.941819 | E133: 59189.27396
A134: 133 | B134: 454432.1884 | C134: 98.07692308 | D134: 4497.03101 | E134: 13941.57236
A135: 134 | B135: 468177.556 | C135: 100 | D135: 4693.235694 | E135: 0
A136: 135 | B136: 394743.9434 | C136: 97.64705882 | D136: 3360.496809 | E136: 74766.35156
A137: 136 | B137: 458479.6103 | C137: 99.03846154 | D137: 4453.332863 | E137: 9937.848582
A138: 137 | B138: 441809.936 | C138: 98 | D138: 4062.398308 | E138: 26998.45738
A139: 138 | B139: 402959.3653 | C139: 94.31818182 | D139: 3009.600683 | E139: 66901.82574
A140: 139 | B140: 447594.2413 | C140: 98.93617021 | D140: 3470.452274 | E140: 21806.09818
A141: 140 | B141: 455389.5922 | C141: 99.07407407 | D141: 4576.288526 | E141: 12904.91098
A142: 141 | B142: 420131.479 | C142: 99.00990099 | D142: 4229.652969 | E142: 48509.65978
A143: 142 | B143: 448790.8291 | C143: 99.05660377 | D143: 4499.161295 | E143: 19580.80138
A144: 143 | B144: 381457.9387 | C144: 97.4025974 | D144: 2552.955039 | E144: 88859.89796
A145: 144 | B145: 430330.3285 | C145: 98.01980198 | D145: 4120.62609 | E145: 38419.83716
A146: 145 | B146: 468177.556 | C146: 100 | D146: 4693.235694 | E146: 0
A147: 146 | B147: 454370.7908 | C147: 99.04761905 | D147: 4111.558724 | E147: 14388.44218
A148: 147 | B148: 425037.5391 | C148: 96.15384615 | D148: 2737.52509 | E148: 45095.72756
A149: 148 | B149: 468177.556 | C149: 100 | D149: 4693.235694 | E149: 0
A150: 149 | B150: 410235.4835 | C150: 95.78947368 | D150: 3892.904117 | E150: 58742.40414
A151: 150 | B151: 422917.5444 | C151: 96.47058824 | D151: 3373.988613 | E151: 46579.25876
A152: 151 | B152: 413531.2756 | C152: 96.05263158 | D152: 2822.408742 | E152: 56517.10734
A153: 152 | B153: 414518.1758 | C153: 95.45454545 | D153: 2872.170008 | E153: 55480.44596
A154: 153 | B154: 468177.556 | C154: 100 | D154: 4693.235694 | E154: 0
A155: 154 | B155: 443063.178 | C155: 99.03846154 | D155: 4292.687547 | E155: 25514.92618
A156: 155 | B156: 435028.1444 | C156: 97.95918367 | D156: 3873.403819 | E156: 33969.24356
A157: 156 | B157: 416537.043 | C157: 97.84946237 | D157: 3820.365192 | E157: 52513.38356
A158: 157 | B158: 468177.556 | C158: 100 | D158: 4693.235694 | E158: 0
A159: 158 | B159: 442626.8199 | C159: 97.93814433 | D159: 3692.384242 | E159: 26551.58756
A160: 159 | B160: 372271.2388 | C160: 97.56097561 | D160: 2838.467812 | E160: 97761.08516
A161: 160 | B161: 446265.9494 | C161: 97.93814433 | D161: 3762.082788 | E161: 22842.75956
A162: 161 | B162: 441284.4779 | C162: 98.05825243 | D162: 4292.96066 | E162: 27293.35316
A163: 162 | B163: 361925.5981 | C163: 93.47826087 | D163: 1762.728659 | E163: 109182.4649
A164: 163 | B164: 408424.2692 | C164: 96.77419355 | D164: 3773.717419 | E164: 60672.80516
A165: 164 | B165: 389051.1416 | C165: 95.45454545 | D165: 3119.173788 | E165: 80700.47636
A166: 165 | B166: 433439.1897 | C166: 98.94736842 | D166: 3531.957417 | E166: 35899.64458
A167: 166 | B167: 455145.6699 | C167: 98.05825243 | D167: 3783.549503 | E167: 13941.57236
A168: 167 | B168: 367312.61 | C168: 95.71428571 | D168: 2604.737344 | E168: 102953.4444
A169: 168 | B169: 427345.9386 | C169: 99.03846154 | D169: 4432.849356 | E169: 41092.00378
A170: 169 | B170: 388537.547 | C170: 95.65217391 | D170: 2596.106959 | E170: 81737.13774
A171: 170 | B171: 363331.051 | C171: 95 | D171: 2877.468408 | E171: 106662.2724
A172: 171 | B172: 438825.0241 | C172: 97 | D172: 3785.352051 | E172: 30260.41556
A173: 172 | B173: 443546.9711 | C173: 98.01980198 | D173: 3808.894428 | E173: 25514.92618
A174: 173 | B174: 423603.0381 | C174: 98.03921569 | D174: 4172.026036 | E174: 45095.72756
A175: 174 | B175: 461741.6914 | C175: 98.14814815 | D175: 4605.183926 | E175: 6523.916363
A176: 175 | B176: 433390.5226 | C176: 97.91666667 | D176: 4027.494413 | E176: 35452.77476
A177: 176 | B177: 395244.2872 | C177: 97.5 | D177: 2860.153017 | E177: 74766.35156
A178: 177 | B178: 452923.2014 | C178: 99.00990099 | D178: 4075.616998 | E178: 15871.97338
A179: 178 | B179: 444505.2081 | C179: 98.13084112 | D179: 4039.292913 | E179: 24326.29076
A180: 179 | B180: 340939.5068 | C180: 96.47058824 | D180: 3462.914343 | E180: 128468.3705
A181: 180 | B181: 441758.0991 | C181: 99.00990099 | D181: 4114.235236 | E181: 26998.45738
A182: 181 | B182: 426145.7353 | C182: 98.98989899 | D182: 4149.52149 | E182: 42575.53498
A183: 182 | B183: 436471.5825 | C183: 97.82608696 | D183: 3913.49687 | E183: 32485.71236
A184: 183 | B184: 416889.7554 | C184: 95.6043956 | D184: 3619.626826 | E184: 52361.40953
A185: 184 | B185: 468177.556 | C185: 100 | D185: 4693.235694 | E185: 0
A186: 185 | B186: 468177.556 | C186: 100 | D186: 4693.235694 | E186: 0
A187: 186 | B187: 400734.3279 | C187: 98.68421053 | D187: 2857.367261 | E187: 69279.09658
A188: 187 | B188: 455420.8469 | C188: 98.03921569 | D188: 3803.268292 | E188: 13646.67658
A189: 188 | B189: 449656.2604 | C189: 99.02912621 | D189: 4375.495537 | E189: 18839.03578
A190: 189 | B190: 393871.5098 | C190: 97.97979798 | D190: 4232.93033 | E190: 74766.35156
A191: 190 | B191: 464983.1661 | C191: 99.06542056 | D191: 4625.667433 | E191: 3261.958182
A192: 191 | B192: 445127.7974 | C192: 97.82608696 | D192: 3416.703552 | E192: 24326.29076
A193: 192 | B193: 468177.556 | C193: 100 | D193: 4693.235694 | E193: 0
A194: 193 | B194: 449874.3142 | C194: 98.0952381 | D194: 4157.44178 | E194: 18839.03578
A195: 194 | B195: 452998.1453 | C195: 98.05825243 | D195: 4447.542858 | E195: 15425.10356
A196: 195 | B196: 456100.7691 | C196: 99.03846154 | D196: 4606.877229 | E196: 12163.14538
A197: 196 | B197: 468177.556 | C197: 100 | D197: 4693.235694 | E197: 0
A198: 197 | B198: 446546.4264 | C198: 98.05825243 | D198: 4223.37136 | E198: 22100.99396
A199: 198 | B199: 423872.0123 | C199: 96.38554217 | D199: 3608.156062 | E199: 45390.62334
A200: 199 | B200: 438825.188 | C200: 97.95918367 | D200: 3785.188183 | E200: 30260.41556
... 801 more rows
